date,department/service,beneficiary,amount,summary of purpose,category,transaction number,SAP vendor number
01.10.2021,ASSET MANAGEMENT HGF,BRITISH GAS,335.67,CURLEW HOUSE,GAS,5902488384,1000054825
01.10.2021,CHIEF EXECUTIVE,STANBURY BUILDING SERVICES LTD,"2,950.00",CAPITAL PS (REGEN),CONSTRUCTION SITE COSTS,5902488497,1000078207
01.10.2021,CHIEF EXECUTIVE,HALLWOOD ASSOCIATES LTD,650,CAPITAL PS (REGEN),CONSTRUCTION FEES,5902488457,1000082131
01.10.2021,EDUCATION,UNIVERSITY OF SOUTHAMPTON,"9,250.00",SCHOLARSHIP SCHEME,EXTERNAL AGENCIES AND BODIES,5902489359,1000072676
01.10.2021,ENV & LEIS,BELL BRUSH COMPANY,"1,646.20",MANAGEMENT TEAM,MATERIALS,5902488883,1259776
01.10.2021,ENVIRONMENT AND LEISURE,CYCLEHOOP LTD,"3,110.00",CAPITAL PS (LEISURE),CONSTRUCTION MAIN CONTRACT -CERTIFICATED,5902488510,1000057894
01.10.2021,ENVIRONMENT AND LEISURE,RH WROUGHT IRON,"1,740.00",CAPITAL PS (LEISURE),CONSTRUCTION MAIN CONTRACT -CERTIFICATED,2103327155,3000000680
01.10.2021,F & C S EXCLUDING CORPORATE BUDGETS,CAPITA BUSINESS SERVICES LTD,"2,548.00",ADMINISTRATIVE SUPPORT,EQUIPMENT PURCHASE & REPAIR,5902488712,1000006291
01.10.2021,F & C S EXCLUDING CORPORATE BUDGETS,DSI BILLING SERVICES LTD,"3,321.64",ADMINISTRATIVE SUPPORT,POSTAGES,5902488797,1000058640
01.10.2021,F & C S EXCLUDING CORPORATE BUDGETS,DSI BILLING SERVICES LTD,"5,313.35",ADMINISTRATIVE SUPPORT,POSTAGES,5902488799,1000058640
01.10.2021,F & C S EXCLUDING CORPORATE BUDGETS,GRANT THORNTON UK LLP,"32,208.00",EXTERNAL AUDIT CORE FEES,PROFESSIONAL FEES,5902488710,1000058344
01.10.2021,HOUSING HRA,EMS EVENTS LTD,411.57,CAPITAL PS (HRA),CONSTRUCTION FEES  - EXTERNAL,5902488700,1000057494
01.10.2021,HOUSING HRA,EMS EVENTS LTD,431.37,CAPITAL PS (HRA),CONSTRUCTION FEES  - EXTERNAL,5902488702,1000057494
01.10.2021,HOUSING HRA,EMS EVENTS LTD,431.37,CAPITAL PS (HRA),CONSTRUCTION FEES  - EXTERNAL,5902488705,1000057494
01.10.2021,HOUSING HRA,AJMADAPTIONS LTD,"8,602.00",CAPITAL PS (HRA),CONST'N MAIN CONTRACT - NON CERTIFICATED,2103327156,3000002056
01.10.2021,HOUSING HRA,GUILDMORE LTD,"73,670.96",CAPITAL PS (REGEN),CONSTRUCTION FEES,2103327137,3000002150
01.10.2021,HOUSING HRA,GUILDMORE LTD,"76,764.74",CAPITAL PS (REGEN),CONSTRUCTION FEES,2103327157,3000002150
01.10.2021,HOUSING HRA,GUILDMORE LTD,"151,386.42",CAPITAL PS (REGEN),CONSTRUCTION FEES,2103327137,3000002150
01.10.2021,HOUSING HRA,GUILDMORE LTD,"206,266.99",CAPITAL PS (REGEN),CONSTRUCTION FEES,2103327157,3000002150
01.10.2021,PLANNING AND TRANSPORT,LAND USE CONSULTANTS LTD,370,STRATEGIC APPLICATIONS,PROFESSIONAL FEES,5902488802,11132526
01.10.2021,PUBLIC HEALTH,CITY HOPE CHURCH,"2,348.00",PLACE & HEALTH IMPROVEMENT,EXTERNAL AGENCIES AND BODIES,5902488501,1000035253
01.10.2021,REGENERATION,STANBURY BUILDING SERVICES LTD,890,VCS MANAGED MSC BUILDILNGS,BUILDING R&M,5902489226,1000078207
01.10.2021,RESIDENT SERVICES HGF,EMMA MARINOS COACHING LIMITED,"1,125.00",HOUSING OPTIONS,TRAINING,5902488479,1000086554
01.10.2021,RESIDENT SERVICES HGF,K3 PROPERTY MANAGEMENT LTD,504,NIGHTLY TA (NSC),EXTERNAL AGENCIES AND BODIES,5902488441,1000068219
02.10.2021,ADULT SOCIAL CARE,HUNTERSJOY LTD,670,ASW - PROFESSIONAL DEVELOPMENT,TRAINING,5902488578,1000077343
02.10.2021,ADULT SOCIAL CARE,HUNTERSJOY LTD,"1,340.00",ASW - PROFESSIONAL DEVELOPMENT,TRAINING,5902488576,1000077343
02.10.2021,ASSET MANAGEMENT HGF,MANUTAN UK LTD,259,160 TOOLEY ST.,EQUIPMENT PURCHASE & REPAIR,5902488711,1000005003
02.10.2021,CHIEF EXECUTIVE,POTTER RAPER LTD,"5,778.56",CAPITAL PS (REGEN),CONSTRUCTION FEES,5902488652,1009369
02.10.2021,CHILDREN AND FAMILIES,RELA SUPPORT SERVICES LTD,"1,215.90",SEMI-IND LAC 16-17,OTHER PAYMENTS FOR CLIENTS,5902488785,1000073128
02.10.2021,CHILDREN AND FAMILIES,PURLEY LANGUAGE COLLEGE,392,TEAM D,OTHER PAYMENTS FOR CLIENTS,5902488758,1000087185
02.10.2021,DSG,THE SEAL COMMUNITY C.I.C,500,WELLBEING OF EDUCATION,SUBSCRIPTIONS,5902488487,1000075945
02.10.2021,ENV&LEISURE,RATHBONE ADVERTISING LTD,"5,000.00",COVID-19 TEST & TRACE SUPPORT GRANT,MARKETING & PUBLICITY SERVICES,5902488677,1000086971
02.10.2021,ENVIRONMENT DIRECTORATE,LANDSCAPE SUPPLY COMPANY,379.7,GROUNDS MAINTENANCE - GENERAL,EQUIPMENT PURCHASE & REPAIR,5902488566,1000051937
02.10.2021,F & C S EXCLUDING CORPORATE BUDGETS,DSI BILLING SERVICES LTD,"2,787.56",ADMINISTRATIVE SUPPORT,POSTAGES,5902488717,1000058640
02.10.2021,HOUSING,NEILCOTT SPECIAL WORKS LTD,"5,824.06",CAPITAL PS (HRA),COVID 19 SUPPLIER RELIEF,2103325122,3000000770
02.10.2021,HOUSING GENERAL FUND,ASBESTOS SOLUTIONS LIMITED,"1,500.00",CAPITAL PS (REGEN),CONSTRUCTION MAIN CONTRACT,2103326452,3000002114
02.10.2021,HOUSING HRA,POTTER RAPER LTD,"31,329.89",CAPITAL PS (HRA),CONSTRUCTION FEES  - EXTERNAL,5902489004,1009369
02.10.2021,HOUSING HRA,NEILCOTT SPECIAL WORKS LTD,"139,135.24",CAPITAL PS (HRA),CONSTRUCTION MAIN CONTRACT -CERTIFICATED,2103325122,3000000770
02.10.2021,HOUSING HRA,MONTAGU EVANS LLP,"4,350.00",CAPITAL PS (REGEN),CONSTRUCTION FEES  - EXTERNAL,5902489074,1000073283
02.10.2021,LEISURE DIRECTORATE,FIGHT FOR CHANGE FOUNDATION,320,COMMUNITY SPORTS DEVELOPMENT,GRANTS,5902488584,1000064516
02.10.2021,LEISURE DIRECTORATE,THE SECRET GARDEN,360.37,CREMATORIUM,GROUNDS MAINTENANCE,5902488588,1000067627
02.10.2021,LEISURE DIRECTORATE,LUNA COMMERCIAL FURNITURE LTD,"2,812.50",FACILITIES MAINTENANCE,BUILDING R&M,5902488988,1000087323
03.10.2021,ASSET MANAGEMENT,RELIANCE HIGH-TECH LTD,743,REPAIRS OPERATIONS,OFFICE EXPENSES,5902489285,1000079374
03.10.2021,CENTRAL FUNCTIONS,BRESLIN CONSTRUCTION LTD,"3,890.00",COMMERCIAL PROPERTIES,BUILDING R&M,2103327136,3000001948
03.10.2021,CENTRAL FUNCTIONS,STANBURY BUILDING SERVICES LTD,"6,750.00",COMMERCIAL PROPERTIES,BUILDING R&M,2103327371,3000001967
03.10.2021,CUSTOMER EXPERIENCE HGF,TUNSTALL HEALTHCARE (UK) LTD,816,SMART MOBILE RESPONSE TEAM,EQUIPMENT PURCHASE & REPAIR,5902488872,1012297
03.10.2021,EDUCATION,JOHN GUEST SAFEGUARDING LIMITED,325,GOVERNOR SUPPORT,CONSULTANTS SERVICES,5902488794,1000065465
03.10.2021,EDUCATION,UNIVERSITY OF KENT,"9,250.00",SCHOLARSHIP SCHEME,EXTERNAL AGENCIES AND BODIES,5902489358,1000047022
03.10.2021,ENVIRONMENT AND LEISURE,F M CONWAY LTD,"8,118.00",CAPITAL PS (LEISURE),CONSTRUCTION,2103326451,4001384
03.10.2021,ENVIRONMENT AND LEISURE,F M CONWAY LTD,"36,882.00",CAPITAL PS (LEISURE),CONSTRUCTION,2103326451,4001384
03.10.2021,ENVIRONMENT DIRECTORATE,F M CONWAY LTD,"283,894.72",HIGHWAY MAINTENANCE OVERHEADS,HIGHWAYS TERM CONTRACT,2103325120,4001384
03.10.2021,F & C S EXCLUDING CORPORATE BUDGETS,MRO PEOPLE LTD,850,ADMINISTRATIVE SUPPORT,TRAINING,5902489010,1000083017
03.10.2021,F & C S EXCLUDING CORPORATE BUDGETS,CIPFA BUSINESS LTD,350,PROCUREMENT ADVICE TEAM,TRAINING,5902488788,1000024688
03.10.2021,HOUSING,SPOKEMEAD MAINTENANCE LTD,"187,883.75",PAYMENTS CONTROL ACCOUNT - SPOKEMEAD,I-WORLD CONTRACTORS HOLDING ACCOUNT,5902488601,1000059211
03.10.2021,HOUSING HRA,ENGIE REGENERATION (APOLLO) LTD,"493,897.75",CAPITAL PS (HRA),CONSTRUCTION MAIN CONTRACT -CERTIFICATED,2103326450,4000449
03.10.2021,HOUSING HRA,HCUK GROUP LIMITED,261.88,CAPITAL PS (HRA),CONSTRUCTION FEES  - EXTERNAL,5902489346,1000086607
03.10.2021,HOUSING HRA,HCUK GROUP LIMITED,261.88,CAPITAL PS (HRA),PLANNING & S106 FEES,5902489344,1000086607
03.10.2021,HOUSING HRA,FAITHFUL & GOULD,"8,249.43",CAPITAL PS (REGEN),CONSTRUCTION FEES - EMPLOYERS AGENT,5902488695,1000061390
03.10.2021,HOUSING HRA,FAITHFUL & GOULD,"8,249.44",CAPITAL PS (REGEN),CONSTRUCTION FEES - EMPLOYERS AGENT,5902488695,1000061390
03.10.2021,LEISURE DIRECTORATE,FOUNTAINS & FEATURES LTD,460,PARKS SERVICES DEVELOPMENT,PROFESSIONAL FEES,5902488740,1000082729
03.10.2021,PUBLIC HEALTH,COMUZI LTD,"1,750.00",HEALTH CHECKS CONTRACTS,EXTERNAL AGENCIES AND BODIES,5902488944,1000084003
03.10.2021,PUBLIC HEALTH,COMUZI LTD,"19,125.00",HEALTH CHECKS CONTRACTS,EXTERNAL AGENCIES AND BODIES,5902488944,1000084003
03.10.2021,PUBLIC HEALTH,THE COLLEGE OF CONTEMPORARY HEALTH,921.6,HEALTHY WEIGHT,EXTERNAL AGENCIES AND BODIES,5902488709,1000080685
03.10.2021,PUBLIC HEALTH,BURGESS SPORTS,"10,065.00",PLACE & HEALTH IMPROVEMENT,EXTERNAL AGENCIES AND BODIES,5902489055,1000069532
03.10.2021,RESIDENT SERVICES,RELIANCE HIGH-TECH LTD,"1,787.81",OPERATIONS/OFFICES ACCOMMODATION,OFFICE EXPENSES,5902489285,1000079374
04.10.2021,ADULT SOCIAL CARE,REDACTED PERSONAL DATA,279.85,APPOINTEESHIPS,OTHER PAYMENTS FOR CLIENTS,REDACTED,REDACTED
04.10.2021,ADULT SOCIAL CARE,LEE PARKHILL,"4,000.00",DIR OF ASC,LEGAL FEES & COURT COSTS,2103327438,1000084161
04.10.2021,ADULT SOCIAL CARE,SUPREME CARE SERVICES LTD,601.73,DISCHARGE TO ACCESS,HOMECARE - C&V,2103327611,1000059416
04.10.2021,ADULT SOCIAL CARE,SUPREME CARE SERVICES LTD,"2,768.18",DISCHARGE TO ACCESS,HOMECARE - C&V,2103327607,1000059416
04.10.2021,ADULT SOCIAL CARE,SUPREME CARE SERVICES LTD,431.52,LD LTS 18-64,HOMECARE - C&V,2103327557,1000059416
04.10.2021,ADULT SOCIAL CARE,SUPREME CARE SERVICES LTD,852.51,LD LTS 18-64,HOMECARE - C&V,2103327527,1000059416
04.10.2021,ADULT SOCIAL CARE,OUT AND ABOUT COMMUNITY SERVICES,340,LD LTS 18-64,DAYCARE,2103327466,1000078603
04.10.2021,ADULT SOCIAL CARE,OUT AND ABOUT COMMUNITY SERVICES,340,LD LTS 18-64,DAYCARE,2103327467,1000078603
04.10.2021,ADULT SOCIAL CARE,OUT AND ABOUT COMMUNITY SERVICES,782,LD LTS 18-64,DAYCARE,2103327465,1000078603
04.10.2021,ADULT SOCIAL CARE,SUPREME CARE SERVICES LTD,678.76,LD LTS 65+,HOMECARE - C&V,2103327827,1000059416
04.10.2021,ADULT SOCIAL CARE,SUPREME CARE SERVICES LTD,934.96,LD LTS 65+,HOMECARE - C&V,2103327847,1000059416
04.10.2021,ADULT SOCIAL CARE,SUPREME CARE SERVICES LTD,"1,006.89",LD LTS 65+,HOMECARE - C&V,2103327523,1000059416
04.10.2021,ADULT SOCIAL CARE,SUPREME CARE SERVICES LTD,413.62,MEM LTS 18-64,HOMECARE - C&V,2103327679,1000059416
04.10.2021,ADULT SOCIAL CARE,SUPREME CARE SERVICES LTD,437.07,MEM LTS 18-64,HOMECARE - C&V,2103327583,1000059416
04.10.2021,ADULT SOCIAL CARE,SUPREME CARE SERVICES LTD,264,MEM LTS 65+,HOMECARE - C&V,2103327563,1000059416
04.10.2021,ADULT SOCIAL CARE,SUPREME CARE SERVICES LTD,307.17,MEM LTS 65+,HOMECARE - C&V,2103327786,1000059416
04.10.2021,ADULT SOCIAL CARE,SUPREME CARE SERVICES LTD,339.82,MEM LTS 65+,HOMECARE - C&V,2103327676,1000059416
04.10.2021,ADULT SOCIAL CARE,SUPREME CARE SERVICES LTD,437.07,MEM LTS 65+,HOMECARE - C&V,2103327584,1000059416
04.10.2021,ADULT SOCIAL CARE,SUPREME CARE SERVICES LTD,490.45,MEM LTS 65+,HOMECARE - C&V,2103327859,1000059416
04.10.2021,ADULT SOCIAL CARE,SUPREME CARE SERVICES LTD,606.87,MEM LTS 65+,HOMECARE - C&V,2103327618,1000059416
04.10.2021,ADULT SOCIAL CARE,SUPREME CARE SERVICES LTD,613.86,MEM LTS 65+,HOMECARE - C&V,2103327481,1000059416
04.10.2021,ADULT SOCIAL CARE,SUPREME CARE SERVICES LTD,861.61,MEM LTS 65+,HOMECARE - C&V,2103327763,1000059416
04.10.2021,ADULT SOCIAL CARE,SUPREME CARE SERVICES LTD,"1,078.91",MEM LTS 65+,HOMECARE - C&V,2103327860,1000059416
04.10.2021,ADULT SOCIAL CARE,SUPREME CARE SERVICES LTD,"2,292.78",MEM LTS 65+,HOMECARE - C&V,2103327601,1000059416
04.10.2021,ADULT SOCIAL CARE,SUPREME CARE SERVICES LTD,"2,332.96",MEM LTS 65+,HOMECARE - C&V,2103327656,1000059416
04.10.2021,ADULT SOCIAL CARE,SUPREME CARE SERVICES LTD,"3,295.06",MEM LTS 65+,HOMECARE - C&V,2103327493,1000059416
04.10.2021,ADULT SOCIAL CARE,SUPREME CARE SERVICES LTD,277.2,MEM STS 65+,HOMECARE - IC,2103327562,1000059416
04.10.2021,ADULT SOCIAL CARE,SUPREME CARE SERVICES LTD,251.72,MH LTS 18-64,HOMECARE - C&V,2103327868,1000059416
04.10.2021,ADULT SOCIAL CARE,SUPREME CARE SERVICES LTD,289.25,MH LTS 18-64,HOMECARE - C&V,2103327792,1000059416
04.10.2021,ADULT SOCIAL CARE,SUPREME CARE SERVICES LTD,293.37,MH LTS 18-64,HOMECARE - C&V,2103327689,1000059416
04.10.2021,ADULT SOCIAL CARE,SUPREME CARE SERVICES LTD,431.52,MH LTS 18-64,HOMECARE - C&V,2103327573,1000059416
04.10.2021,ADULT SOCIAL CARE,SUPREME CARE SERVICES LTD,494.48,MH LTS 18-64,HOMECARE - C&V,2103327846,1000059416
04.10.2021,ADULT SOCIAL CARE,SUPREME CARE SERVICES LTD,643.63,MH LTS 18-64,HOMECARE - C&V,2103327495,1000059416
04.10.2021,ADULT SOCIAL CARE,SUPREME CARE SERVICES LTD,777.69,MH LTS 18-64,HOMECARE - C&V,2103327711,1000059416
04.10.2021,ADULT SOCIAL CARE,SUPREME CARE SERVICES LTD,981.32,MH LTS 18-64,HOMECARE - C&V,2103327856,1000059416
04.10.2021,ADULT SOCIAL CARE,SUPREME CARE SERVICES LTD,310.2,MH LTS 65+,HOMECARE - C&V,2103327698,1000059416
04.10.2021,ADULT SOCIAL CARE,SUPREME CARE SERVICES LTD,460.35,MH LTS 65+,HOMECARE - C&V,2103327813,1000059416
04.10.2021,ADULT SOCIAL CARE,SUPREME CARE SERVICES LTD,501.64,MH LTS 65+,HOMECARE - C&V,2103327721,1000059416
04.10.2021,ADULT SOCIAL CARE,SUPREME CARE SERVICES LTD,545.6,MH LTS 65+,HOMECARE - C&V,2103327499,1000059416
04.10.2021,ADULT SOCIAL CARE,SUPREME CARE SERVICES LTD,782.27,MH LTS 65+,HOMECARE - C&V,2103327672,1000059416
04.10.2021,ADULT SOCIAL CARE,AGE UK LEWISHAM & SOUTHWARK,"272,201.50",OLDER PEOPLES HUBS,EXTERNAL AGENCIES AND BODIES,5902489590,1507154
04.10.2021,ADULT SOCIAL CARE,SUPREME CARE SERVICES LTD,251.72,PHY LTS 18-64,HOMECARE - C&V,2103327622,1000059416
04.10.2021,ADULT SOCIAL CARE,SUPREME CARE SERVICES LTD,256.22,PHY LTS 18-64,HOMECARE - C&V,2103327768,1000059416
04.10.2021,ADULT SOCIAL CARE,SUPREME CARE SERVICES LTD,256.31,PHY LTS 18-64,HOMECARE - C&V,2103327498,1000059416
04.10.2021,ADULT SOCIAL CARE,SUPREME CARE SERVICES LTD,260.01,PHY LTS 18-64,HOMECARE - C&V,2103327852,1000059416
04.10.2021,ADULT SOCIAL CARE,SUPREME CARE SERVICES LTD,287.68,PHY LTS 18-64,HOMECARE - C&V,2103327829,1000059416
04.10.2021,ADULT SOCIAL CARE,SUPREME CARE SERVICES LTD,287.78,PHY LTS 18-64,HOMECARE - C&V,2103327535,1000059416
04.10.2021,ADULT SOCIAL CARE,SUPREME CARE SERVICES LTD,301.24,PHY LTS 18-64,HOMECARE - C&V,2103327764,1000059416
04.10.2021,ADULT SOCIAL CARE,SUPREME CARE SERVICES LTD,319.25,PHY LTS 18-64,HOMECARE - C&V,2103327716,1000059416
04.10.2021,ADULT SOCIAL CARE,SUPREME CARE SERVICES LTD,323.64,PHY LTS 18-64,HOMECARE - C&V,2103327746,1000059416
04.10.2021,ADULT SOCIAL CARE,SUPREME CARE SERVICES LTD,379.42,PHY LTS 18-64,HOMECARE - C&V,2103327582,1000059416
04.10.2021,ADULT SOCIAL CARE,SUPREME CARE SERVICES LTD,379.49,PHY LTS 18-64,HOMECARE - C&V,2103327569,1000059416
04.10.2021,ADULT SOCIAL CARE,SUPREME CARE SERVICES LTD,379.53,PHY LTS 18-64,HOMECARE - C&V,2103327855,1000059416
04.10.2021,ADULT SOCIAL CARE,SUPREME CARE SERVICES LTD,386.7,PHY LTS 18-64,HOMECARE - C&V,2103327616,1000059416
04.10.2021,ADULT SOCIAL CARE,SUPREME CARE SERVICES LTD,386.7,PHY LTS 18-64,HOMECARE - C&V,2103327653,1000059416
04.10.2021,ADULT SOCIAL CARE,SUPREME CARE SERVICES LTD,388.38,PHY LTS 18-64,HOMECARE - C&V,2103327854,1000059416
04.10.2021,ADULT SOCIAL CARE,SUPREME CARE SERVICES LTD,405.15,PHY LTS 18-64,HOMECARE - C&V,2103327550,1000059416
04.10.2021,ADULT SOCIAL CARE,SUPREME CARE SERVICES LTD,413.53,PHY LTS 18-64,HOMECARE - C&V,2103327515,1000059416
04.10.2021,ADULT SOCIAL CARE,SUPREME CARE SERVICES LTD,417.64,PHY LTS 18-64,HOMECARE - C&V,2103327805,1000059416
04.10.2021,ADULT SOCIAL CARE,SUPREME CARE SERVICES LTD,436.14,PHY LTS 18-64,HOMECARE - C&V,2103327703,1000059416
04.10.2021,ADULT SOCIAL CARE,SUPREME CARE SERVICES LTD,454.03,PHY LTS 18-64,HOMECARE - C&V,2103327733,1000059416
04.10.2021,ADULT SOCIAL CARE,SUPREME CARE SERVICES LTD,550.09,PHY LTS 18-64,HOMECARE - C&V,2103327838,1000059416
04.10.2021,ADULT SOCIAL CARE,SUPREME CARE SERVICES LTD,562.8,PHY LTS 18-64,HOMECARE - C&V,2103327730,1000059416
04.10.2021,ADULT SOCIAL CARE,SUPREME CARE SERVICES LTD,579.8,PHY LTS 18-64,HOMECARE - C&V,2103327508,1000059416
04.10.2021,ADULT SOCIAL CARE,SUPREME CARE SERVICES LTD,597.18,PHY LTS 18-64,HOMECARE - C&V,2103327851,1000059416
04.10.2021,ADULT SOCIAL CARE,SUPREME CARE SERVICES LTD,612.86,PHY LTS 18-64,HOMECARE - C&V,2103327643,1000059416
04.10.2021,ADULT SOCIAL CARE,SUPREME CARE SERVICES LTD,626.4,PHY LTS 18-64,HOMECARE - C&V,2103327491,1000059416
04.10.2021,ADULT SOCIAL CARE,SUPREME CARE SERVICES LTD,631.04,PHY LTS 18-64,HOMECARE - C&V,2103327510,1000059416
04.10.2021,ADULT SOCIAL CARE,SUPREME CARE SERVICES LTD,633.94,PHY LTS 18-64,HOMECARE - C&V,2103327597,1000059416
04.10.2021,ADULT SOCIAL CARE,SUPREME CARE SERVICES LTD,649.68,PHY LTS 18-64,HOMECARE - C&V,2103327668,1000059416
04.10.2021,ADULT SOCIAL CARE,SUPREME CARE SERVICES LTD,687.84,PHY LTS 18-64,HOMECARE - C&V,2103327581,1000059416
04.10.2021,ADULT SOCIAL CARE,SUPREME CARE SERVICES LTD,710.35,PHY LTS 18-64,HOMECARE - C&V,2103327742,1000059416
04.10.2021,ADULT SOCIAL CARE,SUPREME CARE SERVICES LTD,741.82,PHY LTS 18-64,HOMECARE - C&V,2103327612,1000059416
04.10.2021,ADULT SOCIAL CARE,SUPREME CARE SERVICES LTD,795.74,PHY LTS 18-64,HOMECARE - C&V,2103327549,1000059416
04.10.2021,ADULT SOCIAL CARE,SUPREME CARE SERVICES LTD,854.35,PHY LTS 18-64,HOMECARE - C&V,2103327633,1000059416
04.10.2021,ADULT SOCIAL CARE,SUPREME CARE SERVICES LTD,876.61,PHY LTS 18-64,HOMECARE - C&V,2103327751,1000059416
04.10.2021,ADULT SOCIAL CARE,SUPREME CARE SERVICES LTD,885.66,PHY LTS 18-64,HOMECARE - C&V,2103327591,1000059416
04.10.2021,ADULT SOCIAL CARE,SUPREME CARE SERVICES LTD,892.75,PHY LTS 18-64,HOMECARE - C&V,2103327725,1000059416
04.10.2021,ADULT SOCIAL CARE,SUPREME CARE SERVICES LTD,894.63,PHY LTS 18-64,HOMECARE - C&V,2103327802,1000059416
04.10.2021,ADULT SOCIAL CARE,SUPREME CARE SERVICES LTD,912.23,PHY LTS 18-64,HOMECARE - C&V,2103327830,1000059416
04.10.2021,ADULT SOCIAL CARE,SUPREME CARE SERVICES LTD,912.66,PHY LTS 18-64,HOMECARE - C&V,2103327486,1000059416
04.10.2021,ADULT SOCIAL CARE,SUPREME CARE SERVICES LTD,916.15,PHY LTS 18-64,HOMECARE - C&V,2103327688,1000059416
04.10.2021,ADULT SOCIAL CARE,SUPREME CARE SERVICES LTD,931.16,PHY LTS 18-64,HOMECARE - C&V,2103327482,1000059416
04.10.2021,ADULT SOCIAL CARE,SUPREME CARE SERVICES LTD,935.1,PHY LTS 18-64,HOMECARE - C&V,2103327484,1000059416
04.10.2021,ADULT SOCIAL CARE,SUPREME CARE SERVICES LTD,935.1,PHY LTS 18-64,HOMECARE - C&V,2103327560,1000059416
04.10.2021,ADULT SOCIAL CARE,SUPREME CARE SERVICES LTD,942.28,PHY LTS 18-64,HOMECARE - C&V,2103327858,1000059416
04.10.2021,ADULT SOCIAL CARE,SUPREME CARE SERVICES LTD,957.59,PHY LTS 18-64,HOMECARE - C&V,2103327540,1000059416
04.10.2021,ADULT SOCIAL CARE,SUPREME CARE SERVICES LTD,964.49,PHY LTS 18-64,HOMECARE - C&V,2103327801,1000059416
04.10.2021,ADULT SOCIAL CARE,SUPREME CARE SERVICES LTD,977,PHY LTS 18-64,HOMECARE - C&V,2103327654,1000059416
04.10.2021,ADULT SOCIAL CARE,SUPREME CARE SERVICES LTD,980.64,PHY LTS 18-64,HOMECARE - C&V,2103327839,1000059416
04.10.2021,ADULT SOCIAL CARE,SUPREME CARE SERVICES LTD,"1,007.07",PHY LTS 18-64,HOMECARE - C&V,2103327644,1000059416
04.10.2021,ADULT SOCIAL CARE,SUPREME CARE SERVICES LTD,"1,033.90",PHY LTS 18-64,HOMECARE - C&V,2103327501,1000059416
04.10.2021,ADULT SOCIAL CARE,SUPREME CARE SERVICES LTD,"1,047.37",PHY LTS 18-64,HOMECARE - C&V,2103327896,1000059416
04.10.2021,ADULT SOCIAL CARE,SUPREME CARE SERVICES LTD,"1,083.39",PHY LTS 18-64,HOMECARE - C&V,2103327758,1000059416
04.10.2021,ADULT SOCIAL CARE,SUPREME CARE SERVICES LTD,"1,086.70",PHY LTS 18-64,HOMECARE - C&V,2103327762,1000059416
04.10.2021,ADULT SOCIAL CARE,SUPREME CARE SERVICES LTD,"1,114.76",PHY LTS 18-64,HOMECARE - C&V,2103327702,1000059416
04.10.2021,ADULT SOCIAL CARE,SUPREME CARE SERVICES LTD,"1,122.01",PHY LTS 18-64,HOMECARE - C&V,2103327592,1000059416
04.10.2021,ADULT SOCIAL CARE,SUPREME CARE SERVICES LTD,"1,176.88",PHY LTS 18-64,HOMECARE - C&V,2103327489,1000059416
04.10.2021,ADULT SOCIAL CARE,SUPREME CARE SERVICES LTD,"1,290.24",PHY LTS 18-64,HOMECARE - C&V,2103327576,1000059416
04.10.2021,ADULT SOCIAL CARE,SUPREME CARE SERVICES LTD,"1,364.33",PHY LTS 18-64,HOMECARE - C&V,2103327902,1000059416
04.10.2021,ADULT SOCIAL CARE,SUPREME CARE SERVICES LTD,"1,390.44",PHY LTS 18-64,HOMECARE - C&V,2103327850,1000059416
04.10.2021,ADULT SOCIAL CARE,SUPREME CARE SERVICES LTD,"1,398.74",PHY LTS 18-64,HOMECARE - C&V,2103327832,1000059416
04.10.2021,ADULT SOCIAL CARE,SUPREME CARE SERVICES LTD,"1,609.21",PHY LTS 18-64,HOMECARE - C&V,2103327705,1000059416
04.10.2021,ADULT SOCIAL CARE,SUPREME CARE SERVICES LTD,"1,676.93",PHY LTS 18-64,HOMECARE - C&V,2103327776,1000059416
04.10.2021,ADULT SOCIAL CARE,SUPREME CARE SERVICES LTD,"2,036.27",PHY LTS 18-64,HOMECARE - C&V,2103327712,1000059416
04.10.2021,ADULT SOCIAL CARE,SUPREME CARE SERVICES LTD,"2,152.74",PHY LTS 18-64,HOMECARE - C&V,2103327558,1000059416
04.10.2021,ADULT SOCIAL CARE,SUPREME CARE SERVICES LTD,"2,310.76",PHY LTS 18-64,HOMECARE - C&V,2103327682,1000059416
04.10.2021,ADULT SOCIAL CARE,SUPREME CARE SERVICES LTD,"2,854.75",PHY LTS 18-64,HOMECARE - C&V,2103327529,1000059416
04.10.2021,ADULT SOCIAL CARE,SUPREME CARE SERVICES LTD,"3,014.90",PHY LTS 18-64,HOMECARE - C&V,2103327885,1000059416
04.10.2021,ADULT SOCIAL CARE,SUPREME CARE SERVICES LTD,"3,653.07",PHY LTS 18-64,HOMECARE - C&V,2103327555,1000059416
04.10.2021,ADULT SOCIAL CARE,SUPREME CARE SERVICES LTD,"3,718.19",PHY LTS 18-64,HOMECARE - C&V,2103327913,1000059416
04.10.2021,ADULT SOCIAL CARE,SUPREME CARE SERVICES LTD,252.32,PHY LTS 65+,HOMECARE - C&V,2103327915,1000059416
04.10.2021,ADULT SOCIAL CARE,SUPREME CARE SERVICES LTD,256.22,PHY LTS 65+,HOMECARE - C&V,2103327736,1000059416
04.10.2021,ADULT SOCIAL CARE,SUPREME CARE SERVICES LTD,256.23,PHY LTS 65+,HOMECARE - C&V,2103327774,1000059416
04.10.2021,ADULT SOCIAL CARE,SUPREME CARE SERVICES LTD,260.72,PHY LTS 65+,HOMECARE - C&V,2103327655,1000059416
04.10.2021,ADULT SOCIAL CARE,SUPREME CARE SERVICES LTD,263.43,PHY LTS 65+,HOMECARE - C&V,2103327724,1000059416
04.10.2021,ADULT SOCIAL CARE,SUPREME CARE SERVICES LTD,265.22,PHY LTS 65+,HOMECARE - C&V,2103327580,1000059416
04.10.2021,ADULT SOCIAL CARE,SUPREME CARE SERVICES LTD,269.8,PHY LTS 65+,HOMECARE - C&V,2103327833,1000059416
04.10.2021,ADULT SOCIAL CARE,SUPREME CARE SERVICES LTD,274.22,PHY LTS 65+,HOMECARE - C&V,2103327511,1000059416
04.10.2021,ADULT SOCIAL CARE,SUPREME CARE SERVICES LTD,274.26,PHY LTS 65+,HOMECARE - C&V,2103327684,1000059416
04.10.2021,ADULT SOCIAL CARE,SUPREME CARE SERVICES LTD,283.97,PHY LTS 65+,HOMECARE - C&V,2103327821,1000059416
04.10.2021,ADULT SOCIAL CARE,SUPREME CARE SERVICES LTD,287.68,PHY LTS 65+,HOMECARE - C&V,2103327866,1000059416
04.10.2021,ADULT SOCIAL CARE,SUPREME CARE SERVICES LTD,289.97,PHY LTS 65+,HOMECARE - C&V,2103327526,1000059416
04.10.2021,ADULT SOCIAL CARE,SUPREME CARE SERVICES LTD,291.04,PHY LTS 65+,HOMECARE - C&V,2103327880,1000059416
04.10.2021,ADULT SOCIAL CARE,SUPREME CARE SERVICES LTD,292.11,PHY LTS 65+,HOMECARE - C&V,2103327546,1000059416
04.10.2021,ADULT SOCIAL CARE,SUPREME CARE SERVICES LTD,300.65,PHY LTS 65+,HOMECARE - C&V,2103327907,1000059416
04.10.2021,ADULT SOCIAL CARE,SUPREME CARE SERVICES LTD,301.22,PHY LTS 65+,HOMECARE - C&V,2103327782,1000059416
04.10.2021,ADULT SOCIAL CARE,SUPREME CARE SERVICES LTD,310.21,PHY LTS 65+,HOMECARE - C&V,2103327738,1000059416
04.10.2021,ADULT SOCIAL CARE,SUPREME CARE SERVICES LTD,311.67,PHY LTS 65+,HOMECARE - C&V,2103327599,1000059416
04.10.2021,ADULT SOCIAL CARE,SUPREME CARE SERVICES LTD,323.75,PHY LTS 65+,HOMECARE - C&V,2103327709,1000059416
04.10.2021,ADULT SOCIAL CARE,SUPREME CARE SERVICES LTD,332.55,PHY LTS 65+,HOMECARE - C&V,2103327883,1000059416
04.10.2021,ADULT SOCIAL CARE,SUPREME CARE SERVICES LTD,332.7,PHY LTS 65+,HOMECARE - C&V,2103327761,1000059416
04.10.2021,ADULT SOCIAL CARE,SUPREME CARE SERVICES LTD,336.84,PHY LTS 65+,HOMECARE - C&V,2103327570,1000059416
04.10.2021,ADULT SOCIAL CARE,SUPREME CARE SERVICES LTD,337.23,PHY LTS 65+,HOMECARE - C&V,2103327605,1000059416
04.10.2021,ADULT SOCIAL CARE,SUPREME CARE SERVICES LTD,345.4,PHY LTS 65+,HOMECARE - C&V,2103327593,1000059416
04.10.2021,ADULT SOCIAL CARE,SUPREME CARE SERVICES LTD,346.13,PHY LTS 65+,HOMECARE - C&V,2103327658,1000059416
04.10.2021,ADULT SOCIAL CARE,SUPREME CARE SERVICES LTD,350.64,PHY LTS 65+,HOMECARE - C&V,2103327678,1000059416
04.10.2021,ADULT SOCIAL CARE,SUPREME CARE SERVICES LTD,353.85,PHY LTS 65+,HOMECARE - C&V,2103327844,1000059416
04.10.2021,ADULT SOCIAL CARE,SUPREME CARE SERVICES LTD,355.18,PHY LTS 65+,HOMECARE - C&V,2103327884,1000059416
04.10.2021,ADULT SOCIAL CARE,SUPREME CARE SERVICES LTD,360.52,PHY LTS 65+,HOMECARE - C&V,2103327723,1000059416
04.10.2021,ADULT SOCIAL CARE,SUPREME CARE SERVICES LTD,364.17,PHY LTS 65+,HOMECARE - C&V,2103327542,1000059416
04.10.2021,ADULT SOCIAL CARE,SUPREME CARE SERVICES LTD,375.16,PHY LTS 65+,HOMECARE - C&V,2103327862,1000059416
04.10.2021,ADULT SOCIAL CARE,SUPREME CARE SERVICES LTD,377.61,PHY LTS 65+,HOMECARE - C&V,2103327671,1000059416
04.10.2021,ADULT SOCIAL CARE,SUPREME CARE SERVICES LTD,379.1,PHY LTS 65+,HOMECARE - C&V,2103327749,1000059416
04.10.2021,ADULT SOCIAL CARE,SUPREME CARE SERVICES LTD,391.13,PHY LTS 65+,HOMECARE - C&V,2103327626,1000059416
04.10.2021,ADULT SOCIAL CARE,SUPREME CARE SERVICES LTD,400.06,PHY LTS 65+,HOMECARE - C&V,2103327596,1000059416
04.10.2021,ADULT SOCIAL CARE,SUPREME CARE SERVICES LTD,422.05,PHY LTS 65+,HOMECARE - C&V,2103327541,1000059416
04.10.2021,ADULT SOCIAL CARE,SUPREME CARE SERVICES LTD,422.56,PHY LTS 65+,HOMECARE - C&V,2103327674,1000059416
04.10.2021,ADULT SOCIAL CARE,SUPREME CARE SERVICES LTD,423.76,PHY LTS 65+,HOMECARE - C&V,2103327760,1000059416
04.10.2021,ADULT SOCIAL CARE,SUPREME CARE SERVICES LTD,429.52,PHY LTS 65+,HOMECARE - C&V,2103327706,1000059416
04.10.2021,ADULT SOCIAL CARE,SUPREME CARE SERVICES LTD,435.55,PHY LTS 65+,HOMECARE - C&V,2103327551,1000059416
04.10.2021,ADULT SOCIAL CARE,SUPREME CARE SERVICES LTD,438.11,PHY LTS 65+,HOMECARE - C&V,2103327714,1000059416
04.10.2021,ADULT SOCIAL CARE,SUPREME CARE SERVICES LTD,440.6,PHY LTS 65+,HOMECARE - C&V,2103327811,1000059416
04.10.2021,ADULT SOCIAL CARE,SUPREME CARE SERVICES LTD,442.64,PHY LTS 65+,HOMECARE - C&V,2103327696,1000059416
04.10.2021,ADULT SOCIAL CARE,SUPREME CARE SERVICES LTD,451.96,PHY LTS 65+,HOMECARE - C&V,2103327494,1000059416
04.10.2021,ADULT SOCIAL CARE,SUPREME CARE SERVICES LTD,456.17,PHY LTS 65+,HOMECARE - C&V,2103327615,1000059416
04.10.2021,ADULT SOCIAL CARE,SUPREME CARE SERVICES LTD,460.39,PHY LTS 65+,HOMECARE - C&V,2103327728,1000059416
04.10.2021,ADULT SOCIAL CARE,SUPREME CARE SERVICES LTD,464.72,PHY LTS 65+,HOMECARE - C&V,2103327578,1000059416
04.10.2021,ADULT SOCIAL CARE,SUPREME CARE SERVICES LTD,467.62,PHY LTS 65+,HOMECARE - C&V,2103327572,1000059416
04.10.2021,ADULT SOCIAL CARE,SUPREME CARE SERVICES LTD,489.07,PHY LTS 65+,HOMECARE - C&V,2103327710,1000059416
04.10.2021,ADULT SOCIAL CARE,SUPREME CARE SERVICES LTD,501.03,PHY LTS 65+,HOMECARE - C&V,2103327892,1000059416
04.10.2021,ADULT SOCIAL CARE,SUPREME CARE SERVICES LTD,503.44,PHY LTS 65+,HOMECARE - C&V,2103327816,1000059416
04.10.2021,ADULT SOCIAL CARE,SUPREME CARE SERVICES LTD,521.45,PHY LTS 65+,HOMECARE - C&V,2103327649,1000059416
04.10.2021,ADULT SOCIAL CARE,SUPREME CARE SERVICES LTD,521.9,PHY LTS 65+,HOMECARE - C&V,2103327819,1000059416
04.10.2021,ADULT SOCIAL CARE,SUPREME CARE SERVICES LTD,526.07,PHY LTS 65+,HOMECARE - C&V,2103327842,1000059416
04.10.2021,ADULT SOCIAL CARE,SUPREME CARE SERVICES LTD,539.42,PHY LTS 65+,HOMECARE - C&V,2103327553,1000059416
04.10.2021,ADULT SOCIAL CARE,SUPREME CARE SERVICES LTD,540.97,PHY LTS 65+,HOMECARE - C&V,2103327781,1000059416
04.10.2021,ADULT SOCIAL CARE,SUPREME CARE SERVICES LTD,544.01,PHY LTS 65+,HOMECARE - C&V,2103327773,1000059416
04.10.2021,ADULT SOCIAL CARE,SUPREME CARE SERVICES LTD,548.5,PHY LTS 65+,HOMECARE - C&V,2103327587,1000059416
04.10.2021,ADULT SOCIAL CARE,SUPREME CARE SERVICES LTD,552.96,PHY LTS 65+,HOMECARE - C&V,2103327691,1000059416
04.10.2021,ADULT SOCIAL CARE,SUPREME CARE SERVICES LTD,552.99,PHY LTS 65+,HOMECARE - C&V,2103327743,1000059416
04.10.2021,ADULT SOCIAL CARE,SUPREME CARE SERVICES LTD,562.18,PHY LTS 65+,HOMECARE - C&V,2103327793,1000059416
04.10.2021,ADULT SOCIAL CARE,SUPREME CARE SERVICES LTD,571.36,PHY LTS 65+,HOMECARE - C&V,2103327566,1000059416
04.10.2021,ADULT SOCIAL CARE,SUPREME CARE SERVICES LTD,575.08,PHY LTS 65+,HOMECARE - C&V,2103327727,1000059416
04.10.2021,ADULT SOCIAL CARE,SUPREME CARE SERVICES LTD,575.36,PHY LTS 65+,HOMECARE - C&V,2103327641,1000059416
04.10.2021,ADULT SOCIAL CARE,SUPREME CARE SERVICES LTD,575.44,PHY LTS 65+,HOMECARE - C&V,2103327784,1000059416
04.10.2021,ADULT SOCIAL CARE,SUPREME CARE SERVICES LTD,589.77,PHY LTS 65+,HOMECARE - C&V,2103327767,1000059416
04.10.2021,ADULT SOCIAL CARE,SUPREME CARE SERVICES LTD,595.14,PHY LTS 65+,HOMECARE - C&V,2103327694,1000059416
04.10.2021,ADULT SOCIAL CARE,SUPREME CARE SERVICES LTD,596.94,PHY LTS 65+,HOMECARE - C&V,2103327853,1000059416
04.10.2021,ADULT SOCIAL CARE,SUPREME CARE SERVICES LTD,611.5,PHY LTS 65+,HOMECARE - C&V,2103327757,1000059416
04.10.2021,ADULT SOCIAL CARE,SUPREME CARE SERVICES LTD,613.46,PHY LTS 65+,HOMECARE - C&V,2103327772,1000059416
04.10.2021,ADULT SOCIAL CARE,SUPREME CARE SERVICES LTD,614.05,PHY LTS 65+,HOMECARE - C&V,2103327600,1000059416
04.10.2021,ADULT SOCIAL CARE,SUPREME CARE SERVICES LTD,615.95,PHY LTS 65+,HOMECARE - C&V,2103327502,1000059416
04.10.2021,ADULT SOCIAL CARE,SUPREME CARE SERVICES LTD,617.64,PHY LTS 65+,HOMECARE - C&V,2103327606,1000059416
04.10.2021,ADULT SOCIAL CARE,SUPREME CARE SERVICES LTD,618.25,PHY LTS 65+,HOMECARE - C&V,2103327595,1000059416
04.10.2021,ADULT SOCIAL CARE,SUPREME CARE SERVICES LTD,622.05,PHY LTS 65+,HOMECARE - C&V,2103327904,1000059416
04.10.2021,ADULT SOCIAL CARE,SUPREME CARE SERVICES LTD,623.05,PHY LTS 65+,HOMECARE - C&V,2103327717,1000059416
04.10.2021,ADULT SOCIAL CARE,SUPREME CARE SERVICES LTD,633.9,PHY LTS 65+,HOMECARE - C&V,2103327603,1000059416
04.10.2021,ADULT SOCIAL CARE,SUPREME CARE SERVICES LTD,643.83,PHY LTS 65+,HOMECARE - C&V,2103327912,1000059416
04.10.2021,ADULT SOCIAL CARE,SUPREME CARE SERVICES LTD,651.91,PHY LTS 65+,HOMECARE - C&V,2103327497,1000059416
04.10.2021,ADULT SOCIAL CARE,SUPREME CARE SERVICES LTD,652.36,PHY LTS 65+,HOMECARE - C&V,2103327524,1000059416
04.10.2021,ADULT SOCIAL CARE,SUPREME CARE SERVICES LTD,656.39,PHY LTS 65+,HOMECARE - C&V,2103327677,1000059416
04.10.2021,ADULT SOCIAL CARE,SUPREME CARE SERVICES LTD,656.41,PHY LTS 65+,HOMECARE - C&V,2103327613,1000059416
04.10.2021,ADULT SOCIAL CARE,SUPREME CARE SERVICES LTD,665.38,PHY LTS 65+,HOMECARE - C&V,2103327517,1000059416
04.10.2021,ADULT SOCIAL CARE,SUPREME CARE SERVICES LTD,677.94,PHY LTS 65+,HOMECARE - C&V,2103327509,1000059416
04.10.2021,ADULT SOCIAL CARE,SUPREME CARE SERVICES LTD,677.94,PHY LTS 65+,HOMECARE - C&V,2103327869,1000059416
04.10.2021,ADULT SOCIAL CARE,SUPREME CARE SERVICES LTD,683.27,PHY LTS 65+,HOMECARE - C&V,2103327624,1000059416
04.10.2021,ADULT SOCIAL CARE,SUPREME CARE SERVICES LTD,683.33,PHY LTS 65+,HOMECARE - C&V,2103327629,1000059416
04.10.2021,ADULT SOCIAL CARE,SUPREME CARE SERVICES LTD,686.35,PHY LTS 65+,HOMECARE - C&V,2103327857,1000059416
04.10.2021,ADULT SOCIAL CARE,SUPREME CARE SERVICES LTD,692.36,PHY LTS 65+,HOMECARE - C&V,2103327704,1000059416
04.10.2021,ADULT SOCIAL CARE,SUPREME CARE SERVICES LTD,696.84,PHY LTS 65+,HOMECARE - C&V,2103327650,1000059416
04.10.2021,ADULT SOCIAL CARE,SUPREME CARE SERVICES LTD,696.84,PHY LTS 65+,HOMECARE - C&V,2103327707,1000059416
04.10.2021,ADULT SOCIAL CARE,SUPREME CARE SERVICES LTD,696.85,PHY LTS 65+,HOMECARE - C&V,2103327506,1000059416
04.10.2021,ADULT SOCIAL CARE,SUPREME CARE SERVICES LTD,700.89,PHY LTS 65+,HOMECARE - C&V,2103327522,1000059416
04.10.2021,ADULT SOCIAL CARE,SUPREME CARE SERVICES LTD,705.72,PHY LTS 65+,HOMECARE - C&V,2103327817,1000059416
04.10.2021,ADULT SOCIAL CARE,SUPREME CARE SERVICES LTD,705.73,PHY LTS 65+,HOMECARE - C&V,2103327518,1000059416
04.10.2021,ADULT SOCIAL CARE,SUPREME CARE SERVICES LTD,705.8,PHY LTS 65+,HOMECARE - C&V,2103327735,1000059416
04.10.2021,ADULT SOCIAL CARE,SUPREME CARE SERVICES LTD,707.62,PHY LTS 65+,HOMECARE - C&V,2103327640,1000059416
04.10.2021,ADULT SOCIAL CARE,SUPREME CARE SERVICES LTD,711.95,PHY LTS 65+,HOMECARE - C&V,2103327836,1000059416
04.10.2021,ADULT SOCIAL CARE,SUPREME CARE SERVICES LTD,716.28,PHY LTS 65+,HOMECARE - C&V,2103327488,1000059416
04.10.2021,ADULT SOCIAL CARE,SUPREME CARE SERVICES LTD,719.26,PHY LTS 65+,HOMECARE - C&V,2103327575,1000059416
04.10.2021,ADULT SOCIAL CARE,SUPREME CARE SERVICES LTD,723.85,PHY LTS 65+,HOMECARE - C&V,2103327718,1000059416
04.10.2021,ADULT SOCIAL CARE,SUPREME CARE SERVICES LTD,724.8,PHY LTS 65+,HOMECARE - C&V,2103327809,1000059416
04.10.2021,ADULT SOCIAL CARE,SUPREME CARE SERVICES LTD,726.61,PHY LTS 65+,HOMECARE - C&V,2103327882,1000059416
04.10.2021,ADULT SOCIAL CARE,SUPREME CARE SERVICES LTD,728.3,PHY LTS 65+,HOMECARE - C&V,2103327634,1000059416
04.10.2021,ADULT SOCIAL CARE,SUPREME CARE SERVICES LTD,730.78,PHY LTS 65+,HOMECARE - C&V,2103327845,1000059416
04.10.2021,ADULT SOCIAL CARE,SUPREME CARE SERVICES LTD,733.65,PHY LTS 65+,HOMECARE - C&V,2103327642,1000059416
04.10.2021,ADULT SOCIAL CARE,SUPREME CARE SERVICES LTD,737.28,PHY LTS 65+,HOMECARE - C&V,2103327769,1000059416
04.10.2021,ADULT SOCIAL CARE,SUPREME CARE SERVICES LTD,737.31,PHY LTS 65+,HOMECARE - C&V,2103327609,1000059416
04.10.2021,ADULT SOCIAL CARE,SUPREME CARE SERVICES LTD,737.33,PHY LTS 65+,HOMECARE - C&V,2103327564,1000059416
04.10.2021,ADULT SOCIAL CARE,SUPREME CARE SERVICES LTD,737.62,PHY LTS 65+,HOMECARE - C&V,2103327812,1000059416
04.10.2021,ADULT SOCIAL CARE,SUPREME CARE SERVICES LTD,742.36,PHY LTS 65+,HOMECARE - C&V,2103327666,1000059416
04.10.2021,ADULT SOCIAL CARE,SUPREME CARE SERVICES LTD,750.82,PHY LTS 65+,HOMECARE - C&V,2103327888,1000059416
04.10.2021,ADULT SOCIAL CARE,SUPREME CARE SERVICES LTD,755.16,PHY LTS 65+,HOMECARE - C&V,2103327748,1000059416
04.10.2021,ADULT SOCIAL CARE,SUPREME CARE SERVICES LTD,762.41,PHY LTS 65+,HOMECARE - C&V,2103327669,1000059416
04.10.2021,ADULT SOCIAL CARE,SUPREME CARE SERVICES LTD,768.38,PHY LTS 65+,HOMECARE - C&V,2103327908,1000059416
04.10.2021,ADULT SOCIAL CARE,SUPREME CARE SERVICES LTD,773.16,PHY LTS 65+,HOMECARE - C&V,2103327787,1000059416
04.10.2021,ADULT SOCIAL CARE,SUPREME CARE SERVICES LTD,775.75,PHY LTS 65+,HOMECARE - C&V,2103327824,1000059416
04.10.2021,ADULT SOCIAL CARE,SUPREME CARE SERVICES LTD,804.31,PHY LTS 65+,HOMECARE - C&V,2103327708,1000059416
04.10.2021,ADULT SOCIAL CARE,SUPREME CARE SERVICES LTD,804.66,PHY LTS 65+,HOMECARE - C&V,2103327849,1000059416
04.10.2021,ADULT SOCIAL CARE,SUPREME CARE SERVICES LTD,822.53,PHY LTS 65+,HOMECARE - C&V,2103327826,1000059416
04.10.2021,ADULT SOCIAL CARE,SUPREME CARE SERVICES LTD,831.58,PHY LTS 65+,HOMECARE - C&V,2103327628,1000059416
04.10.2021,ADULT SOCIAL CARE,SUPREME CARE SERVICES LTD,839.32,PHY LTS 65+,HOMECARE - C&V,2103327843,1000059416
04.10.2021,ADULT SOCIAL CARE,SUPREME CARE SERVICES LTD,840.59,PHY LTS 65+,HOMECARE - C&V,2103327598,1000059416
04.10.2021,ADULT SOCIAL CARE,SUPREME CARE SERVICES LTD,842.4,PHY LTS 65+,HOMECARE - C&V,2103327770,1000059416
04.10.2021,ADULT SOCIAL CARE,SUPREME CARE SERVICES LTD,845.09,PHY LTS 65+,HOMECARE - C&V,2103327561,1000059416
04.10.2021,ADULT SOCIAL CARE,SUPREME CARE SERVICES LTD,848.57,PHY LTS 65+,HOMECARE - C&V,2103327589,1000059416
04.10.2021,ADULT SOCIAL CARE,SUPREME CARE SERVICES LTD,848.66,PHY LTS 65+,HOMECARE - C&V,2103327531,1000059416
04.10.2021,ADULT SOCIAL CARE,SUPREME CARE SERVICES LTD,849.61,PHY LTS 65+,HOMECARE - C&V,2103327867,1000059416
04.10.2021,ADULT SOCIAL CARE,SUPREME CARE SERVICES LTD,850.95,PHY LTS 65+,HOMECARE - C&V,2103327701,1000059416
04.10.2021,ADULT SOCIAL CARE,SUPREME CARE SERVICES LTD,852.6,PHY LTS 65+,HOMECARE - C&V,2103327594,1000059416
04.10.2021,ADULT SOCIAL CARE,SUPREME CARE SERVICES LTD,858.69,PHY LTS 65+,HOMECARE - C&V,2103327747,1000059416
04.10.2021,ADULT SOCIAL CARE,SUPREME CARE SERVICES LTD,861.36,PHY LTS 65+,HOMECARE - C&V,2103327864,1000059416
04.10.2021,ADULT SOCIAL CARE,SUPREME CARE SERVICES LTD,861.43,PHY LTS 65+,HOMECARE - C&V,2103327579,1000059416
04.10.2021,ADULT SOCIAL CARE,SUPREME CARE SERVICES LTD,863.05,PHY LTS 65+,HOMECARE - C&V,2103327870,1000059416
04.10.2021,ADULT SOCIAL CARE,SUPREME CARE SERVICES LTD,868.55,PHY LTS 65+,HOMECARE - C&V,2103327487,1000059416
04.10.2021,ADULT SOCIAL CARE,SUPREME CARE SERVICES LTD,881.16,PHY LTS 65+,HOMECARE - C&V,2103327610,1000059416
04.10.2021,ADULT SOCIAL CARE,SUPREME CARE SERVICES LTD,885.65,PHY LTS 65+,HOMECARE - C&V,2103327619,1000059416
04.10.2021,ADULT SOCIAL CARE,SUPREME CARE SERVICES LTD,886.75,PHY LTS 65+,HOMECARE - C&V,2103327490,1000059416
04.10.2021,ADULT SOCIAL CARE,SUPREME CARE SERVICES LTD,891.2,PHY LTS 65+,HOMECARE - C&V,2103327905,1000059416
04.10.2021,ADULT SOCIAL CARE,SUPREME CARE SERVICES LTD,899.13,PHY LTS 65+,HOMECARE - C&V,2103327663,1000059416
04.10.2021,ADULT SOCIAL CARE,SUPREME CARE SERVICES LTD,906.14,PHY LTS 65+,HOMECARE - C&V,2103327483,1000059416
04.10.2021,ADULT SOCIAL CARE,SUPREME CARE SERVICES LTD,908.06,PHY LTS 65+,HOMECARE - C&V,2103327608,1000059416
04.10.2021,ADULT SOCIAL CARE,SUPREME CARE SERVICES LTD,908.14,PHY LTS 65+,HOMECARE - C&V,2103327753,1000059416
04.10.2021,ADULT SOCIAL CARE,SUPREME CARE SERVICES LTD,912.53,PHY LTS 65+,HOMECARE - C&V,2103327604,1000059416
04.10.2021,ADULT SOCIAL CARE,SUPREME CARE SERVICES LTD,912.58,PHY LTS 65+,HOMECARE - C&V,2103327791,1000059416
04.10.2021,ADULT SOCIAL CARE,SUPREME CARE SERVICES LTD,912.6,PHY LTS 65+,HOMECARE - C&V,2103327737,1000059416
04.10.2021,ADULT SOCIAL CARE,SUPREME CARE SERVICES LTD,919.73,PHY LTS 65+,HOMECARE - C&V,2103327621,1000059416
04.10.2021,ADULT SOCIAL CARE,SUPREME CARE SERVICES LTD,921.04,PHY LTS 65+,HOMECARE - C&V,2103327574,1000059416
04.10.2021,ADULT SOCIAL CARE,SUPREME CARE SERVICES LTD,934.11,PHY LTS 65+,HOMECARE - C&V,2103327685,1000059416
04.10.2021,ADULT SOCIAL CARE,SUPREME CARE SERVICES LTD,934.36,PHY LTS 65+,HOMECARE - C&V,2103327661,1000059416
04.10.2021,ADULT SOCIAL CARE,SUPREME CARE SERVICES LTD,950.84,PHY LTS 65+,HOMECARE - C&V,2103327891,1000059416
04.10.2021,ADULT SOCIAL CARE,SUPREME CARE SERVICES LTD,957.29,PHY LTS 65+,HOMECARE - C&V,2103327766,1000059416
04.10.2021,ADULT SOCIAL CARE,SUPREME CARE SERVICES LTD,957.57,PHY LTS 65+,HOMECARE - C&V,2103327664,1000059416
04.10.2021,ADULT SOCIAL CARE,SUPREME CARE SERVICES LTD,962.08,PHY LTS 65+,HOMECARE - C&V,2103327739,1000059416
04.10.2021,ADULT SOCIAL CARE,SUPREME CARE SERVICES LTD,966.58,PHY LTS 65+,HOMECARE - C&V,2103327552,1000059416
04.10.2021,ADULT SOCIAL CARE,SUPREME CARE SERVICES LTD,967.86,PHY LTS 65+,HOMECARE - C&V,2103327906,1000059416
04.10.2021,ADULT SOCIAL CARE,SUPREME CARE SERVICES LTD,971.86,PHY LTS 65+,HOMECARE - C&V,2103327625,1000059416
04.10.2021,ADULT SOCIAL CARE,SUPREME CARE SERVICES LTD,989.9,PHY LTS 65+,HOMECARE - C&V,2103327775,1000059416
04.10.2021,ADULT SOCIAL CARE,SUPREME CARE SERVICES LTD,993.53,PHY LTS 65+,HOMECARE - C&V,2103327536,1000059416
04.10.2021,ADULT SOCIAL CARE,SUPREME CARE SERVICES LTD,995.27,PHY LTS 65+,HOMECARE - C&V,2103327755,1000059416
04.10.2021,ADULT SOCIAL CARE,SUPREME CARE SERVICES LTD,998.07,PHY LTS 65+,HOMECARE - C&V,2103327627,1000059416
04.10.2021,ADULT SOCIAL CARE,SUPREME CARE SERVICES LTD,"1,006.22",PHY LTS 65+,HOMECARE - C&V,2103327825,1000059416
04.10.2021,ADULT SOCIAL CARE,SUPREME CARE SERVICES LTD,"1,007.06",PHY LTS 65+,HOMECARE - C&V,2103327894,1000059416
04.10.2021,ADULT SOCIAL CARE,SUPREME CARE SERVICES LTD,"1,011.51",PHY LTS 65+,HOMECARE - C&V,2103327528,1000059416
04.10.2021,ADULT SOCIAL CARE,SUPREME CARE SERVICES LTD,"1,011.53",PHY LTS 65+,HOMECARE - C&V,2103327693,1000059416
04.10.2021,ADULT SOCIAL CARE,SUPREME CARE SERVICES LTD,"1,016.04",PHY LTS 65+,HOMECARE - C&V,2103327680,1000059416
04.10.2021,ADULT SOCIAL CARE,SUPREME CARE SERVICES LTD,"1,024.97",PHY LTS 65+,HOMECARE - C&V,2103327732,1000059416
04.10.2021,ADULT SOCIAL CARE,SUPREME CARE SERVICES LTD,"1,026.66",PHY LTS 65+,HOMECARE - C&V,2103327731,1000059416
04.10.2021,ADULT SOCIAL CARE,SUPREME CARE SERVICES LTD,"1,031.48",PHY LTS 65+,HOMECARE - C&V,2103327631,1000059416
04.10.2021,ADULT SOCIAL CARE,SUPREME CARE SERVICES LTD,"1,033.89",PHY LTS 65+,HOMECARE - C&V,2103327636,1000059416
04.10.2021,ADULT SOCIAL CARE,SUPREME CARE SERVICES LTD,"1,038.38",PHY LTS 65+,HOMECARE - C&V,2103327806,1000059416
04.10.2021,ADULT SOCIAL CARE,SUPREME CARE SERVICES LTD,"1,051.98",PHY LTS 65+,HOMECARE - C&V,2103327750,1000059416
04.10.2021,ADULT SOCIAL CARE,SUPREME CARE SERVICES LTD,"1,056.45",PHY LTS 65+,HOMECARE - C&V,2103327886,1000059416
04.10.2021,ADULT SOCIAL CARE,SUPREME CARE SERVICES LTD,"1,056.47",PHY LTS 65+,HOMECARE - C&V,2103327831,1000059416
04.10.2021,ADULT SOCIAL CARE,SUPREME CARE SERVICES LTD,"1,065.46",PHY LTS 65+,HOMECARE - C&V,2103327665,1000059416
04.10.2021,ADULT SOCIAL CARE,SUPREME CARE SERVICES LTD,"1,069.21",PHY LTS 65+,HOMECARE - C&V,2103327645,1000059416
04.10.2021,ADULT SOCIAL CARE,SUPREME CARE SERVICES LTD,"1,087.80",PHY LTS 65+,HOMECARE - C&V,2103327834,1000059416
04.10.2021,ADULT SOCIAL CARE,SUPREME CARE SERVICES LTD,"1,087.83",PHY LTS 65+,HOMECARE - C&V,2103327568,1000059416
04.10.2021,ADULT SOCIAL CARE,SUPREME CARE SERVICES LTD,"1,104.15",PHY LTS 65+,HOMECARE - C&V,2103327520,1000059416
04.10.2021,ADULT SOCIAL CARE,SUPREME CARE SERVICES LTD,"1,104.44",PHY LTS 65+,HOMECARE - C&V,2103327496,1000059416
04.10.2021,ADULT SOCIAL CARE,SUPREME CARE SERVICES LTD,"1,110.63",PHY LTS 65+,HOMECARE - C&V,2103327804,1000059416
04.10.2021,ADULT SOCIAL CARE,SUPREME CARE SERVICES LTD,"1,116.91",PHY LTS 65+,HOMECARE - C&V,2103327808,1000059416
04.10.2021,ADULT SOCIAL CARE,SUPREME CARE SERVICES LTD,"1,119.10",PHY LTS 65+,HOMECARE - C&V,2103327875,1000059416
04.10.2021,ADULT SOCIAL CARE,SUPREME CARE SERVICES LTD,"1,132.76",PHY LTS 65+,HOMECARE - C&V,2103327759,1000059416
04.10.2021,ADULT SOCIAL CARE,SUPREME CARE SERVICES LTD,"1,137.29",PHY LTS 65+,HOMECARE - C&V,2103327602,1000059416
04.10.2021,ADULT SOCIAL CARE,SUPREME CARE SERVICES LTD,"1,146.35",PHY LTS 65+,HOMECARE - C&V,2103327745,1000059416
04.10.2021,ADULT SOCIAL CARE,SUPREME CARE SERVICES LTD,"1,156.53",PHY LTS 65+,HOMECARE - C&V,2103327720,1000059416
04.10.2021,ADULT SOCIAL CARE,SUPREME CARE SERVICES LTD,"1,159.77",PHY LTS 65+,HOMECARE - C&V,2103327586,1000059416
04.10.2021,ADULT SOCIAL CARE,SUPREME CARE SERVICES LTD,"1,159.83",PHY LTS 65+,HOMECARE - C&V,2103327567,1000059416
04.10.2021,ADULT SOCIAL CARE,SUPREME CARE SERVICES LTD,"1,159.87",PHY LTS 65+,HOMECARE - C&V,2103327863,1000059416
04.10.2021,ADULT SOCIAL CARE,SUPREME CARE SERVICES LTD,"1,163.95",PHY LTS 65+,HOMECARE - C&V,2103327898,1000059416
04.10.2021,ADULT SOCIAL CARE,SUPREME CARE SERVICES LTD,"1,172.66",PHY LTS 65+,HOMECARE - C&V,2103327507,1000059416
04.10.2021,ADULT SOCIAL CARE,SUPREME CARE SERVICES LTD,"1,173.23",PHY LTS 65+,HOMECARE - C&V,2103327752,1000059416
04.10.2021,ADULT SOCIAL CARE,SUPREME CARE SERVICES LTD,"1,177.87",PHY LTS 65+,HOMECARE - C&V,2103327530,1000059416
04.10.2021,ADULT SOCIAL CARE,SUPREME CARE SERVICES LTD,"1,185.96",PHY LTS 65+,HOMECARE - C&V,2103327848,1000059416
04.10.2021,ADULT SOCIAL CARE,SUPREME CARE SERVICES LTD,"1,189.36",PHY LTS 65+,HOMECARE - C&V,2103327480,1000059416
04.10.2021,ADULT SOCIAL CARE,SUPREME CARE SERVICES LTD,"1,195.74",PHY LTS 65+,HOMECARE - C&V,2103327807,1000059416
04.10.2021,ADULT SOCIAL CARE,SUPREME CARE SERVICES LTD,"1,210.76",PHY LTS 65+,HOMECARE - C&V,2103327485,1000059416
04.10.2021,ADULT SOCIAL CARE,SUPREME CARE SERVICES LTD,"1,227.30",PHY LTS 65+,HOMECARE - C&V,2103327537,1000059416
04.10.2021,ADULT SOCIAL CARE,SUPREME CARE SERVICES LTD,"1,236.29",PHY LTS 65+,HOMECARE - C&V,2103327713,1000059416
04.10.2021,ADULT SOCIAL CARE,SUPREME CARE SERVICES LTD,"1,236.50",PHY LTS 65+,HOMECARE - C&V,2103327532,1000059416
04.10.2021,ADULT SOCIAL CARE,SUPREME CARE SERVICES LTD,"1,238.28",PHY LTS 65+,HOMECARE - C&V,2103327662,1000059416
04.10.2021,ADULT SOCIAL CARE,SUPREME CARE SERVICES LTD,"1,245.28",PHY LTS 65+,HOMECARE - C&V,2103327871,1000059416
04.10.2021,ADULT SOCIAL CARE,SUPREME CARE SERVICES LTD,"1,260.98",PHY LTS 65+,HOMECARE - C&V,2103327814,1000059416
04.10.2021,ADULT SOCIAL CARE,SUPREME CARE SERVICES LTD,"1,263.27",PHY LTS 65+,HOMECARE - C&V,2103327630,1000059416
04.10.2021,ADULT SOCIAL CARE,SUPREME CARE SERVICES LTD,"1,276.59",PHY LTS 65+,HOMECARE - C&V,2103327648,1000059416
04.10.2021,ADULT SOCIAL CARE,SUPREME CARE SERVICES LTD,"1,317.06",PHY LTS 65+,HOMECARE - C&V,2103327647,1000059416
04.10.2021,ADULT SOCIAL CARE,SUPREME CARE SERVICES LTD,"1,339.91",PHY LTS 65+,HOMECARE - C&V,2103327503,1000059416
04.10.2021,ADULT SOCIAL CARE,SUPREME CARE SERVICES LTD,"1,344.06",PHY LTS 65+,HOMECARE - C&V,2103327538,1000059416
04.10.2021,ADULT SOCIAL CARE,SUPREME CARE SERVICES LTD,"1,348.69",PHY LTS 65+,HOMECARE - C&V,2103327881,1000059416
04.10.2021,ADULT SOCIAL CARE,SUPREME CARE SERVICES LTD,"1,363.50",PHY LTS 65+,HOMECARE - C&V,2103327889,1000059416
04.10.2021,ADULT SOCIAL CARE,SUPREME CARE SERVICES LTD,"1,366.60",PHY LTS 65+,HOMECARE - C&V,2103327571,1000059416
04.10.2021,ADULT SOCIAL CARE,SUPREME CARE SERVICES LTD,"1,499.10",PHY LTS 65+,HOMECARE - C&V,2103327861,1000059416
04.10.2021,ADULT SOCIAL CARE,SUPREME CARE SERVICES LTD,"1,524.20",PHY LTS 65+,HOMECARE - C&V,2103327577,1000059416
04.10.2021,ADULT SOCIAL CARE,SUPREME CARE SERVICES LTD,"1,564.82",PHY LTS 65+,HOMECARE - C&V,2103327505,1000059416
04.10.2021,ADULT SOCIAL CARE,SUPREME CARE SERVICES LTD,"1,604.99",PHY LTS 65+,HOMECARE - C&V,2103327878,1000059416
04.10.2021,ADULT SOCIAL CARE,SUPREME CARE SERVICES LTD,"1,641.28",PHY LTS 65+,HOMECARE - C&V,2103327657,1000059416
04.10.2021,ADULT SOCIAL CARE,SUPREME CARE SERVICES LTD,"1,663.30",PHY LTS 65+,HOMECARE - C&V,2103327719,1000059416
04.10.2021,ADULT SOCIAL CARE,SUPREME CARE SERVICES LTD,"1,677.04",PHY LTS 65+,HOMECARE - C&V,2103327548,1000059416
04.10.2021,ADULT SOCIAL CARE,SUPREME CARE SERVICES LTD,"1,726.35",PHY LTS 65+,HOMECARE - C&V,2103327638,1000059416
04.10.2021,ADULT SOCIAL CARE,SUPREME CARE SERVICES LTD,"1,790.55",PHY LTS 65+,HOMECARE - C&V,2103327556,1000059416
04.10.2021,ADULT SOCIAL CARE,SUPREME CARE SERVICES LTD,"1,867.31",PHY LTS 65+,HOMECARE - C&V,2103327890,1000059416
04.10.2021,ADULT SOCIAL CARE,SUPREME CARE SERVICES LTD,"1,880.42",PHY LTS 65+,HOMECARE - C&V,2103327544,1000059416
04.10.2021,ADULT SOCIAL CARE,SUPREME CARE SERVICES LTD,"1,924.11",PHY LTS 65+,HOMECARE - C&V,2103327729,1000059416
04.10.2021,ADULT SOCIAL CARE,SUPREME CARE SERVICES LTD,"2,032.08",PHY LTS 65+,HOMECARE - C&V,2103327686,1000059416
04.10.2021,ADULT SOCIAL CARE,SUPREME CARE SERVICES LTD,"2,049.72",PHY LTS 65+,HOMECARE - C&V,2103327646,1000059416
04.10.2021,ADULT SOCIAL CARE,SUPREME CARE SERVICES LTD,"2,103.66",PHY LTS 65+,HOMECARE - C&V,2103327639,1000059416
04.10.2021,ADULT SOCIAL CARE,SUPREME CARE SERVICES LTD,"2,126.20",PHY LTS 65+,HOMECARE - C&V,2103327741,1000059416
04.10.2021,ADULT SOCIAL CARE,SUPREME CARE SERVICES LTD,"2,179.64",PHY LTS 65+,HOMECARE - C&V,2103327800,1000059416
04.10.2021,ADULT SOCIAL CARE,SUPREME CARE SERVICES LTD,"2,179.68",PHY LTS 65+,HOMECARE - C&V,2103327899,1000059416
04.10.2021,ADULT SOCIAL CARE,SUPREME CARE SERVICES LTD,"2,208.71",PHY LTS 65+,HOMECARE - C&V,2103327590,1000059416
04.10.2021,ADULT SOCIAL CARE,SUPREME CARE SERVICES LTD,"2,256.79",PHY LTS 65+,HOMECARE - C&V,2103327637,1000059416
04.10.2021,ADULT SOCIAL CARE,SUPREME CARE SERVICES LTD,"2,261.27",PHY LTS 65+,HOMECARE - C&V,2103327683,1000059416
04.10.2021,ADULT SOCIAL CARE,SUPREME CARE SERVICES LTD,"2,264.23",PHY LTS 65+,HOMECARE - C&V,2103327539,1000059416
04.10.2021,ADULT SOCIAL CARE,SUPREME CARE SERVICES LTD,"2,355.86",PHY LTS 65+,HOMECARE - C&V,2103327695,1000059416
04.10.2021,ADULT SOCIAL CARE,SUPREME CARE SERVICES LTD,"2,367.69",PHY LTS 65+,HOMECARE - C&V,2103327901,1000059416
04.10.2021,ADULT SOCIAL CARE,SUPREME CARE SERVICES LTD,"2,397.72",PHY LTS 65+,HOMECARE - C&V,2103327820,1000059416
04.10.2021,ADULT SOCIAL CARE,SUPREME CARE SERVICES LTD,"2,400.94",PHY LTS 65+,HOMECARE - C&V,2103327893,1000059416
04.10.2021,ADULT SOCIAL CARE,SUPREME CARE SERVICES LTD,"2,413.07",PHY LTS 65+,HOMECARE - C&V,2103327803,1000059416
04.10.2021,ADULT SOCIAL CARE,SUPREME CARE SERVICES LTD,"2,446.58",PHY LTS 65+,HOMECARE - C&V,2103327911,1000059416
04.10.2021,ADULT SOCIAL CARE,SUPREME CARE SERVICES LTD,"2,485.82",PHY LTS 65+,HOMECARE - C&V,2103327554,1000059416
04.10.2021,ADULT SOCIAL CARE,SUPREME CARE SERVICES LTD,"2,522.53",PHY LTS 65+,HOMECARE - C&V,2103327635,1000059416
04.10.2021,ADULT SOCIAL CARE,SUPREME CARE SERVICES LTD,"2,544.54",PHY LTS 65+,HOMECARE - C&V,2103327617,1000059416
04.10.2021,ADULT SOCIAL CARE,SUPREME CARE SERVICES LTD,"2,611.76",PHY LTS 65+,HOMECARE - C&V,2103327670,1000059416
04.10.2021,ADULT SOCIAL CARE,SUPREME CARE SERVICES LTD,"2,626.40",PHY LTS 65+,HOMECARE - C&V,2103327559,1000059416
04.10.2021,ADULT SOCIAL CARE,SUPREME CARE SERVICES LTD,"2,656.95",PHY LTS 65+,HOMECARE - C&V,2103327865,1000059416
04.10.2021,ADULT SOCIAL CARE,SUPREME CARE SERVICES LTD,"2,715.02",PHY LTS 65+,HOMECARE - C&V,2103327533,1000059416
04.10.2021,ADULT SOCIAL CARE,SUPREME CARE SERVICES LTD,"2,764.74",PHY LTS 65+,HOMECARE - C&V,2103327909,1000059416
04.10.2021,ADULT SOCIAL CARE,SUPREME CARE SERVICES LTD,"2,843.68",PHY LTS 65+,HOMECARE - C&V,2103327897,1000059416
04.10.2021,ADULT SOCIAL CARE,SUPREME CARE SERVICES LTD,"2,992.81",PHY LTS 65+,HOMECARE - C&V,2103327818,1000059416
04.10.2021,ADULT SOCIAL CARE,SUPREME CARE SERVICES LTD,"2,997.11",PHY LTS 65+,HOMECARE - C&V,2103327504,1000059416
04.10.2021,ADULT SOCIAL CARE,SUPREME CARE SERVICES LTD,"3,061.65",PHY LTS 65+,HOMECARE - C&V,2103327840,1000059416
04.10.2021,ADULT SOCIAL CARE,SUPREME CARE SERVICES LTD,"3,812.80",PHY LTS 65+,HOMECARE - C&V,2103327715,1000059416
04.10.2021,ADULT SOCIAL CARE,BLACK ELDER GROUP SWK,360,PHY LTS 65+,DAYCARE,2103327924,1000067369
04.10.2021,ADULT SOCIAL CARE,BLACK ELDER GROUP SWK,360,PHY LTS 65+,DAYCARE,2103327925,1000067369
04.10.2021,ADULT SOCIAL CARE,BLACK ELDER GROUP SWK,360,PHY LTS 65+,DAYCARE,2103327926,1000067369
04.10.2021,ADULT SOCIAL CARE,BLACK ELDER GROUP SWK,360,PHY LTS 65+,DAYCARE,2103327928,1000067369
04.10.2021,ADULT SOCIAL CARE,BLACK ELDER GROUP SWK,405,PHY LTS 65+,DAYCARE,2103327927,1000067369
04.10.2021,ADULT SOCIAL CARE,SUPREME CARE SERVICES LTD,251.72,PHY STS 65+,HOMECARE - IC,2103327519,1000059416
04.10.2021,ADULT SOCIAL CARE,SUPREME CARE SERVICES LTD,256.14,PHY STS 65+,HOMECARE - IC,2103327903,1000059416
04.10.2021,ADULT SOCIAL CARE,SUPREME CARE SERVICES LTD,360.27,PHY STS 65+,HOMECARE - IC,2103327545,1000059416
04.10.2021,ADULT SOCIAL CARE,SUPREME CARE SERVICES LTD,412.88,PHY STS 65+,HOMECARE - IC,2103327914,1000059416
04.10.2021,ADULT SOCIAL CARE,SUPREME CARE SERVICES LTD,421.34,PHY STS 65+,HOMECARE - IC,2103327699,1000059416
04.10.2021,ADULT SOCIAL CARE,METROPOLITAN HOUSING TRUST LTD,"122,787.25",S75 SUPHSG SCH LBS LEAD,EXTERNAL AGENCIES AND BODIES,5902489502,1000047547
04.10.2021,ADULT SOCIAL CARE,METROPOLITAN HOUSING TRUST LTD,"122,787.25",S75 SUPHSG SCH LBS LEAD,EXTERNAL AGENCIES AND BODIES,5902489503,1000047547
04.10.2021,ADULT SOCIAL CARE,ROMEDICAL LTD,900,SAFEGUARDING & DOLS,OTHER CONTRACTORS,5902489681,1000076318
04.10.2021,ADULT SOCIAL CARE,ROMEDICAL LTD,900,SAFEGUARDING & DOLS,OTHER CONTRACTORS,5902489682,1000076318
04.10.2021,ADULT SOCIAL CARE,SUPREME CARE SERVICES LTD,656.41,SEN LTS 65+,HOMECARE - C&V,2103327795,1000059416
04.10.2021,ADULT SOCIAL CARE,SUPREME CARE SERVICES LTD,948.6,SEN LTS 65+,HOMECARE - C&V,2103327900,1000059416
04.10.2021,ADULT SOCIAL CARE,SUPREME CARE SERVICES LTD,438.5,SOCIAL ISOLATION,HOMECARE - C&V,2103327815,1000059416
04.10.2021,ADULT SOCIAL CARE,SUPREME CARE SERVICES LTD,570.87,SOCIAL ISOLATION,HOMECARE - C&V,2103327659,1000059416
04.10.2021,ADULT SOCIAL CARE,SUPREME CARE SERVICES LTD,590.39,SOCIAL ISOLATION,HOMECARE - C&V,2103327687,1000059416
04.10.2021,ADULT SOCIAL CARE,SUPREME CARE SERVICES LTD,"1,278.88",SOCIAL ISOLATION,HOMECARE - C&V,2103327877,1000059416
04.10.2021,ADULT SOCIAL CARE,SUPREME CARE SERVICES LTD,"2,087.80",SOCIAL ISOLATION,HOMECARE - C&V,2103327895,1000059416
04.10.2021,ADULT SOCIAL CARE,SUPREME CARE SERVICES LTD,"1,278.88",SOCIAL ISOLATION,HOMECARE - IC,2103327876,1000059416
04.10.2021,ADULT SOCIAL CARE,SUPREME CARE SERVICES LTD,797.25,SUB LTS 18-64,HOMECARE - C&V,2103327525,1000059416
04.10.2021,ASSET MANAGEMENT,WATERMAN BUILDING SERVICES LTD,"2,500.00",COMMERCIAL (QS),HEATING - DISTRICT SYSTEM REPAIR,5902483908,1000077421
04.10.2021,ASSET MANAGEMENT HGF,PULSE CORPORATION LTD,685,REPAIR AND MAINTENANCE SERVICES,HARDWARE,5902489634,1000072911
04.10.2021,ASSET MANAGEMENT HGF,PULSE CORPORATION LTD,"1,045.00",REPAIR AND MAINTENANCE SERVICES,HARDWARE,5902489642,1000072911
04.10.2021,ASSET MANAGEMENT HGF,PULSE CORPORATION LTD,"1,347.50",REPAIR AND MAINTENANCE SERVICES,HARDWARE,5902489631,1000072911
04.10.2021,ASSET MANAGEMENT HGF,PULSE CORPORATION LTD,"1,515.00",REPAIR AND MAINTENANCE SERVICES,HARDWARE,5902489636,1000072911
04.10.2021,ASSET MANAGEMENT HGF,PULSE CORPORATION LTD,"1,540.00",REPAIR AND MAINTENANCE SERVICES,HARDWARE,5902489640,1000072911
04.10.2021,CENTRAL FUNCTIONS,ELY PLACE CHAMBERS,"1,137.50",COMMERCIAL PROPERTIES,LEGAL FEES & COURT COSTS,2103327427,1000064557
04.10.2021,CHIEF EXECUTIVE,MILTON KEYNES SURVEYS LTD,"1,620.00",CAPITAL PS (REGEN),CONSTRUCTION FEES  - EXTERNAL,5902489086,1000077138
04.10.2021,CHIEF EXECUTIVE,IB CDM LTD,925,CAPITAL PS (REGEN),CONSTRUCTION FEES  - EXTERNAL,5902488848,1000081479
04.10.2021,CHIEF EXECUTIVE,CASTLETON SIGNS LTD,"29,500.00",CAPITAL PS (REGEN),CONSTRUCTION,5902489534,1000086609
04.10.2021,CHIEF EXECUTIVE'S OFFICE,RENAISI LTD,"33,814.25",CHIEF EXECUTIVE'S OFFICE,EXTERNAL AGENCIES AND BODIES,5902488924,1000022051
04.10.2021,CHILDREN AND ADULT,SHARPE PRITCHARD LLP,"1,119.00",CAPITAL PS (EDUCATION),CONSTRUCTION FEES - LEGAL,5902489671,1790085
04.10.2021,CHILDREN AND ADULT,ENGIE REGENERATION LTD,"18,662.00",CAPITAL PS (EDUCATION),CONSTRUCTION,2103327405,3000002035
04.10.2021,CHILDREN AND ADULT,ENGIE REGENERATION LTD,"177,216.28",CAPITAL PS (EDUCATION),CONSTRUCTION,2103327398,3000002035
04.10.2021,CHILDREN AND ADULT,GOODY DEMOLITION LIMITED,"39,506.51",CAPITAL PS (EDUCATION),CONSTRUCTION SITE COSTS,2103327933,3000002190
04.10.2021,CHILDREN AND ADULT,CBS MAINTENANCE SERVICES LTD,"10,260.00",CAPITAL PS (SOC SERV),CONSTRUCTION MAIN CONTRACT,2103326429,3000001518
04.10.2021,CHILDREN AND FAMILIES,REDACTED PERSONAL DATA,300,FE SUPPORT,CLIENT TRANSPORT,REDACTED,REDACTED
04.10.2021,CHILDREN AND FAMILIES,REDACTED PERSONAL DATA,521.43,FOSTERING ALLOWANCES,OTHER PAYMENTS FOR CLIENTS,REDACTED,REDACTED
04.10.2021,CHILDREN AND FAMILIES,BETA DISTRIBUTION (SOUTH) LTD,720,FOSTERING TEAM,EXTERNAL AGENCIES AND BODIES,5902489724,1000044844
04.10.2021,CHILDREN AND FAMILIES,HEARTWOOD OUTREACH SERVICES LTD,307.93,SEMI-IND CARELEAVERS,EXTERNAL AGENCIES AND BODIES,2103327469,1000075021
04.10.2021,CHILDREN AND FAMILIES,HEARTWOOD OUTREACH SERVICES LTD,"1,518.77",SEMI-IND CARELEAVERS,EXTERNAL AGENCIES AND BODIES,2103327468,1000075021
04.10.2021,CHILDREN AND FAMILIES,CREATING LIFESTYLES LTD,"1,500.00",SEMI-IND CARELEAVERS,EXTERNAL AGENCIES AND BODIES,2103327475,1000075830
04.10.2021,CHILDREN AND FAMILIES,CREATING LIFESTYLES LTD,"1,980.00",SEMI-IND CARELEAVERS,EXTERNAL AGENCIES AND BODIES,2103327476,1000075830
04.10.2021,CHILDREN AND FAMILIES,CREATING LIFESTYLES LTD,"1,980.00",SEMI-IND CARELEAVERS,EXTERNAL AGENCIES AND BODIES,2103327477,1000075830
04.10.2021,CHILDREN AND FAMILIES,CREATING LIFESTYLES LTD,"2,430.00",SEMI-IND CARELEAVERS,EXTERNAL AGENCIES AND BODIES,2103327474,1000075830
04.10.2021,CHILDREN AND FAMILIES,DEBORAH SEITLER,"1,200.00",SFS MGMT & SUPPORT,LEGAL FEES & COURT COSTS,2103327424,1000059125
04.10.2021,CHILDREN AND FAMILIES,RICHARD YORKE,800,SFS MGMT & SUPPORT,LEGAL FEES & COURT COSTS,2103327446,1000062584
04.10.2021,CHILDREN AND FAMILIES,KATE LAMONT,750,SFS MGMT & SUPPORT,LEGAL FEES & COURT COSTS,2103327436,1000064216
04.10.2021,CHILDREN AND FAMILIES,KATE LAMONT,"1,250.00",SFS MGMT & SUPPORT,LEGAL FEES & COURT COSTS,2103327434,1000064216
04.10.2021,CHILDREN AND FAMILIES,MATTHEW STOTT,540,SFS MGMT & SUPPORT,LEGAL FEES & COURT COSTS,2103327441,1000068749
04.10.2021,CHILDREN AND FAMILIES,RYAN KOHLI,"1,000.00",SFS MGMT & SUPPORT,LEGAL FEES & COURT COSTS,2103327447,1000069110
04.10.2021,CHILDREN AND FAMILIES,WILLIAM DEAN,400,SFS MGMT & SUPPORT,LEGAL FEES & COURT COSTS,2103327454,1000070780
04.10.2021,CHILDREN AND FAMILIES,WILLIAM DEAN,575,SFS MGMT & SUPPORT,LEGAL FEES & COURT COSTS,2103327450,1000070780
04.10.2021,CHILDREN AND FAMILIES,WILLIAM DEAN,575,SFS MGMT & SUPPORT,LEGAL FEES & COURT COSTS,2103327452,1000070780
04.10.2021,CHILDREN AND FAMILIES,NANCY WILLIAMS,350,SFS MGMT & SUPPORT,LEGAL FEES & COURT COSTS,2103327443,1000085922
04.10.2021,CHILDREN AND FAMILIES,FRANCESCA KOLAR,500,SFS MGMT & SUPPORT,LEGAL FEES & COURT COSTS,2103327429,1000086974
04.10.2021,CHILDREN AND FAMILIES,E4 LAW LTD,"1,205.00",TEAM A,OTHER PAYMENTS FOR CLIENTS,5902489720,1000072222
04.10.2021,CHILDREN AND FAMILIES,LITTLE ME CANADA WATER LTD,858,TEAM B,OTHER PAYMENTS FOR CLIENTS,5902489713,1000083348
04.10.2021,CHILDREN AND FAMILIES,CORAM VOICE,325.08,TEAM C,OTHER PAYMENTS FOR CLIENTS,5902489714,1000076392
04.10.2021,CHILDREN AND FAMILIES,THE SALVATION ARMY,"1,008.43",UASC CARELEAVERS,EXTERNAL AGENCIES AND BODIES,2103327470,1000016253
04.10.2021,CHILDREN AND FAMILIES,THE SALVATION ARMY,"1,143.59",UASC CARELEAVERS,EXTERNAL AGENCIES AND BODIES,2103327471,1000016253
04.10.2021,CHILDREN AND FAMILIES,CREATING LIFESTYLES LTD,"1,800.00",UASC CARELEAVERS,EXTERNAL AGENCIES AND BODIES,2103327472,1000075830
04.10.2021,CHILDREN AND FAMILIES,CREATING LIFESTYLES LTD,"2,200.00",UASC CARELEAVERS,EXTERNAL AGENCIES AND BODIES,2103327473,1000075830
04.10.2021,CHILDREN AND FAMILIES,CREATING LIFESTYLES LTD,"1,800.00",UASC LAC 16-17,EXTERNAL AGENCIES AND BODIES,2103327479,1000075830
04.10.2021,CHILDREN AND FAMILIES,CREATING LIFESTYLES LTD,280,UASC LAC 16-17,OTHER PAYMENTS FOR CLIENTS,2103327478,1000075830
04.10.2021,COMMUNITIES,ST FAITHS COMMUNITY CENTRE,"5,000.00",VCS GRANTS,GRANTS,5902489589,1039446
04.10.2021,COMMUNITIES,TIME & TALENTS ASSOCIATION,"4,500.00",VCS GRANTS,GRANTS,5902489591,1757632
04.10.2021,COMMUNITIES,LONDON WILDLIFE TRUST,"7,500.00",VCS GRANTS,GRANTS,5902489592,1832374
04.10.2021,COMMUNITIES,SOUTHWARK CITIZENS ADVICE,"5,600.00",VCS GRANTS,GRANTS,5902489593,1874379
04.10.2021,COMMUNITIES,SOMALI INTEGRATION & DEVELOPMENT ASSOCIATION,"14,000.00",VCS GRANTS,GRANTS,5902489594,11048946
04.10.2021,COMMUNITIES,GOLDEN OLDIES COMMUNITY CARE PROJECT,"2,500.00",VCS GRANTS,GRANTS,5902489595,11122958
04.10.2021,COMMUNITIES,BEDE HSE,"4,500.00",VCS GRANTS,GRANTS,5902489597,11248731
04.10.2021,COMMUNITIES,CAMBRIDGE HOUSE & TALBOT,"4,500.00",VCS GRANTS,GRANTS,5902489598,11248874
04.10.2021,COMMUNITIES,PECAN LTD,"6,500.00",VCS GRANTS,GRANTS,5902489600,11263114
04.10.2021,COMMUNITIES,PECAN LTD,"7,375.00",VCS GRANTS,GRANTS,5902489599,11263114
04.10.2021,COMMUNITIES,SURREY DOCKS FARM PROVIDENT SOCIETY,"10,000.00",VCS GRANTS,GRANTS,5902489601,1000000958
04.10.2021,COMMUNITIES,AAINA WOMEN GROUP,"8,018.25",VCS GRANTS,GRANTS,5902489602,1000002442
04.10.2021,COMMUNITIES,BANKSIDE OPEN SPACES TRUST,"4,208.00",VCS GRANTS,GRANTS,5902489603,1000018290
04.10.2021,COMMUNITIES,SOUTHWARK PENSIONERS CENTRE,"25,855.25",VCS GRANTS,GRANTS,5902489604,1000027831
04.10.2021,COMMUNITIES,SWK DAY CTR FOR ASYLUM SEEKERS,"11,330.25",VCS GRANTS,GRANTS,5902489605,1000040491
04.10.2021,COMMUNITIES,SOUTHWARK EVERY WOMAN'S CENTRE,"5,500.00",VCS GRANTS,GRANTS,5902489606,1000042216
04.10.2021,COMMUNITIES,FUTURE MEN,"4,125.00",VCS GRANTS,GRANTS,5902489607,1000046010
04.10.2021,COMMUNITIES,THE MANNA CENTRE,"13,750.00",VCS GRANTS,GRANTS,5902489608,1000048508
04.10.2021,COMMUNITIES,MENTAL FIGHT CLUB,"2,500.00",VCS GRANTS,GRANTS,5902489609,1000051170
04.10.2021,COMMUNITIES,CRYSTAL PALACE COMM DEV TRUST,"3,000.00",VCS GRANTS,GRANTS,5902489610,1000054200
04.10.2021,COMMUNITIES,LATIN AMERICAN DISABLED PEOPLE PROJECT,"4,625.00",VCS GRANTS,GRANTS,5902489611,1000058588
04.10.2021,COMMUNITIES,LATIN AMERICAN WOMEN'S RIGHTS SERVICES,"4,625.00",VCS GRANTS,GRANTS,5902489614,1000068356
04.10.2021,COMMUNITIES,PAXTON GREEN TIME BANK,"4,250.00",VCS GRANTS,GRANTS,5902489617,1000070648
04.10.2021,COMMUNITIES,BLACKFRIARS SETTLEMENT,"4,500.00",VCS GRANTS,GRANTS,5902489618,1000071456
04.10.2021,COMMUNITIES,PEMBROKE COLLEGE SETTLEMENT,"4,500.00",VCS GRANTS,GRANTS,5902489619,1000073444
04.10.2021,COMMUNITIES,BERMONDSEY COMMUNITY KITCHEN,"3,750.00",VCS GRANTS,GRANTS,5902489621,1000075477
04.10.2021,COMMUNITIES,THE BIKE PROJECT,"3,851.00",VCS GRANTS,GRANTS,5902489622,1000077217
04.10.2021,COMMUNITIES,SOUTHWARK TRAVELLERS' ACTION,"5,750.00",VCS GRANTS,GRANTS,5902489623,1000077795
04.10.2021,COMMUNITIES,GLOBAL GENERATION,"4,250.00",VCS GRANTS,GRANTS,5902489624,1000080135
04.10.2021,COMMUNITIES,CENTRAL SOUTHWARK COMMUNITY HUB,"5,250.00",VCS GRANTS,GRANTS,5902489625,1000083089
04.10.2021,COMMUNITIES,OPENING DOORS LONDON,"4,750.00",VCS GRANTS,GRANTS,5902489626,1000086261
04.10.2021,COMMUNITIES HRA,APPLEGARTH HOUSE COOPERATIVE LTD,"18,949.00",APPLEGARTH HOUSE CO-OP,M&M ALLOWANCE CO-OPS,5902489677,1296074
04.10.2021,CUSTOMER EXPERIENCE HGF,PROFESSOR  S AL-SARRAJ,500,CORONER'S,PROFESSIONAL FEES,5902489696,1000043051
04.10.2021,CUSTOMER EXPERIENCE HGF,PROFESSOR  S AL-SARRAJ,500,CORONER'S,PROFESSIONAL FEES,5902489697,1000043051
04.10.2021,CUSTOMER EXPERIENCE HGF,SG PATH LTD,415.8,CORONER'S,PROFESSIONAL FEES,5902489647,1000077883
04.10.2021,CUSTOMER EXPERIENCE HGF,FORENSIC PATHOLOGY SERVICES,348.9,CORONER'S,PROFESSIONAL FEES,5902489470,1000086871
04.10.2021,CUSTOMER EXPERIENCE HGF,FORENSIC PATHOLOGY SERVICES,511.9,CORONER'S,PROFESSIONAL FEES,5902489472,1000086871
04.10.2021,CUSTOMER EXPERIENCE HGF,CLYDE & CO,"3,510.00",TRANSFERRED INQUEST,PROFESSIONAL FEES,5902489652,1000067838
04.10.2021,ENV & LEIS,ELY PLACE CHAMBERS,350,ENFORCEMENT,LEGAL FEES & COURT COSTS,2103327428,1000064557
04.10.2021,ENVIRONMENT AND LEISURE,BLAKENEY LEIGH LTD,"11,400.00",CAPITAL PS (LEISURE),CONSTRUCTION FEES - QUANTITY SURVEYOR,5902489657,1438839
04.10.2021,ENVIRONMENT AND LEISURE,FRIENDS OF PECKHAM RYE PARK,890,CAPITAL PS (LEISURE),CAPITAL GRANTS,5902489710,1000047491
04.10.2021,ENVIRONMENT AND LEISURE,GO CONTAMINATED LAND SOLUTIONS LTD,360.6,CAPITAL PS (LEISURE),CONSTRUCTION FEES  - EXTERNAL,5902489650,1000086284
04.10.2021,ENVIRONMENT AND LEISURE,GO CONTAMINATED LAND SOLUTIONS LTD,"3,463.70",CAPITAL PS (LEISURE),CONSTRUCTION FEES  - EXTERNAL,5902489650,1000086284
04.10.2021,ENVIRONMENT DIRECTORATE,LEX AUTOLEASE,645.11,CAR LEASING CTRL A/C,PARKING CHARGES,5902489706,1000069462
04.10.2021,ENVIRONMENT DIRECTORATE,LEX AUTOLEASE,653.3,CAR LEASING CTRL A/C,PARKING CHARGES,5902489706,1000069462
04.10.2021,ENVIRONMENT DIRECTORATE,LEX AUTOLEASE,-335.37,CAR LEASING CTRL A/C,VEHICLE LEASING CHARGES,5902485930,1000069462
04.10.2021,ENVIRONMENT DIRECTORATE,ARNOLD CLARK VEHICLE MANAGEMENT,253.29,CAR LEASING CTRL A/C,VEHICLE LEASING CHARGES,5902489670,1000079116
04.10.2021,ENVIRONMENT DIRECTORATE,ARNOLD CLARK VEHICLE MANAGEMENT,264.87,CAR LEASING CTRL A/C,VEHICLE LEASING CHARGES,5902489693,1000079116
04.10.2021,ENVIRONMENT DIRECTORATE,ARNOLD CLARK VEHICLE MANAGEMENT,288.21,CAR LEASING CTRL A/C,VEHICLE LEASING CHARGES,5902489693,1000079116
04.10.2021,ENVIRONMENT DIRECTORATE,ARNOLD CLARK VEHICLE MANAGEMENT,332.45,CAR LEASING CTRL A/C,VEHICLE LEASING CHARGES,5902489694,1000079116
04.10.2021,ENVIRONMENT DIRECTORATE,ARNOLD CLARK VEHICLE MANAGEMENT,362.89,CAR LEASING CTRL A/C,VEHICLE LEASING CHARGES,5902489694,1000079116
04.10.2021,ENVIRONMENT DIRECTORATE,ARNOLD CLARK VEHICLE MANAGEMENT,374.41,CAR LEASING CTRL A/C,VEHICLE LEASING CHARGES,5902489632,1000079116
04.10.2021,ENVIRONMENT DIRECTORATE,ARNOLD CLARK VEHICLE MANAGEMENT,386.9,CAR LEASING CTRL A/C,VEHICLE LEASING CHARGES,5902489632,1000079116
04.10.2021,ENVIRONMENT DIRECTORATE,ARNOLD CLARK VEHICLE MANAGEMENT,389.99,CAR LEASING CTRL A/C,VEHICLE LEASING CHARGES,5902489644,1000079116
04.10.2021,ENVIRONMENT DIRECTORATE,ARNOLD CLARK VEHICLE MANAGEMENT,390.94,CAR LEASING CTRL A/C,VEHICLE LEASING CHARGES,5902489665,1000079116
04.10.2021,ENVIRONMENT DIRECTORATE,ARNOLD CLARK VEHICLE MANAGEMENT,423.73,CAR LEASING CTRL A/C,VEHICLE LEASING CHARGES,5902489644,1000079116
04.10.2021,ENVIRONMENT DIRECTORATE,ARNOLD CLARK VEHICLE MANAGEMENT,427.74,CAR LEASING CTRL A/C,VEHICLE LEASING CHARGES,5902489665,1000079116
04.10.2021,ENVIRONMENT DIRECTORATE,ARNOLD CLARK VEHICLE MANAGEMENT,454.68,CAR LEASING CTRL A/C,VEHICLE LEASING CHARGES,5902489701,1000079116
04.10.2021,ENVIRONMENT DIRECTORATE,ARNOLD CLARK VEHICLE MANAGEMENT,458.48,CAR LEASING CTRL A/C,VEHICLE LEASING CHARGES,5902489628,1000079116
04.10.2021,ENVIRONMENT DIRECTORATE,ARNOLD CLARK VEHICLE MANAGEMENT,461.2,CAR LEASING CTRL A/C,VEHICLE LEASING CHARGES,5902489628,1000079116
04.10.2021,ENVIRONMENT DIRECTORATE,ARNOLD CLARK VEHICLE MANAGEMENT,468.26,CAR LEASING CTRL A/C,VEHICLE LEASING CHARGES,5902489701,1000079116
04.10.2021,ENVIRONMENT DIRECTORATE,ARNOLD CLARK VEHICLE MANAGEMENT,469.41,CAR LEASING CTRL A/C,VEHICLE LEASING CHARGES,5902489629,1000079116
04.10.2021,ENVIRONMENT DIRECTORATE,ARNOLD CLARK VEHICLE MANAGEMENT,482.81,CAR LEASING CTRL A/C,VEHICLE LEASING CHARGES,5902489630,1000079116
04.10.2021,ENVIRONMENT DIRECTORATE,ARNOLD CLARK VEHICLE MANAGEMENT,496.09,CAR LEASING CTRL A/C,VEHICLE LEASING CHARGES,5902489629,1000079116
04.10.2021,ENVIRONMENT DIRECTORATE,ARNOLD CLARK VEHICLE MANAGEMENT,497.04,CAR LEASING CTRL A/C,VEHICLE LEASING CHARGES,5902489630,1000079116
04.10.2021,ENVIRONMENT DIRECTORATE,ARNOLD CLARK VEHICLE MANAGEMENT,560.43,CAR LEASING CTRL A/C,VEHICLE LEASING CHARGES,5902489637,1000079116
04.10.2021,ENVIRONMENT DIRECTORATE,ARNOLD CLARK VEHICLE MANAGEMENT,582.19,CAR LEASING CTRL A/C,VEHICLE LEASING CHARGES,5902489673,1000079116
04.10.2021,ENVIRONMENT DIRECTORATE,ARNOLD CLARK VEHICLE MANAGEMENT,604.42,CAR LEASING CTRL A/C,VEHICLE LEASING CHARGES,5902489641,1000079116
04.10.2021,ENVIRONMENT DIRECTORATE,ARNOLD CLARK VEHICLE MANAGEMENT,614.28,CAR LEASING CTRL A/C,VEHICLE LEASING CHARGES,5902489637,1000079116
04.10.2021,ENVIRONMENT DIRECTORATE,ARNOLD CLARK VEHICLE MANAGEMENT,633.66,CAR LEASING CTRL A/C,VEHICLE LEASING CHARGES,5902489673,1000079116
04.10.2021,ENVIRONMENT DIRECTORATE,ARNOLD CLARK VEHICLE MANAGEMENT,649.2,CAR LEASING CTRL A/C,VEHICLE LEASING CHARGES,5902489641,1000079116
04.10.2021,ENVIRONMENT DIRECTORATE,ARNOLD CLARK VEHICLE MANAGEMENT,682.05,CAR LEASING CTRL A/C,VEHICLE LEASING CHARGES,5902489668,1000079116
04.10.2021,ENVIRONMENT DIRECTORATE,ARNOLD CLARK VEHICLE MANAGEMENT,685.97,CAR LEASING CTRL A/C,VEHICLE LEASING CHARGES,5902489633,1000079116
04.10.2021,ENVIRONMENT DIRECTORATE,ARNOLD CLARK VEHICLE MANAGEMENT,727.04,CAR LEASING CTRL A/C,VEHICLE LEASING CHARGES,5902489668,1000079116
04.10.2021,ENVIRONMENT DIRECTORATE,ARNOLD CLARK VEHICLE MANAGEMENT,748.75,CAR LEASING CTRL A/C,VEHICLE LEASING CHARGES,5902489633,1000079116
04.10.2021,ENVIRONMENT DIRECTORATE,ARNOLD CLARK VEHICLE MANAGEMENT,763.9,CAR LEASING CTRL A/C,VEHICLE LEASING CHARGES,5902489687,1000079116
04.10.2021,ENVIRONMENT DIRECTORATE,ARNOLD CLARK VEHICLE MANAGEMENT,797.96,CAR LEASING CTRL A/C,VEHICLE LEASING CHARGES,5902489655,1000079116
04.10.2021,ENVIRONMENT DIRECTORATE,ARNOLD CLARK VEHICLE MANAGEMENT,819.48,CAR LEASING CTRL A/C,VEHICLE LEASING CHARGES,5902489655,1000079116
04.10.2021,ENVIRONMENT DIRECTORATE,ARNOLD CLARK VEHICLE MANAGEMENT,825.28,CAR LEASING CTRL A/C,VEHICLE LEASING CHARGES,5902489690,1000079116
04.10.2021,ENVIRONMENT DIRECTORATE,ARNOLD CLARK VEHICLE MANAGEMENT,828.82,CAR LEASING CTRL A/C,VEHICLE LEASING CHARGES,5902489690,1000079116
04.10.2021,ENVIRONMENT DIRECTORATE,ARNOLD CLARK VEHICLE MANAGEMENT,862.02,CAR LEASING CTRL A/C,VEHICLE LEASING CHARGES,5902489687,1000079116
04.10.2021,ENVIRONMENT DIRECTORATE,ARNOLD CLARK VEHICLE MANAGEMENT,"1,078.67",CAR LEASING CTRL A/C,VEHICLE LEASING CHARGES,5902489638,1000079116
04.10.2021,ENVIRONMENT DIRECTORATE,ARNOLD CLARK VEHICLE MANAGEMENT,"1,099.31",CAR LEASING CTRL A/C,VEHICLE LEASING CHARGES,5902489638,1000079116
04.10.2021,ENVIRONMENT DIRECTORATE,BRITISH TELECOM PLC,"33,575.14",CCTV,TELEPHONES (LAND LINES),5902489651,1756938
04.10.2021,ENVIRONMENT DIRECTORATE,TRAVIS PERKINS TRADING COMPANY LTD,271.04,ENGINEERING CRAFTS,MATERIALS,5902489547,1514319
04.10.2021,ENVIRONMENT DIRECTORATE,TRAVIS PERKINS TRADING COMPANY LTD,596.96,ENGINEERING CRAFTS,MATERIALS,5902489547,1514319
04.10.2021,ENVIRONMENT DIRECTORATE,DANARM MACHINERY LIMITED,326.27,ICC SPECIAL TEAMS,EQUIPMENT PURCHASE & REPAIR,5902488920,1000045097
04.10.2021,ENVIRONMENT DIRECTORATE,WAYNE BEGLAN,350,LICENSING,LEGAL FEES & COURT COSTS,2103327449,1000069107
04.10.2021,ENVIRONMENT DIRECTORATE,AETHER LIGHTING LTD,"2,245.60",PUBLIC LIGHTING,MATERIALS,5902489704,1000081787
04.10.2021,ENVIRONMENT DIRECTORATE,DAVID GEORGE HALL,816,SASBU,LEGAL FEES & COURT COSTS,2103327423,1000059226
04.10.2021,ENVIRONMENT DIRECTORATE,JARED NORMAN,500,SASBU,LEGAL FEES & COURT COSTS,2103327432,1000064080
04.10.2021,ENVIRONMENT DIRECTORATE,JARED NORMAN,500,SASBU,LEGAL FEES & COURT COSTS,2103327433,1000064080
04.10.2021,ENVIRONMENT DIRECTORATE,NICHOLAS HAM,750,SASBU,LEGAL FEES & COURT COSTS,2103327445,1000068994
04.10.2021,ENVIRONMENT DIRECTORATE,NICHOLAS HAM,450,STREET TRADING A/C,LEGAL FEES & COURT COSTS,2103327444,1000068994
04.10.2021,ENVIRONMENT DIRECTORATE,TYCO INTEGRATED FIRE & SECURITY,300,TOWN CENTRE CCTV,OTHER CONTRACTORS,5902489698,1000077948
04.10.2021,ENVIRONMENT DIRECTORATE,TYCO INTEGRATED FIRE & SECURITY,"1,200.00",TOWN CENTRE CCTV,OTHER CONTRACTORS,5902489700,1000077948
04.10.2021,ENVIRONMENT DIRECTORATE,TYCO INTEGRATED FIRE & SECURITY,"1,704.83",TOWN CENTRE CCTV,OTHER CONTRACTORS,5902489691,1000077948
04.10.2021,F & C S EXCLUDING CORPORATE BUDGETS,REDACTED PERSONAL DATA,500,SESS,OTHER PAYMENTS FOR CLIENTS,REDACTED,REDACTED
04.10.2021,F & C S EXCLUDING CORPORATE BUDGETS,REDACTED PERSONAL DATA,500,SESS,OTHER PAYMENTS FOR CLIENTS,REDACTED,REDACTED
04.10.2021,F & C S EXCLUDING CORPORATE BUDGETS,REDACTED PERSONAL DATA,500,SESS,OTHER PAYMENTS FOR CLIENTS,REDACTED,REDACTED
04.10.2021,F & C S EXCLUDING CORPORATE BUDGETS,REDACTED PERSONAL DATA,500,SESS,OTHER PAYMENTS FOR CLIENTS,REDACTED,REDACTED
04.10.2021,F & C S EXCLUDING CORPORATE BUDGETS,REDACTED PERSONAL DATA,500,SESS,OTHER PAYMENTS FOR CLIENTS,REDACTED,REDACTED
04.10.2021,F & C S EXCLUDING CORPORATE BUDGETS,REDACTED PERSONAL DATA,500,SESS,OTHER PAYMENTS FOR CLIENTS,REDACTED,REDACTED
04.10.2021,F & C S EXCLUDING CORPORATE BUDGETS,REDACTED PERSONAL DATA,500,SESS,OTHER PAYMENTS FOR CLIENTS,REDACTED,REDACTED
04.10.2021,F & C S EXCLUDING CORPORATE BUDGETS,REDACTED PERSONAL DATA,500,SESS,OTHER PAYMENTS FOR CLIENTS,REDACTED,REDACTED
04.10.2021,F & C S EXCLUDING CORPORATE BUDGETS,REDACTED PERSONAL DATA,500,SESS,OTHER PAYMENTS FOR CLIENTS,REDACTED,REDACTED
04.10.2021,F & C S EXCLUDING CORPORATE BUDGETS,REDACTED PERSONAL DATA,500,SESS,OTHER PAYMENTS FOR CLIENTS,REDACTED,REDACTED
04.10.2021,F & C S EXCLUDING CORPORATE BUDGETS,REDACTED PERSONAL DATA,500,SESS,OTHER PAYMENTS FOR CLIENTS,REDACTED,REDACTED
04.10.2021,HOUSING,OCO LIMITED,"138,474.17",PAYMENTS CONTROL ACCOUNT - OCO,I-WORLD CONTRACTORS HOLDING ACCOUNT,5902489588,1006066
04.10.2021,HOUSING,PENNINGTON CHOICES LTD,435,PENNINGTON,I-WORLD CONTRACTORS HOLDING ACCOUNT,5902489686,1000067888
04.10.2021,HOUSING,SMITH & BYFORD LTD,"113,765.58",SMITH AND BYFORD,I-WORLD CONTRACTORS HOLDING ACCOUNT,5902489596,11212119
04.10.2021,HOUSING GENERAL FUND,LONDON BOROUGH OF BRENT,"2,481.24",CAPITAL PS (HOUSING GF),ICT ACQUISITION,5902489458,1000064734
04.10.2021,HOUSING GENERAL FUND,LONDON BOROUGH OF BRENT,"48,645.00",CAPITAL PS (HOUSING GF),ICT ACQUISITION,5902489455,1000064734
04.10.2021,HOUSING HRA,PELLINGS LLP,"7,546.00",CAPITAL PS (HRA),CONSTRUCTION FEES  - EXTERNAL,5902489500,1009262
04.10.2021,HOUSING HRA,CALFORD SEADEN LLP,706.58,CAPITAL PS (HRA),CONSTRUCTION FEES  - EXTERNAL,5902489675,1061592
04.10.2021,HOUSING HRA,SHARPE PRITCHARD LLP,"4,535.00",CAPITAL PS (HRA),CONSTRUCTION FEES - LEGAL,5902489478,1790085
04.10.2021,HOUSING HRA,ENGIE REGENERATION (APOLLO) LTD,"101,000.00",CAPITAL PS (HRA),CONSTRUCTION MAIN CONTRACT -CERTIFICATED,2103327923,4000449
04.10.2021,HOUSING HRA,A & E ELKINS LTD,"49,965.53",CAPITAL PS (HRA),CONSTRUCTION MAIN CONTRACT -CERTIFICATED,2103327932,4012501
04.10.2021,HOUSING HRA,A & E ELKINS LTD,"134,174.37",CAPITAL PS (HRA),CONSTRUCTION MAIN CONTRACT -CERTIFICATED,2103327930,4012501
04.10.2021,HOUSING HRA,WESTON WILLIAMSON + PARTNERS LLP,"11,180.00",CAPITAL PS (HRA),CONSTRUCTION FEES - ARCHITECT,5902489501,1000046660
04.10.2021,HOUSING HRA,WATERSLADE LTD,"4,400.00",CAPITAL PS (HRA),CONSTRUCTION FEES  - EXTERNAL,5902489484,1000075795
04.10.2021,HOUSING HRA,WATERMAN BUILDING SERVICES LTD,"-3,375.00",CAPITAL PS (HRA),CONSTRUCTION,5902478367,1000077421
04.10.2021,HOUSING HRA,WATERMAN BUILDING SERVICES LTD,"3,020.00",CAPITAL PS (HRA),CONSTRUCTION,5902488884,1000077421
04.10.2021,HOUSING HRA,WATERMAN BUILDING SERVICES LTD,"22,170.00",CAPITAL PS (HRA),CONSTRUCTION,5902488911,1000077421
04.10.2021,HOUSING HRA,ENVIRONTEC LIMITED,"1,150.00",CAPITAL PS (HRA),CONSTRUCTION FEES  - EXTERNAL,5902489723,1000087172
04.10.2021,HOUSING HRA,SMITH & BYFORD LTD,"45,581.42",CAPITAL PS (HRA),CONSTRUCTION,2103327935,3000000520
04.10.2021,HOUSING HRA,BSW HEATING LTD,"81,845.65",CAPITAL PS (HRA),CONSTRUCTION MAIN CONTRACT -CERTIFICATED,2103327395,3000000580
04.10.2021,HOUSING HRA,PINNICALE BUILDING SERVICES,"7,903.00",CAPITAL PS (HRA),CONST'N MAIN CONTRACT - NON CERTIFICATED,2103327920,3000002082
04.10.2021,HOUSING HRA,BAILY  GARNER LLP,"3,755.00",CAPITAL PS (REGEN),CONSTRUCTION FEES  - EXTERNAL,5902488934,1000663
04.10.2021,LEISURE DIRECTORATE,CARNAVAL LATINO UK LTD,"5,868.00",CULTURAL CELEBRATIONS FUND,GRANTS,5902489722,1000087339
04.10.2021,PLANNING AND TRANSPORT,THE WATERFRONT CONFERENCE COMPANY LTD,554.4,S106 & CIL ADMINISTRATION,TRAINING,5902489660,11103945
04.10.2021,PUBLIC HEALTH,COIN STREET CENTRE TRUST,"2,304.00",PLACE & HEALTH IMPROVEMENT,EXTERNAL AGENCIES AND BODIES,5902489689,1000046703
04.10.2021,PUBLIC HEALTH,ST HELENA & OLDFIELD TR&A,"1,800.00",PLACE & HEALTH IMPROVEMENT,EXTERNAL AGENCIES AND BODIES,5902489676,1000061625
04.10.2021,PUBLIC HEALTH,PILGRIM'S WAY PRIMARY SCHOOL,"1,958.40",PLACE & HEALTH IMPROVEMENT,EXTERNAL AGENCIES AND BODIES,5902489659,5001000054
04.10.2021,PUBLIC HEALTH,PILGRIM'S WAY PRIMARY SCHOOL,"5,385.60",PLACE & HEALTH IMPROVEMENT,EXTERNAL AGENCIES AND BODIES,5902489654,5001000054
04.10.2021,RESIDENT SERVICES,REDACTED PERSONAL DATA,479.55,CAMBERWELL,SERVICE CHARGES,REDACTED,REDACTED
04.10.2021,RESIDENT SERVICES,NPOWER LTD,"1,444.29",TA HOSTELS,ELECTRICITY,5902489718,1000064203
04.10.2021,SBS OPERATIONS,TRAVIS PERKINS TRADING COMPANY LTD,510,PECKHAM VOIDS,MATERIALS,5902489570,1514319
04.10.2021,SBS OPERATIONS,AKW MEDI-CARE LTD,285.16,SBS AIDS AND ADAPTATIONS,MATERIALS,5902489389,1000047103
04.10.2021,SBS OPERATIONS,AKW MEDI-CARE LTD,285.18,SBS AIDS AND ADAPTATIONS,MATERIALS,5902489388,1000047103
04.10.2021,SBS OPERATIONS,TRAVIS PERKINS TRADING COMPANY LTD,496.4,SBS COMMUNAL REPAIRS,MATERIALS,5902489549,1514319
04.10.2021,SBS OPERATIONS,TRAVIS PERKINS TRADING COMPANY LTD,309.19,WALWORTH DD,MATERIALS,5902489462,1514319
04.10.2021,SBS SUPPORT,"BROWNING, JONES & MORRIS LTD",279.6,STORES / LOGISTICS,MATERIALS,5902489585,1027429
04.10.2021,SBS SUPPORT,TRAVIS PERKINS TRADING COMPANY LTD,284.49,STORES / LOGISTICS,BSU STORES CONTROL ACCOUNT (SAP MATERIALS MGT),5902489692,1514319
04.10.2021,SOUTHWARK BUILDING SERVICES,"BROWNING, JONES & MORRIS LTD",339.2,STORES/LOGISTICS,CREDITORS -GR/IR CLEARING ACCOUNT,5902489584,1027429
04.10.2021,SOUTHWARK BUILDING SERVICES,"BROWNING, JONES & MORRIS LTD","1,325.00",STORES/LOGISTICS,CREDITORS -GR/IR CLEARING ACCOUNT,5902489587,1027429
04.10.2021,SOUTHWARK BUILDING SERVICES,"BROWNING, JONES & MORRIS LTD","2,116.50",STORES/LOGISTICS,CREDITORS -GR/IR CLEARING ACCOUNT,5902489586,1027429
04.10.2021,SOUTHWARK BUILDING SERVICES,TRAVIS PERKINS TRADING COMPANY LTD,252.56,STORES/LOGISTICS,CREDITORS -GR/IR CLEARING ACCOUNT,5902489692,1514319
04.10.2021,SOUTHWARK BUILDING SERVICES,TRAVIS PERKINS TRADING COMPANY LTD,252.56,STORES/LOGISTICS,CREDITORS -GR/IR CLEARING ACCOUNT,5902489692,1514319
04.10.2021,SOUTHWARK BUILDING SERVICES,TRAVIS PERKINS TRADING COMPANY LTD,284.8,STORES/LOGISTICS,CREDITORS -GR/IR CLEARING ACCOUNT,5902489692,1514319
04.10.2021,SOUTHWARK BUILDING SERVICES,TRAVIS PERKINS TRADING COMPANY LTD,286,STORES/LOGISTICS,CREDITORS -GR/IR CLEARING ACCOUNT,5902489568,1514319
04.10.2021,SOUTHWARK BUILDING SERVICES,TRAVIS PERKINS TRADING COMPANY LTD,303.86,STORES/LOGISTICS,CREDITORS -GR/IR CLEARING ACCOUNT,5902489692,1514319
04.10.2021,SOUTHWARK BUILDING SERVICES,TRAVIS PERKINS TRADING COMPANY LTD,321.6,STORES/LOGISTICS,CREDITORS -GR/IR CLEARING ACCOUNT,5902489692,1514319
04.10.2021,SOUTHWARK BUILDING SERVICES,TRAVIS PERKINS TRADING COMPANY LTD,339.96,STORES/LOGISTICS,CREDITORS -GR/IR CLEARING ACCOUNT,5902489692,1514319
04.10.2021,SOUTHWARK BUILDING SERVICES,TRAVIS PERKINS TRADING COMPANY LTD,344.4,STORES/LOGISTICS,CREDITORS -GR/IR CLEARING ACCOUNT,5902489692,1514319
04.10.2021,SOUTHWARK BUILDING SERVICES,TRAVIS PERKINS TRADING COMPANY LTD,344.4,STORES/LOGISTICS,CREDITORS -GR/IR CLEARING ACCOUNT,5902489692,1514319
04.10.2021,SOUTHWARK BUILDING SERVICES,TRAVIS PERKINS TRADING COMPANY LTD,388.3,STORES/LOGISTICS,CREDITORS -GR/IR CLEARING ACCOUNT,5902489692,1514319
04.10.2021,SOUTHWARK BUILDING SERVICES,TRAVIS PERKINS TRADING COMPANY LTD,444.6,STORES/LOGISTICS,CREDITORS -GR/IR CLEARING ACCOUNT,5902489692,1514319
04.10.2021,SOUTHWARK BUILDING SERVICES,TRAVIS PERKINS TRADING COMPANY LTD,511.5,STORES/LOGISTICS,CREDITORS -GR/IR CLEARING ACCOUNT,5902489692,1514319
04.10.2021,SOUTHWARK BUILDING SERVICES,TRAVIS PERKINS TRADING COMPANY LTD,511.5,STORES/LOGISTICS,CREDITORS -GR/IR CLEARING ACCOUNT,5902489692,1514319
04.10.2021,SOUTHWARK BUILDING SERVICES,TRAVIS PERKINS TRADING COMPANY LTD,556.5,STORES/LOGISTICS,CREDITORS -GR/IR CLEARING ACCOUNT,5902489692,1514319
04.10.2021,SOUTHWARK BUILDING SERVICES,TRAVIS PERKINS TRADING COMPANY LTD,582,STORES/LOGISTICS,CREDITORS -GR/IR CLEARING ACCOUNT,5902489692,1514319
04.10.2021,SOUTHWARK BUILDING SERVICES,TRAVIS PERKINS TRADING COMPANY LTD,582,STORES/LOGISTICS,CREDITORS -GR/IR CLEARING ACCOUNT,5902489692,1514319
04.10.2021,SOUTHWARK BUILDING SERVICES,TRAVIS PERKINS TRADING COMPANY LTD,661.56,STORES/LOGISTICS,CREDITORS -GR/IR CLEARING ACCOUNT,5902489692,1514319
04.10.2021,SOUTHWARK BUILDING SERVICES,TRAVIS PERKINS TRADING COMPANY LTD,704,STORES/LOGISTICS,CREDITORS -GR/IR CLEARING ACCOUNT,5902489692,1514319
04.10.2021,SOUTHWARK BUILDING SERVICES,TRAVIS PERKINS TRADING COMPANY LTD,830,STORES/LOGISTICS,CREDITORS -GR/IR CLEARING ACCOUNT,5902489692,1514319
04.10.2021,SOUTHWARK BUILDING SERVICES,TRAVIS PERKINS TRADING COMPANY LTD,"1,143.20",STORES/LOGISTICS,CREDITORS -GR/IR CLEARING ACCOUNT,5902489692,1514319
04.10.2021,SOUTHWARK BUILDING SERVICES,TRAVIS PERKINS TRADING COMPANY LTD,"1,164.00",STORES/LOGISTICS,CREDITORS -GR/IR CLEARING ACCOUNT,5902489692,1514319
04.10.2021,SOUTHWARK BUILDING SERVICES,TRAVIS PERKINS TRADING COMPANY LTD,"1,197.00",STORES/LOGISTICS,CREDITORS -GR/IR CLEARING ACCOUNT,5902489692,1514319
04.10.2021,SOUTHWARK BUILDING SERVICES,TRAVIS PERKINS TRADING COMPANY LTD,"1,197.00",STORES/LOGISTICS,CREDITORS -GR/IR CLEARING ACCOUNT,5902489692,1514319
04.10.2021,SOUTHWARK BUILDING SERVICES,TRAVIS PERKINS TRADING COMPANY LTD,"1,660.00",STORES/LOGISTICS,CREDITORS -GR/IR CLEARING ACCOUNT,5902489692,1514319
05.10.2021,ADULT SOCIAL CARE,BY THE BRIDGE LTD,"5,571.30",DISABILITIES LAC,EXTERNAL AGENCIES AND BODIES,2103328058,1000043961
05.10.2021,ADULT SOCIAL CARE,BY THE BRIDGE LTD,"6,030.00",DISABILITIES LAC,EXTERNAL AGENCIES AND BODIES,2103328055,1000043961
05.10.2021,ADULT SOCIAL CARE,SUPREME CARE SERVICES LTD,"2,265.48",DISCHARGE TO ACCESS,HOMECARE - C&V,2103328017,1000059416
05.10.2021,ADULT SOCIAL CARE,SUPREME CARE SERVICES LTD,"3,272.36",DISCHARGE TO ACCESS,HOMECARE - C&V,2103328023,1000059416
05.10.2021,ADULT SOCIAL CARE,CARE MANAGEMENT GROUP,396,LD LTS 18-64,SUPPORTED LIVING,2103328079,1000040475
05.10.2021,ADULT SOCIAL CARE,THE NEW SHOOTS,375,LD LTS 18-64,DAYCARE,2103328080,1000073970
05.10.2021,ADULT SOCIAL CARE,ACCESS MOBILITY TRANSPORT LTD,"2,701.60",LD LTS 18-64,CLIENT TRANSPORT,2103328077,1000074637
05.10.2021,ADULT SOCIAL CARE,SUPREME CARE SERVICES LTD,881.04,PHY LTS 18-64,HOMECARE - C&V,2103328012,1000059416
05.10.2021,ADULT SOCIAL CARE,SUPREME CARE SERVICES LTD,"2,625.08",PHY LTS 18-64,HOMECARE - C&V,2103328019,1000059416
05.10.2021,ADULT SOCIAL CARE,SUPREME CARE SERVICES LTD,624.25,PHY LTS 65+,HOMECARE - C&V,2103328016,1000059416
05.10.2021,ADULT SOCIAL CARE,SUPREME CARE SERVICES LTD,701.24,PHY LTS 65+,HOMECARE - C&V,2103328025,1000059416
05.10.2021,ADULT SOCIAL CARE,SUPREME CARE SERVICES LTD,"3,344.28",PHY LTS 65+,HOMECARE - C&V,2103328011,1000059416
05.10.2021,ADULT SOCIAL CARE,SUPREME CARE SERVICES LTD,274.18,PHY STS 65+,HOMECARE - IC,2103328013,1000059416
05.10.2021,ADULT SOCIAL CARE,SUPREME CARE SERVICES LTD,377.58,PHY STS 65+,HOMECARE - IC,2103328004,1000059416
05.10.2021,ADULT SOCIAL CARE,SUPREME CARE SERVICES LTD,629.32,PHY STS 65+,HOMECARE - IC,2103328015,1000059416
05.10.2021,ASSET MANAGEMENT,CHESHIRE ESTATE AND LEGAL LTD,291.67,DISREPAIR,PAYMENTS FOR LEGAL SERVICES,2103327999,1000081908
05.10.2021,ASSET MANAGEMENT,CHESHIRE ESTATE AND LEGAL LTD,416.67,DISREPAIR,PAYMENTS FOR LEGAL SERVICES,2103327998,1000081908
05.10.2021,ASSET MANAGEMENT,CHESHIRE ESTATE AND LEGAL LTD,"5,833.33",DISREPAIR,PAYMENTS FOR LEGAL SERVICES,2103327988,1000081908
05.10.2021,ASSET MANAGEMENT,METRIC ADMINISTRATION  SERVICES LTD,"7,196.62",DISREPAIR,PAYMENTS FOR LEGAL SERVICES,2103327987,1000086909
05.10.2021,ASSET MANAGEMENT,BYRNE LOOBY  PARTNERS (UK) LIMITED,935,DISREPAIR,PAYMENTS FOR LEGAL SERVICES,2103327995,1000087100
05.10.2021,ASSET MANAGEMENT,ANTONY HODARI  SOLICITORS,"5,333.33",DISREPAIR,PAYMENTS FOR LEGAL SERVICES,2103327989,1000031040
05.10.2021,ASSET MANAGEMENT,DRISCOLL KINGSTON SOLICITORS,"4,166.67",DISREPAIR,PAYMENTS FOR LEGAL SERVICES,2103327992,1000082357
05.10.2021,ASSET MANAGEMENT,BROWN TURNER ROSS SOLICITORS,"1,666.67",DISREPAIR,PAYMENTS FOR LEGAL SERVICES,2103327993,1000082981
05.10.2021,ASSET MANAGEMENT,BARNES SOLICITORS LLP,"4,166.67",DISREPAIR,PAYMENTS FOR LEGAL SERVICES,2103327994,1000083820
05.10.2021,ASSET MANAGEMENT,BOND TURNER  SOLICITORS,"1,250.00",DISREPAIR,PAYMENTS FOR LEGAL SERVICES,2103327996,1000085362
05.10.2021,ASSET MANAGEMENT HGF,MITIE FM LIMITED,"19,696.10",PLANNED FM SERVICES BY KIER,INTEGRATED FACILITIES MANAGEMENT CONTRACT,5902489789,1000070792
05.10.2021,CENTRAL FUNCTIONS,NEC SOFTWARE SOLUTIONS UK LTD,"31,250.00",BUSINESS APPLICATIONS,SOFTWARE,5902489812,1000087043
05.10.2021,CENTRAL FUNCTIONS,CBS MAINTENANCE SERVICES LTD,446.5,COMMERCIAL PROPERTIES,BUILDING R&M,5902489752,1000072375
05.10.2021,CENTRAL FUNCTIONS,CBS MAINTENANCE SERVICES LTD,446.5,COMMERCIAL PROPERTIES,BUILDING R&M,5902489753,1000072375
05.10.2021,CENTRAL FUNCTIONS,CBS MAINTENANCE SERVICES LTD,705,COMMERCIAL PROPERTIES,BUILDING R&M,5902489808,1000072375
05.10.2021,CENTRAL FUNCTIONS,PURCELL ARCHITECTURE LTD,"2,500.00",COMMERCIAL PROPERTIES,PROFESSIONAL FEES,5902489776,1000082955
05.10.2021,CHILDREN AND ADULT,FARRANS CONSTRUCTION,"1,080,278.93",CAPITAL PS (EDUCATION),CONSTRUCTION MAIN CONTRACT -CERTIFICATED,2103328095,3000002159
05.10.2021,CHILDREN AND FAMILIES,DOG KENNEL HILL ADVENTURE PLAYGROUND LTD,300,ADOPT LONDON SOUTH,EXTERNAL AGENCIES AND BODIES,5902489965,11134529
05.10.2021,CHILDREN AND FAMILIES,FAMILY ACTION,-708.84,ADOPTION SUPP FUND,EXTERNAL AGENCIES AND BODIES,5902481614,1013739
05.10.2021,CHILDREN AND FAMILIES,FAMILY ACTION,"4,983.72",ADOPTION SUPP FUND,PROFESSIONAL FEES,5902489962,1013739
05.10.2021,CHILDREN AND FAMILIES,REDACTED PERSONAL DATA,490,ADOPTION SUPP FUND,PROFESSIONAL FEES,REDACTED,REDACTED
05.10.2021,CHILDREN AND FAMILIES,REDACTED PERSONAL DATA,490,ADOPTION SUPP FUND,PROFESSIONAL FEES,REDACTED,REDACTED
05.10.2021,CHILDREN AND FAMILIES,REDACTED PERSONAL DATA,"1,075.00",ADOPTION SUPP FUND,PROFESSIONAL FEES,REDACTED,REDACTED
05.10.2021,CHILDREN AND FAMILIES,REDACTED PERSONAL DATA,285,ADOPTION SUPP FUND,PROFESSIONAL FEES,REDACTED,REDACTED
05.10.2021,CHILDREN AND FAMILIES,REDACTED PERSONAL DATA,"1,220.00",ADOPTION SUPP FUND,PROFESSIONAL FEES,REDACTED,REDACTED
05.10.2021,CHILDREN AND FAMILIES,REDACTED PERSONAL DATA,"2,700.00",ADOPTION SUPP FUND,PROFESSIONAL FEES,REDACTED,REDACTED
05.10.2021,CHILDREN AND FAMILIES,REDACTED PERSONAL DATA,280,ADOPTION SUPP FUND,PROFESSIONAL FEES,REDACTED,REDACTED
05.10.2021,CHILDREN AND FAMILIES,REDACTED PERSONAL DATA,420,ADOPTION SUPP FUND,PROFESSIONAL FEES,REDACTED,REDACTED
05.10.2021,CHILDREN AND FAMILIES,REDACTED PERSONAL DATA,420,ADOPTION SUPP FUND,PROFESSIONAL FEES,REDACTED,REDACTED
05.10.2021,CHILDREN AND FAMILIES,REDACTED PERSONAL DATA,560,ADOPTION SUPP FUND,PROFESSIONAL FEES,REDACTED,REDACTED
05.10.2021,CHILDREN AND FAMILIES,REDACTED PERSONAL DATA,780,ADOPTION SUPP FUND,PROFESSIONAL FEES,REDACTED,REDACTED
05.10.2021,CHILDREN AND FAMILIES,REDACTED PERSONAL DATA,300,CARELEAVER UNIV SUPP,CLIENT TRANSPORT,REDACTED,REDACTED
05.10.2021,CHILDREN AND FAMILIES,REDACTED PERSONAL DATA,700,CARELEAVER UNIV SUPP,OTHER PAYMENTS FOR CLIENTS,REDACTED,REDACTED
05.10.2021,CHILDREN AND FAMILIES,LONDON BUBBLE THEATRE COMPANY,"1,000.00",CENTRAL SUPPORT,TRAINING,5902489958,11022517
05.10.2021,CHILDREN AND FAMILIES,INTERPRETING DIRECT CO (UK) LTD,"5,602.50",CENTRAL SUPPORT,TRANSLATION SERVICES,5902489822,1000070133
05.10.2021,CHILDREN AND FAMILIES,OWNLIFE RESIDENTIAL LTD,"5,005.00",CHILDREN�S RESID,RESIDENTIAL CARE,2103328076,1000085398
05.10.2021,CHILDREN AND FAMILIES,OWNLIFE RESIDENTIAL LTD,"25,285.71",CHILDREN�S RESID,RESIDENTIAL CARE,2103328075,1000085398
05.10.2021,CHILDREN AND FAMILIES,ACORN CARE & EDUCATION LTD,"14,957.14",CHILDREN�S RESID,RESIDENTIAL CARE,2103328074,1000085841
05.10.2021,CHILDREN AND FAMILIES,REDACTED PERSONAL DATA,300,CHILDREN�S RESID,OTHER PAYMENTS FOR CLIENTS,REDACTED,REDACTED
05.10.2021,CHILDREN AND FAMILIES,CORAM VOICE,"22,237.50",CHILDRENS ADVOCACY & INDEPENDENT VISITOR,EXTERNAL AGENCIES AND BODIES,5902489942,1000076392
05.10.2021,CHILDREN AND FAMILIES,TONBRIDGE BAPTIST CHURCH,530,CONTACT SERVICE,OTHER PAYMENTS FOR CLIENTS,5902489934,1000087369
05.10.2021,CHILDREN AND FAMILIES,TONBRIDGE BAPTIST CHURCH,571.5,CONTACT SERVICE,OTHER PAYMENTS FOR CLIENTS,5902489932,1000087369
05.10.2021,CHILDREN AND FAMILIES,AIDHOUR LIMITED,520,DIRECTOR OF C&F,PROFESSIONAL FEES,5902489959,1000057345
05.10.2021,CHILDREN AND FAMILIES,AIDHOUR LIMITED,"4,127.50",DIRECTOR OF C&F,PROFESSIONAL FEES,5902489960,1000057345
05.10.2021,CHILDREN AND FAMILIES,REDACTED PERSONAL DATA,300,FE SUPPORT,CLIENT TRANSPORT,REDACTED,REDACTED
05.10.2021,CHILDREN AND FAMILIES,REDACTED PERSONAL DATA,300,FE SUPPORT,CLIENT TRANSPORT,REDACTED,REDACTED
05.10.2021,CHILDREN AND FAMILIES,REDACTED PERSONAL DATA,300,FE SUPPORT,CLIENT TRANSPORT,REDACTED,REDACTED
05.10.2021,CHILDREN AND FAMILIES,TACT,396.42,FRIENDS & FAMILY FOSTERING,EXTERNAL AGENCIES AND BODIES,2103328070,1000012941
05.10.2021,CHILDREN AND FAMILIES,FIVE RIVERS CHILD CARE LTD,"3,257.14",FRIENDS & FAMILY FOSTERING,EXTERNAL AGENCIES AND BODIES,2103328054,1000018792
05.10.2021,CHILDREN AND FAMILIES,KASPER FOSTERING,"3,399.90",FRIENDS & FAMILY FOSTERING,EXTERNAL AGENCIES AND BODIES,2103328072,1000036628
05.10.2021,CHILDREN AND FAMILIES,KASPER FOSTERING,"4,490.70",FRIENDS & FAMILY FOSTERING,EXTERNAL AGENCIES AND BODIES,2103328073,1000036628
05.10.2021,CHILDREN AND FAMILIES,SUNBEAM FOSTERING AGENCY LTD,"3,321.43",FRIENDS & FAMILY FOSTERING,EXTERNAL AGENCIES AND BODIES,2103328071,1000041457
05.10.2021,CHILDREN AND FAMILIES,SUNBEAM FOSTERING AGENCY LTD,"5,464.29",FRIENDS & FAMILY FOSTERING,EXTERNAL AGENCIES AND BODIES,2103328052,1000041457
05.10.2021,CHILDREN AND FAMILIES,BY THE BRIDGE LTD,"4,082.40",FRIENDS & FAMILY FOSTERING,EXTERNAL AGENCIES AND BODIES,2103328056,1000043961
05.10.2021,CHILDREN AND FAMILIES,BY THE BRIDGE LTD,"4,297.20",FRIENDS & FAMILY FOSTERING,EXTERNAL AGENCIES AND BODIES,2103328057,1000043961
05.10.2021,CHILDREN AND FAMILIES,BY THE BRIDGE LTD,"4,366.50",FRIENDS & FAMILY FOSTERING,EXTERNAL AGENCIES AND BODIES,2103328049,1000043961
05.10.2021,CHILDREN AND FAMILIES,BY THE BRIDGE LTD,"4,433.10",FRIENDS & FAMILY FOSTERING,EXTERNAL AGENCIES AND BODIES,2103328063,1000043961
05.10.2021,CHILDREN AND FAMILIES,BY THE BRIDGE LTD,"4,508.13",FRIENDS & FAMILY FOSTERING,EXTERNAL AGENCIES AND BODIES,2103328062,1000043961
05.10.2021,CHILDREN AND FAMILIES,BY THE BRIDGE LTD,"4,596.00",FRIENDS & FAMILY FOSTERING,EXTERNAL AGENCIES AND BODIES,2103328051,1000043961
05.10.2021,CHILDREN AND FAMILIES,BY THE BRIDGE LTD,"4,745.40",FRIENDS & FAMILY FOSTERING,EXTERNAL AGENCIES AND BODIES,2103328050,1000043961
05.10.2021,CHILDREN AND FAMILIES,BY THE BRIDGE LTD,"4,745.40",FRIENDS & FAMILY FOSTERING,EXTERNAL AGENCIES AND BODIES,2103328066,1000043961
05.10.2021,CHILDREN AND FAMILIES,DIVERSE CARE (UK) LTD,"4,980.15",FRIENDS & FAMILY FOSTERING,EXTERNAL AGENCIES AND BODIES,2103328053,1000055636
05.10.2021,CHILDREN AND FAMILIES,REGIONAL FOSTERING SERVICES LTD,"4,264.29",FRIENDS & FAMILY FOSTERING,EXTERNAL AGENCIES AND BODIES,2103328068,1000080112
05.10.2021,CHILDREN AND FAMILIES,SHARED CARE SERVICES LTD,"6,393.60",FRIENDS & FAMILY FOSTERING,EXTERNAL AGENCIES AND BODIES,2103328060,1000080308
05.10.2021,CHILDREN AND FAMILIES,FAMILY FIRST FOSTERING LTD,"3,697.50",FRIENDS & FAMILY FOSTERING,EXTERNAL AGENCIES AND BODIES,2103328059,1000080631
05.10.2021,CHILDREN AND FAMILIES,FAMILY WORKS FOSTERING LTD,349.7,FRIENDS & FAMILY FOSTERING,EXTERNAL AGENCIES AND BODIES,2103328064,1000082529
05.10.2021,CHILDREN AND FAMILIES,FAMILY WORKS FOSTERING LTD,"6,072.86",FRIENDS & FAMILY FOSTERING,EXTERNAL AGENCIES AND BODIES,2103328061,1000082529
05.10.2021,CHILDREN AND FAMILIES,AIM HIGH FOSTERING SERVICES LTD,"5,142.60",FRIENDS & FAMILY FOSTERING,EXTERNAL AGENCIES AND BODIES,2103328069,1000082607
05.10.2021,CHILDREN AND FAMILIES,SILVER LINING FOSTERING LTD,"1,328.57",FRIENDS & FAMILY FOSTERING,EXTERNAL AGENCIES AND BODIES,2103328067,1000087318
05.10.2021,CHILDREN AND FAMILIES,SILVER LINING FOSTERING LTD,"3,321.43",FRIENDS & FAMILY FOSTERING,EXTERNAL AGENCIES AND BODIES,2103328065,1000087318
05.10.2021,CHILDREN AND FAMILIES,DANDELION TIME,"1,000.00",P & R CARE TEAM,EXTERNAL AGENCIES AND BODIES,5902489824,1000087231
05.10.2021,CHILDREN AND FAMILIES,REDACTED PERSONAL DATA,320,P & R CARE TEAM,OTHER PAYMENTS FOR CLIENTS,REDACTED,REDACTED
05.10.2021,CHILDREN AND FAMILIES,ST CHRISTOPHER FELLOWSHIP,"4,457.04",SEMI-IND CARELEAVERS,EXTERNAL AGENCIES AND BODIES,2103328037,1000045269
05.10.2021,CHILDREN AND FAMILIES,OWNLIFE LTD,"3,428.58",SEMI-IND CARELEAVERS,EXTERNAL AGENCIES AND BODIES,2103328039,1000056219
05.10.2021,CHILDREN AND FAMILIES,ELLIOT LEIGH TLC LTD,-491.47,SEMI-IND CARELEAVERS,COSTS RECOVERED,2103328098,1000079022
05.10.2021,CHILDREN AND FAMILIES,ELLIOT LEIGH TLC LTD,"1,671.30",SEMI-IND CARELEAVERS,EXTERNAL AGENCIES AND BODIES,2103328031,1000079022
05.10.2021,CHILDREN AND FAMILIES,ELLIOT LEIGH TLC LTD,"1,924.20",SEMI-IND CARELEAVERS,EXTERNAL AGENCIES AND BODIES,2103328027,1000079022
05.10.2021,CHILDREN AND FAMILIES,ELLIOT LEIGH TLC LTD,"1,950.00",SEMI-IND CARELEAVERS,EXTERNAL AGENCIES AND BODIES,2103328040,1000079022
05.10.2021,CHILDREN AND FAMILIES,ELLIOT LEIGH TLC LTD,"2,241.30",SEMI-IND CARELEAVERS,EXTERNAL AGENCIES AND BODIES,2103328032,1000079022
05.10.2021,CHILDREN AND FAMILIES,ELLIOT LEIGH TLC LTD,"2,421.30",SEMI-IND CARELEAVERS,EXTERNAL AGENCIES AND BODIES,2103328033,1000079022
05.10.2021,CHILDREN AND FAMILIES,ELLIOT LEIGH TLC LTD,"2,808.30",SEMI-IND CARELEAVERS,EXTERNAL AGENCIES AND BODIES,2103328026,1000079022
05.10.2021,CHILDREN AND FAMILIES,PATHWAY LTD,"2,836.24",SEMI-IND CARELEAVERS,EXTERNAL AGENCIES AND BODIES,2103328035,1000080564
05.10.2021,CHILDREN AND FAMILIES,PATHWAY LTD,300,SEMI-IND CARELEAVERS,OTHER PAYMENTS FOR CLIENTS,2103328034,1000080564
05.10.2021,CHILDREN AND FAMILIES,JORDAN XAVIER LTD,321.43,SEMI-IND CARELEAVERS,EXTERNAL AGENCIES AND BODIES,2103328036,1000081470
05.10.2021,CHILDREN AND FAMILIES,SILVER BIRCH CARE LTD,"3,750.00",SEMI-IND LAC 16-17,EXTERNAL AGENCIES AND BODIES,2103328042,1000076525
05.10.2021,CHILDREN AND FAMILIES,SILVER BIRCH CARE LTD,"17,141.43",SEMI-IND LAC 16-17,EXTERNAL AGENCIES AND BODIES,2103328047,1000076525
05.10.2021,CHILDREN AND FAMILIES,SILVER BIRCH CARE LTD,278.57,SEMI-IND LAC 16-17,OTHER PAYMENTS FOR CLIENTS,2103328043,1000076525
05.10.2021,CHILDREN AND FAMILIES,SILVER BIRCH CARE LTD,300,SEMI-IND LAC 16-17,OTHER PAYMENTS FOR CLIENTS,2103328044,1000076525
05.10.2021,CHILDREN AND FAMILIES,ARC COMMUNITY TRUSTEES,650,SPECIAL GUARDIANSHIP,PAYMENTS TO CARERS,5902489915,1000046206
05.10.2021,CHILDREN AND FAMILIES,OWNLIFE LTD,"2,700.00",UASC CARELEAVERS,EXTERNAL AGENCIES AND BODIES,2103328038,1000056219
05.10.2021,CHILDREN AND FAMILIES,ELLIOT LEIGH TLC LTD,"-1,283.96",UASC CARELEAVERS,COSTS RECOVERED,2103328097,1000079022
05.10.2021,CHILDREN AND FAMILIES,ELLIOT LEIGH TLC LTD,"1,658.40",UASC CARELEAVERS,EXTERNAL AGENCIES AND BODIES,2103328030,1000079022
05.10.2021,CHILDREN AND FAMILIES,ELLIOT LEIGH TLC LTD,"1,674.30",UASC CARELEAVERS,EXTERNAL AGENCIES AND BODIES,2103328029,1000079022
05.10.2021,CHILDREN AND FAMILIES,ELLIOT LEIGH TLC LTD,"2,314.20",UASC CARELEAVERS,EXTERNAL AGENCIES AND BODIES,2103328041,1000079022
05.10.2021,CHILDREN AND FAMILIES,ELLIOT LEIGH TLC LTD,"2,347.80",UASC CARELEAVERS,EXTERNAL AGENCIES AND BODIES,2103328028,1000079022
05.10.2021,CHILDREN AND FAMILIES,REDACTED PERSONAL DATA,400,UASC CARELEAVERS,OTHER PAYMENTS FOR CLIENTS,REDACTED,REDACTED
05.10.2021,CHILDREN AND FAMILIES,DREAMFO HOUSING LTD,"3,214.20",UASC LAC 16-17,EXTERNAL AGENCIES AND BODIES,2103328045,1000087273
05.10.2021,CHILDREN AND FAMILIES,DREAMFO HOUSING LTD,300,UASC LAC 16-17,OTHER PAYMENTS FOR CLIENTS,2103328046,1000087273
05.10.2021,COMMUNITIES,NHS SOUTH EAST LONDON CCG,"36,780.00",ADULT SM S75 (INSTEAD OF PHARMACY SM),OTHER CONTRACTORS,5902489925,1000085592
05.10.2021,COMMUNITIES,SOUTH LONDON GALLERY,"3,500.00",EAST CENTRAL,GRANTS,5902489977,11011694
05.10.2021,COMMUNITIES,SUPREME CARE SERVICES LTD,575.36,NO RECOURSE TO PUBLIC FUNDS,HOMECARE - C&V,2103328014,1000059416
05.10.2021,COMMUNITIES,SUPREME CARE SERVICES LTD,579.86,NO RECOURSE TO PUBLIC FUNDS,HOMECARE - C&V,2103328021,1000059416
05.10.2021,COMMUNITIES,SUPREME CARE SERVICES LTD,970.92,NO RECOURSE TO PUBLIC FUNDS,HOMECARE - C&V,2103328009,1000059416
05.10.2021,COMMUNITIES,SUPREME CARE SERVICES LTD,979.91,NO RECOURSE TO PUBLIC FUNDS,HOMECARE - C&V,2103328018,1000059416
05.10.2021,COMMUNITIES,SUPREME CARE SERVICES LTD,"1,456.38",NO RECOURSE TO PUBLIC FUNDS,HOMECARE - C&V,2103328022,1000059416
05.10.2021,COMMUNITIES,BANKSIDE OPEN SPACES TRUST,"4,758.00",NORTH WEST,GRANTS,5902489795,1000018290
05.10.2021,COMMUNITIES,BANKSIDE OPEN SPACES TRUST,"9,997.00",NORTH WEST,GRANTS,5902489814,1000018290
05.10.2021,COMMUNITIES,MENTAL FIGHT CLUB,"4,850.00",NORTH WEST,GRANTS,5902489751,1000051170
05.10.2021,COMMUNITIES,AT THE HEART,"1,215.50",NORTH WEST,GRANTS,5902489731,1000087331
05.10.2021,COMMUNITIES,THE SAPPHIRE COMMUNITY GROUP,400,SOUTHWARK CONVERSATION,GRANTS,5902489760,1000084307
05.10.2021,COMMUNITIES,COOL IT WORLD LTD - BLUE PATCH A/C,500,SOUTHWARK CONVERSATION,GRANTS,5902489762,1000087353
05.10.2021,CUSTOMER EXPERIENCE HGF,CORONERS' COURTS SUPPORT SERVICE,"1,392.00",CORONER'S,PROFESSIONAL FEES,5902489930,1000077579
05.10.2021,CUSTOMER EXPERIENCE HGF,SG PATH LTD,415.8,CORONER'S,PROFESSIONAL FEES,5902489911,1000077883
05.10.2021,CUSTOMER EXPERIENCE HGF,SG PATH LTD,415.8,CORONER'S,PROFESSIONAL FEES,5902489926,1000077883
05.10.2021,CUSTOMER EXPERIENCE HGF,ITEC CONNECT LTD,300.28,IT MANAGEMENT,PRINTING,5902489971,1000080418
05.10.2021,CUSTOMER EXPERIENCE HGF,ITEC CONNECT LTD,"1,000.00",IT MANAGEMENT,PRINTING,5902489978,1000080418
05.10.2021,CUSTOMER EXPERIENCE HGF,ITEC CONNECT LTD,"1,000.00",IT MANAGEMENT,PRINTING,5902489991,1000080418
05.10.2021,CUSTOMER EXPERIENCE HGF,ITEC CONNECT LTD,"1,516.45",IT MANAGEMENT,PRINTING,5902489967,1000080418
05.10.2021,CUSTOMER EXPERIENCE HGF,ITEC CONNECT LTD,"5,353.05",IT MANAGEMENT,PRINTING,5902489957,1000080418
05.10.2021,CUSTOMER EXPERIENCE HGF,SUPRA UK LTD T/A THE KEYSAFE COMPANY,"4,177.92",SMART MOBILE RESPONSE TEAM,EQUIPMENT PURCHASE & REPAIR,5902489914,1000048522
05.10.2021,EDUCATION,LEARNING UNLIMITED,489,ADULT SKILLS BUDGET,GRANTS,5902489728,1000068095
05.10.2021,EDUCATION,UNIVERSITY COLLEGE LONDON,595,EDUCATIONAL PSYCHOLOGY,TRAINING,5902489749,1000004681
05.10.2021,EDUCATION,EAST DULWICH EST T&RA,730,EY & PUPIL TRACKING,TRAINING,5902489893,1000050123
05.10.2021,EDUCATION,EAST DULWICH EST T&RA,730,EY & PUPIL TRACKING,TRAINING,5902489900,1000050123
05.10.2021,EDUCATION,TRAIN FIRST AID,980,EY & PUPIL TRACKING,TRAINING,5902489880,1000085617
05.10.2021,EDUCATION,SCHOOL SPACE LTD,629.12,LEA MUSIC SERVICE(310) - 5018566,RENTS,5902489734,1000083061
05.10.2021,ENV & LEIS,RELIANCE HIGH-TECH LTD,"1,731.95",SERVICE DEVELOPMENT TEAM,OFFICE EXPENSES,5902489777,1000079374
05.10.2021,ENV&LEIS,LONDON NORTH WEST UNIVERSITY HEALTHCARE NHS TRUST,416,SEXUAL HEALTH - STI,MEDICAL / HEALTH & SAFETY SERVICES,5902489817,1000075293
05.10.2021,ENV&LEIS,HOMERTON UNIVERSITY HOSPITAL NHS FOUNDATION TRUST,"21,944.90",SEXUAL HEALTH - STI,MEDICAL / HEALTH & SAFETY SERVICES,5902489894,1000075435
05.10.2021,ENVIRONMENT AND LEISURE,SELECTA MARK SECURITY SYSTEM PLC,890,CAPITAL PS (LEISURE),CONST'N MAIN CONTRACT - NON CERTIFICATED,5902489946,11249024
05.10.2021,ENVIRONMENT AND LEISURE,SOILTECHNICS LTD,"1,335.00",CAPITAL PS (LEISURE),CONSTRUCTION FEES,5902489924,1000014274
05.10.2021,ENVIRONMENT AND LEISURE,STARS N STRIPES,500,CAPITAL PS (LEISURE),CONSTRUCTION FEES  - EXTERNAL,5902489999,1000085196
05.10.2021,ENVIRONMENT DIRECTORATE,M H COACHWORKS & SONS LTD,540.36,COMMERCIAL VEH CTRL A/C,VEHICLE REPAIRS & MAINTENANCE,5902489869,1000033495
05.10.2021,ENVIRONMENT DIRECTORATE,M H COACHWORKS & SONS LTD,"1,284.65",COMMERCIAL VEH CTRL A/C,VEHICLE REPAIRS & MAINTENANCE,5902489868,1000033495
05.10.2021,ENVIRONMENT DIRECTORATE,M H COACHWORKS & SONS LTD,"1,521.64",COMMERCIAL VEH CTRL A/C,VEHICLE REPAIRS & MAINTENANCE,5902489870,1000033495
05.10.2021,ENVIRONMENT DIRECTORATE,UNIVERSAL TYRE & AUTOCENTRES,754.28,COMMERCIAL VEH CTRL A/C,OTHER VEHICLE RUNNING COSTS,5902489799,1000072475
05.10.2021,ENVIRONMENT DIRECTORATE,LEEDS COMMERCIAL LIMITED T/A LC VEHICLE HIRE,990,COMMERCIAL VEH CTRL A/C,VEHICLE REPAIRS & MAINTENANCE,5902489989,1000082730
05.10.2021,ENVIRONMENT DIRECTORATE,LEEDS COMMERCIAL LIMITED T/A LC VEHICLE HIRE,990,COMMERCIAL VEH CTRL A/C,VEHICLE REPAIRS & MAINTENANCE,5902489993,1000082730
05.10.2021,ENVIRONMENT DIRECTORATE,LEEDS COMMERCIAL LIMITED T/A LC VEHICLE HIRE,"2,750.00",COMMERCIAL VEH CTRL A/C,VEHICLE REPAIRS & MAINTENANCE,5902489984,1000082730
05.10.2021,ENVIRONMENT DIRECTORATE,DAYS FLEET,"5,219.56",COMMERCIAL VEH CTRL A/C,HIRED VEHICLES,5902489918,1000084165
05.10.2021,ENVIRONMENT DIRECTORATE,DAYS FLEET,"5,219.56",COMMERCIAL VEH CTRL A/C,HIRED VEHICLES,5902489920,1000084165
05.10.2021,ENVIRONMENT DIRECTORATE,M H COACHWORKS & SONS LTD,796.33,FLEET INSURANCE WORKS,TRANSPORT INSURANCE COSTS,5902489807,1000033495
05.10.2021,ENVIRONMENT DIRECTORATE,M H COACHWORKS & SONS LTD,827.87,FLEET INSURANCE WORKS,TRANSPORT INSURANCE COSTS,5902489864,1000033495
05.10.2021,ENVIRONMENT DIRECTORATE,M H COACHWORKS & SONS LTD,"1,200.12",FLEET INSURANCE WORKS,TRANSPORT INSURANCE COSTS,5902489862,1000033495
05.10.2021,ENVIRONMENT DIRECTORATE,M H COACHWORKS & SONS LTD,"1,384.23",FLEET INSURANCE WORKS,TRANSPORT INSURANCE COSTS,5902489863,1000033495
05.10.2021,ENVIRONMENT DIRECTORATE,M H COACHWORKS & SONS LTD,"1,506.79",FLEET INSURANCE WORKS,TRANSPORT INSURANCE COSTS,5902489804,1000033495
05.10.2021,ENVIRONMENT DIRECTORATE,M H COACHWORKS & SONS LTD,"1,781.94",FLEET INSURANCE WORKS,TRANSPORT INSURANCE COSTS,5902489865,1000033495
05.10.2021,ENVIRONMENT DIRECTORATE,M H COACHWORKS & SONS LTD,"2,045.72",FLEET INSURANCE WORKS,TRANSPORT INSURANCE COSTS,5902489866,1000033495
05.10.2021,ENVIRONMENT DIRECTORATE,M H COACHWORKS & SONS LTD,"2,496.37",FLEET INSURANCE WORKS,TRANSPORT INSURANCE COSTS,5902489809,1000033495
05.10.2021,ENVIRONMENT DIRECTORATE,M H COACHWORKS & SONS LTD,"2,694.09",FLEET INSURANCE WORKS,TRANSPORT INSURANCE COSTS,5902489800,1000033495
05.10.2021,ENVIRONMENT DIRECTORATE,M H COACHWORKS & SONS LTD,"2,707.21",FLEET INSURANCE WORKS,TRANSPORT INSURANCE COSTS,5902489806,1000033495
05.10.2021,ENVIRONMENT DIRECTORATE,LANDSCAPE SUPPLY COMPANY,"1,474.45",GROUNDS MAINTENANCE - GENERAL,EQUIPMENT PURCHASE & REPAIR,5902489745,1000051937
05.10.2021,ENVIRONMENT DIRECTORATE,ELLIOT ENVIRONMENTAL LTD,400,STREET CLEANING-GENERAL,OTHER CONTRACTORS,5902489742,1000047392
05.10.2021,ENVIRONMENT DIRECTORATE,ELLIOT ENVIRONMENTAL LTD,400,STREET CLEANING-GENERAL,OTHER CONTRACTORS,5902489743,1000047392
05.10.2021,ENVIRONMENT DIRECTORATE,SPECIALIST COATINGS INTERNATIONAL LTD,"2,580.00",STREET CLEANING-GENERAL,MATERIALS,5902489813,1000085816
05.10.2021,HOUSING,SILK & MACKMAN SERVICES LTD,"78,571.65",ENG CONTRACTS (NORTH),I-WORLD CONTRACTORS HOLDING ACCOUNT,5902489815,1000035282
05.10.2021,HOUSING GENERAL FUND,L H BRIDGE LTD,850,CAPITAL PS (HOUSING GF),CAPITAL GRANTS,5902489898,1000056928
05.10.2021,HOUSING GENERAL FUND,L H BRIDGE LTD,"7,914.00",CAPITAL PS (HOUSING GF),CAPITAL GRANTS,5902489898,1000056928
05.10.2021,HOUSING HRA,SHARPE PRITCHARD LLP,"2,451.00",CAPITAL PS (HRA),CONSTRUCTION FEES - LEGAL,5902489810,1790085
05.10.2021,HOUSING HRA,ENGIE REGENERATION (APOLLO) LTD,"150,527.55",CAPITAL PS (HRA),CONSTRUCTION MAIN CONTRACT -CERTIFICATED,2103328096,4000449
05.10.2021,HOUSING HRA,OCO HEATING & MECHANICAL,"31,416.43",CAPITAL PS (HRA),CONSTRUCTION,2103328099,4005559
05.10.2021,HOUSING HRA,A & E ELKINS LTD,"26,830.06",CAPITAL PS (HRA),CONSTRUCTION MAIN CONTRACT -CERTIFICATED,2103328101,4012501
05.10.2021,HOUSING HRA,A & E ELKINS LTD,"35,241.72",CAPITAL PS (HRA),CONSTRUCTION MAIN CONTRACT -CERTIFICATED,2103328100,4012501
05.10.2021,HOUSING HRA,THE LIFECARE CENTRE LTD,"3,913.00",CAPITAL PS (HRA),UTILITIES INSTALLATION,5902489772,1000057137
05.10.2021,HOUSING HRA,GATTI ROUTH RHODES LTD,"7,965.92",CAPITAL PS (HRA),CONSTRUCTION FEES - ARCHITECT,5902489896,1000086968
05.10.2021,HOUSING HRA,GATTI ROUTH RHODES LTD,"8,045.20",CAPITAL PS (HRA),CONSTRUCTION FEES - ARCHITECT,5902489896,1000086968
05.10.2021,HOUSING HRA,TROWERS & HAMLINS LLP,597,CAPITAL PS (REGEN),CONSTRUCTION FEES - LEGAL,5902489973,1000016239
05.10.2021,HOUSING HRA,TROWERS & HAMLINS LLP,648,CAPITAL PS (REGEN),CONSTRUCTION FEES - LEGAL,5902489973,1000016239
05.10.2021,HOUSING HRA,TROWERS & HAMLINS LLP,"2,103.00",CAPITAL PS (REGEN),CONSTRUCTION FEES - LEGAL,5902489964,1000016239
05.10.2021,HOUSING HRA,TROWERS & HAMLINS LLP,"4,433.00",CAPITAL PS (REGEN),CONSTRUCTION FEES - LEGAL,5902489968,1000016239
05.10.2021,LEISURE DIRECTORATE,EDWARDES (CAMBERWELL) LTD,457.5,BURGESS AREA TEAM,GROUNDS MAINTENANCE,5902489906,11060365
05.10.2021,PLANNING AND TRANSPORT,SOUTHWARK NEWSPAPER LTD,504,DEV MGT ADMIN & INCOME,MARKETING & PUBLICITY SERVICES,5902489733,1556957
05.10.2021,RESIDENT SERVICES,KENT COUNTY COUNCIL - LASER,432.01,NORTH AREA RUNNING COSTS,CATERING MATERIALS & SUPPLIES,5902489897,1000012926
05.10.2021,RESIDENT SERVICES,KENT COUNTY COUNCIL - LASER,"1,239.83",NORTH AREA RUNNING COSTS,CATERING MATERIALS & SUPPLIES,5902489895,1000012926
05.10.2021,RESIDENT SERVICES,URANG PROPERTY MANAGEMENT LTD,"1,080.01",OPERATIONS/OFFICES ACCOMMODATION,SERVICE CHARGES,5902489995,1000083463
05.10.2021,RESIDENT SERVICES,URANG PROPERTY MANAGEMENT LTD,"1,327.27",OPERATIONS/OFFICES ACCOMMODATION,SERVICE CHARGES,5902489995,1000083463
05.10.2021,RESIDENT SERVICES,URANG PROPERTY MANAGEMENT LTD,"1,446.53",OPERATIONS/OFFICES ACCOMMODATION,SERVICE CHARGES,5902489995,1000083463
05.10.2021,RESIDENT SERVICES,URANG PROPERTY MANAGEMENT LTD,"4,117.43",OPERATIONS/OFFICES ACCOMMODATION,SERVICE CHARGES,5902489995,1000083463
05.10.2021,RESIDENT SERVICES,SOUTHERN ELECTRIC,289,TA HOSTELS,ELECTRICITY,5902489828,1000050721
05.10.2021,RESIDENT SERVICES,SOUTHERN ELECTRIC,298.66,TA HOSTELS,ELECTRICITY,5902489828,1000050721
05.10.2021,RESIDENT SERVICES,SOUTHERN ELECTRIC,304.63,TA HOSTELS,ELECTRICITY,5902489828,1000050721
05.10.2021,RESIDENT SERVICES,SOUTHERN ELECTRIC,316.61,TA HOSTELS,ELECTRICITY,5902489828,1000050721
05.10.2021,RESIDENT SERVICES,SOUTHERN ELECTRIC,340.3,TA HOSTELS,ELECTRICITY,5902489831,1000050721
05.10.2021,RESIDENT SERVICES,SOUTHERN ELECTRIC,348.5,TA HOSTELS,ELECTRICITY,5902489828,1000050721
05.10.2021,RESIDENT SERVICES,SOUTHERN ELECTRIC,374.65,TA HOSTELS,ELECTRICITY,5902489828,1000050721
05.10.2021,RESIDENT SERVICES,SOUTHERN ELECTRIC,442.01,TA HOSTELS,ELECTRICITY,5902489828,1000050721
05.10.2021,RESIDENT SERVICES,SOUTHERN ELECTRIC,442.4,TA HOSTELS,ELECTRICITY,5902489828,1000050721
05.10.2021,RESIDENT SERVICES,SOUTHERN ELECTRIC,446.9,TA HOSTELS,ELECTRICITY,5902489828,1000050721
05.10.2021,RESIDENT SERVICES,SOUTHERN ELECTRIC,485.27,TA HOSTELS,ELECTRICITY,5902489828,1000050721
05.10.2021,RESIDENT SERVICES,SOUTHERN ELECTRIC,531.12,TA HOSTELS,ELECTRICITY,5902489828,1000050721
05.10.2021,RESIDENT SERVICES,SOUTHERN ELECTRIC,909.43,TA HOSTELS,ELECTRICITY,5902489830,1000050721
05.10.2021,RESIDENT SERVICES,NPOWER LTD,667.46,TA HOSTELS,ELECTRICITY,5902489746,1000064203
05.10.2021,RESIDENT SERVICES HGF,REDACTED PERSONAL DATA,"3,000.00",HOMELESS PROJECTS,GRANTS,REDACTED,REDACTED
05.10.2021,RESIDENT SERVICES HGF,OSKAT GOUP LTD 'CA',"3,000.00",HOMELESS PROJECTS,GRANTS,5902489754,1000085941
05.10.2021,RESIDENT SERVICES HGF,GALAXY LETTINGS LTD,"34,079.30",NIGHTLY TA (NSC),EXTERNAL AGENCIES AND BODIES,5902489769,1000055897
05.10.2021,RESIDENT SERVICES HGF,DENHAN PROPERTY SERVICES LTD,"148,089.05",PSL PLACEMENTS,EXTERNAL AGENCIES AND BODIES,5902489778,1000082464
05.10.2021,RESIDENT SERVICES HGF,HOUSING BRITAIN,"7,452.71",PSL PLACEMENTS,EXTERNAL AGENCIES AND BODIES,5902489902,1000085521
05.10.2021,SBS SUPPORT,EXACTLY TECH LTD,"65,450.00",ICT & COMMUNICATIONS,SOFTWARE,5902489732,1000083655
05.10.2021,SBS SUPPORT,AIRTECH (SERVICE & MAINTENANCE) LTD,"1,061.90",R & M OVERHEADS,OTHER CONTRACTORS,5902489747,1732022
05.10.2021,SBS SUPPORT,WORKING ON WELLBEING LTD,875,R & M OVERHEADS,MEDICAL / HEALTH & SAFETY SERVICES,5902489873,1000077251
05.10.2021,SOUTHWARK BUILDING SERVICES,"BROWNING, JONES & MORRIS LTD",408.72,STORES/LOGISTICS,CREDITORS -GR/IR CLEARING ACCOUNT,5902489974,1027429
05.10.2021,SOUTHWARK BUILDING SERVICES,"BROWNING, JONES & MORRIS LTD",560.8,STORES/LOGISTICS,CREDITORS -GR/IR CLEARING ACCOUNT,5902489974,1027429
05.10.2021,SOUTHWARK BUILDING SERVICES,"BROWNING, JONES & MORRIS LTD",839.7,STORES/LOGISTICS,CREDITORS -GR/IR CLEARING ACCOUNT,5902489966,1027429
05.10.2021,SOUTHWARK BUILDING SERVICES,"BROWNING, JONES & MORRIS LTD",886.8,STORES/LOGISTICS,CREDITORS -GR/IR CLEARING ACCOUNT,5902489970,1027429
06.10.2021,ADULT SOCIAL CARE,THE DRIVE CARE HOMES LTD,"1,650.00",DISABILITIES LAC,OTHER PAYMENTS FOR CLIENTS,2103328331,1000003889
06.10.2021,ADULT SOCIAL CARE,REDACTED PERSONAL DATA,"1,094.60",DISABILITIES LAC,PAYMENTS TO CARERS,REDACTED,REDACTED
06.10.2021,ADULT SOCIAL CARE,REDACTED PERSONAL DATA,"1,632.00",DISABILITIES LAC,PAYMENTS TO CARERS,REDACTED,REDACTED
06.10.2021,ADULT SOCIAL CARE,REDACTED PERSONAL DATA,756,DISABILITIES LAC,PAYMENTS TO CARERS,REDACTED,REDACTED
06.10.2021,ADULT SOCIAL CARE,REDACTED PERSONAL DATA,862,DISABILITIES LAC,PAYMENTS TO CARERS,REDACTED,REDACTED
06.10.2021,ADULT SOCIAL CARE,REDACTED PERSONAL DATA,416,FAMILY LINK,PAYMENTS TO CARERS,REDACTED,REDACTED
06.10.2021,ADULT SOCIAL CARE,SURREY DOCKS FARM PROVIDENT SOCIETY,480,LD LTS 18-64,DAYCARE,2103329066,1000000958
06.10.2021,ADULT SOCIAL CARE,SURREY DOCKS FARM PROVIDENT SOCIETY,487.5,LD LTS 18-64,DAYCARE,2103329065,1000000958
06.10.2021,ADULT SOCIAL CARE,SURREY DOCKS FARM PROVIDENT SOCIETY,720,LD LTS 18-64,DAYCARE,2103329062,1000000958
06.10.2021,ADULT SOCIAL CARE,SHARE COMMUNITY LTD,780,LD LTS 18-64,DAYCARE,2103329036,1000062408
06.10.2021,ADULT SOCIAL CARE,SHARE COMMUNITY LTD,780,LD LTS 18-64,DAYCARE,2103329039,1000062408
06.10.2021,ADULT SOCIAL CARE,CARE DIRECT UK LTD,486,LD LTS 18-64,SUPPORTED LIVING,2103329026,1000066322
06.10.2021,ADULT SOCIAL CARE,CARE DIRECT UK LTD,486,LD LTS 18-64,SUPPORTED LIVING,2103329027,1000066322
06.10.2021,ADULT SOCIAL CARE,BRISEN COMPANY LTD,"1,428.00",LD LTS 18-64,SUPPORTED LIVING,2103329038,1000083000
06.10.2021,ADULT SOCIAL CARE,BRISEN COMPANY LTD,"4,611.75",LD LTS 18-64,SUPPORTED LIVING,2103329037,1000083000
06.10.2021,ADULT SOCIAL CARE,LONDON CARE LTD,331.92,MH LTS 18-64,HOMECARE - C&V,2103329044,1000003398
06.10.2021,ADULT SOCIAL CARE,MEDACS HOMECARE,336.14,PHY LTS 18-64,HOMECARE - C&V,2103329059,11287415
06.10.2021,ADULT SOCIAL CARE,MEDACS HOMECARE,556.95,PHY LTS 18-64,HOMECARE - C&V,2103329057,11287415
06.10.2021,ADULT SOCIAL CARE,LONDON CARE LTD,350.36,PHY LTS 18-64,HOMECARE - C&V,2103329045,1000003398
06.10.2021,ADULT SOCIAL CARE,LONDON CARE LTD,756.04,PHY LTS 18-64,HOMECARE - C&V,2103329049,1000003398
06.10.2021,ADULT SOCIAL CARE,LONDON CARE LTD,903.56,PHY LTS 18-64,HOMECARE - C&V,2103329043,1000003398
06.10.2021,ADULT SOCIAL CARE,LONDON CARE LTD,"1,106.40",PHY LTS 18-64,HOMECARE - C&V,2103329051,1000003398
06.10.2021,ADULT SOCIAL CARE,LONDON CARE LTD,"1,161.72",PHY LTS 18-64,HOMECARE - C&V,2103329048,1000003398
06.10.2021,ADULT SOCIAL CARE,MEDACS HOMECARE,638.31,PHY LTS 65+,HOMECARE - C&V,2103329076,11287415
06.10.2021,ADULT SOCIAL CARE,MEDACS HOMECARE,865.83,PHY LTS 65+,HOMECARE - C&V,2103329060,11287415
06.10.2021,ADULT SOCIAL CARE,MEDACS HOMECARE,"1,138.02",PHY LTS 65+,HOMECARE - C&V,2103329058,11287415
06.10.2021,ADULT SOCIAL CARE,MEDACS HOMECARE,"2,816.86",PHY LTS 65+,HOMECARE - C&V,2103329067,11287415
06.10.2021,ADULT SOCIAL CARE,LONDON CARE LTD,387.24,PHY LTS 65+,HOMECARE - C&V,2103329046,1000003398
06.10.2021,ADULT SOCIAL CARE,LONDON CARE LTD,737.6,PHY LTS 65+,HOMECARE - C&V,2103329055,1000003398
06.10.2021,ADULT SOCIAL CARE,LONDON CARE LTD,885.12,PHY LTS 65+,HOMECARE - C&V,2103329047,1000003398
06.10.2021,ADULT SOCIAL CARE,LONDON CARE LTD,922,PHY LTS 65+,HOMECARE - C&V,2103329052,1000003398
06.10.2021,ADULT SOCIAL CARE,LONDON CARE LTD,"1,087.96",PHY LTS 65+,HOMECARE - C&V,2103329042,1000003398
06.10.2021,ADULT SOCIAL CARE,LONDON CARE LTD,"1,087.96",PHY LTS 65+,HOMECARE - C&V,2103329053,1000003398
06.10.2021,ADULT SOCIAL CARE,LONDON CARE LTD,"1,161.72",PHY LTS 65+,HOMECARE - C&V,2103329041,1000003398
06.10.2021,ADULT SOCIAL CARE,LONDON CARE LTD,"1,364.56",PHY LTS 65+,HOMECARE - C&V,2103329054,1000003398
06.10.2021,ADULT SOCIAL CARE,LONDON CARE LTD,"2,323.44",PHY LTS 65+,HOMECARE - C&V,2103329040,1000003398
06.10.2021,ADULT SOCIAL CARE,LONDON CARE LTD,"2,360.32",PHY LTS 65+,HOMECARE - C&V,2103329050,1000003398
06.10.2021,ADULT SOCIAL CARE,CARE DIRECT UK LTD,559.13,PHY LTS 65+,HOMECARE - SPOT,2103329031,1000066322
06.10.2021,ADULT SOCIAL CARE,CARE DIRECT UK LTD,559.13,PHY LTS 65+,HOMECARE - SPOT,2103329035,1000066322
06.10.2021,ADULT SOCIAL CARE,CARE DIRECT UK LTD,621.25,PHY LTS 65+,HOMECARE - SPOT,2103329029,1000066322
06.10.2021,ADULT SOCIAL CARE,CARE DIRECT UK LTD,621.25,PHY LTS 65+,HOMECARE - SPOT,2103329033,1000066322
06.10.2021,ADULT SOCIAL CARE,MEDACS HOMECARE,567.9,PHY STS 18-64,HOMECARE - IC,2103329085,11287415
06.10.2021,ADULT SOCIAL CARE,MEDACS HOMECARE,852.84,PHY STS 18-64,HOMECARE - IC,2103329083,11287415
06.10.2021,ADULT SOCIAL CARE,MEDACS HOMECARE,343.54,PHY STS 65+,HOMECARE - IC,2103329084,11287415
06.10.2021,ADULT SOCIAL CARE,MEDACS HOMECARE,668.16,PHY STS 65+,HOMECARE - IC,2103329071,11287415
06.10.2021,ADULT SOCIAL CARE,MEDACS HOMECARE,750.17,PHY STS 65+,HOMECARE - IC,2103329069,11287415
06.10.2021,ADULT SOCIAL CARE,MEDACS HOMECARE,"2,337.84",PHY STS 65+,HOMECARE - IC,2103329078,11287415
06.10.2021,ADULT SOCIAL CARE,MEDACS HOMECARE,808.5,SOCIAL ISOLATION,HOMECARE - C&V,2103329068,11287415
06.10.2021,ADULT SOCIAL CARE,SURREY DOCKS FARM PROVIDENT SOCIETY,500,SOCIAL ISOLATION,DAYCARE,2103329064,1000000958
06.10.2021,ADULT SOCIAL CARE,CONTACT PROFESSIONALS,285,SPECIALIST CARE,SECTION 17 PAYMENTS TO AGENCIES/CARERS,2103328701,1000057263
06.10.2021,ADULT SOCIAL CARE,CONTACT PROFESSIONALS,285,SPECIALIST CARE,SECTION 17 PAYMENTS TO AGENCIES/CARERS,2103328722,1000057263
06.10.2021,ADULT SOCIAL CARE,CONTACT PROFESSIONALS,342,SPECIALIST CARE,SECTION 17 PAYMENTS TO AGENCIES/CARERS,2103328720,1000057263
06.10.2021,ADULT SOCIAL CARE,CONTACT PROFESSIONALS,380,SPECIALIST CARE,SECTION 17 PAYMENTS TO AGENCIES/CARERS,2103328732,1000057263
06.10.2021,ADULT SOCIAL CARE,CONTACT PROFESSIONALS,798,SPECIALIST CARE,SECTION 17 PAYMENTS TO AGENCIES/CARERS,2103328692,1000057263
06.10.2021,ADULT SOCIAL CARE,POTTON KARE SERVICES LTD,320.5,SPECIALIST CARE,SECTION 17 PAYMENTS TO AGENCIES/CARERS,2103328697,1000080630
06.10.2021,ADULT SOCIAL CARE,KEMKARE LTD,"1,868.75",SPECIALIST CARE,SECTION 17 PAYMENTS TO AGENCIES/CARERS,2103328690,1000084181
06.10.2021,ASSET MANAGEMENT,GC CONSTRUCT LTD,289.01,DISREPAIR,PAYMENTS FOR LEGAL SERVICES,2103328106,3000002106
06.10.2021,ASSET MANAGEMENT,GC CONSTRUCT LTD,"1,038.02",DISREPAIR,PAYMENTS FOR LEGAL SERVICES,2103329094,3000002106
06.10.2021,ASSET MANAGEMENT,GC CONSTRUCT LTD,"1,937.56",DISREPAIR,PAYMENTS FOR LEGAL SERVICES,2103328102,3000002106
06.10.2021,ASSET MANAGEMENT,GAS & ENVIRONMENTAL SERVICES LTD,368.2,HEALTH AND SAFETY,PROFESSIONAL FEES,5902490031,1000066947
06.10.2021,ASSET MANAGEMENT HGF,MITIE FM LIMITED,"23,952.64",FM SERVICES BY INTERSERVE,BUILDING R&M,5902490024,1000070792
06.10.2021,ASSET MANAGEMENT HGF,BUILDBASE,350.37,HANDY PERSONS,MATERIALS,5902490080,1000011799
06.10.2021,CENTRAL FUNCTIONS,OCO LIMITED,"7,158.48",AYLESBURY,OTHER R&M,5902490113,1006066
06.10.2021,CHILDREN AND FAMILIES,REDACTED PERSONAL DATA,695.04,ADOPTION ALLOWANCES,PAYMENTS TO CARERS,REDACTED,REDACTED
06.10.2021,CHILDREN AND FAMILIES,REDACTED PERSONAL DATA,375.54,ADOPTION ALLOWANCES,PAYMENTS TO CARERS,REDACTED,REDACTED
06.10.2021,CHILDREN AND FAMILIES,REDACTED PERSONAL DATA,375.54,ADOPTION ALLOWANCES,PAYMENTS TO CARERS,REDACTED,REDACTED
06.10.2021,CHILDREN AND FAMILIES,REDACTED PERSONAL DATA,500,ADOPTION ALLOWANCES,PAYMENTS TO CARERS,REDACTED,REDACTED
06.10.2021,CHILDREN AND FAMILIES,REDACTED PERSONAL DATA,635.34,ADOPTION ALLOWANCES,PAYMENTS TO CARERS,REDACTED,REDACTED
06.10.2021,CHILDREN AND FAMILIES,REDACTED PERSONAL DATA,375.54,ADOPTION ALLOWANCES,PAYMENTS TO CARERS,REDACTED,REDACTED
06.10.2021,CHILDREN AND FAMILIES,REDACTED PERSONAL DATA,465.54,ADOPTION ALLOWANCES,PAYMENTS TO CARERS,REDACTED,REDACTED
06.10.2021,CHILDREN AND FAMILIES,REDACTED PERSONAL DATA,375.54,ADOPTION ALLOWANCES,PAYMENTS TO CARERS,REDACTED,REDACTED
06.10.2021,CHILDREN AND FAMILIES,REDACTED PERSONAL DATA,451.8,ADOPTION ALLOWANCES,PAYMENTS TO CARERS,REDACTED,REDACTED
06.10.2021,CHILDREN AND FAMILIES,REDACTED PERSONAL DATA,465.48,ADOPTION ALLOWANCES,PAYMENTS TO CARERS,REDACTED,REDACTED
06.10.2021,CHILDREN AND FAMILIES,REDACTED PERSONAL DATA,386,ADOPTION ALLOWANCES,PAYMENTS TO CARERS,REDACTED,REDACTED
06.10.2021,CHILDREN AND FAMILIES,REDACTED PERSONAL DATA,465.54,ADOPTION ALLOWANCES,PAYMENTS TO CARERS,REDACTED,REDACTED
06.10.2021,CHILDREN AND FAMILIES,REDACTED PERSONAL DATA,269.22,ADOPTION ALLOWANCES,PAYMENTS TO CARERS,REDACTED,REDACTED
06.10.2021,CHILDREN AND FAMILIES,REDACTED PERSONAL DATA,705.24,ADOPTION ALLOWANCES,PAYMENTS TO CARERS,REDACTED,REDACTED
06.10.2021,CHILDREN AND FAMILIES,REDACTED PERSONAL DATA,777.36,ADOPTION ALLOWANCES,PAYMENTS TO CARERS,REDACTED,REDACTED
06.10.2021,CHILDREN AND FAMILIES,REDACTED PERSONAL DATA,512.02,ADOPTION ALLOWANCES,PAYMENTS TO CARERS,REDACTED,REDACTED
06.10.2021,CHILDREN AND FAMILIES,REDACTED PERSONAL DATA,251.12,ADOPTION ALLOWANCES,PAYMENTS TO CARERS,REDACTED,REDACTED
06.10.2021,CHILDREN AND FAMILIES,REDACTED PERSONAL DATA,375.54,ADOPTION ALLOWANCES,PAYMENTS TO CARERS,REDACTED,REDACTED
06.10.2021,CHILDREN AND FAMILIES,REDACTED PERSONAL DATA,375.54,ADOPTION ALLOWANCES,PAYMENTS TO CARERS,REDACTED,REDACTED
06.10.2021,CHILDREN AND FAMILIES,REDACTED PERSONAL DATA,457.14,ADOPTION ALLOWANCES,PAYMENTS TO CARERS,REDACTED,REDACTED
06.10.2021,CHILDREN AND FAMILIES,REDACTED PERSONAL DATA,502,ADOPTION ALLOWANCES,PAYMENTS TO CARERS,REDACTED,REDACTED
06.10.2021,CHILDREN AND FAMILIES,REDACTED PERSONAL DATA,375.54,ADOPTION ALLOWANCES,PAYMENTS TO CARERS,REDACTED,REDACTED
06.10.2021,CHILDREN AND FAMILIES,REDACTED PERSONAL DATA,640.9,ADOPTION ALLOWANCES,PAYMENTS TO CARERS,REDACTED,REDACTED
06.10.2021,CHILDREN AND FAMILIES,REDACTED PERSONAL DATA,382.3,ADOPTION ALLOWANCES,PAYMENTS TO CARERS,REDACTED,REDACTED
06.10.2021,CHILDREN AND FAMILIES,REDACTED PERSONAL DATA,382.3,ADOPTION ALLOWANCES,PAYMENTS TO CARERS,REDACTED,REDACTED
06.10.2021,CHILDREN AND FAMILIES,REDACTED PERSONAL DATA,359.9,ADOPTION ALLOWANCES,PAYMENTS TO CARERS,REDACTED,REDACTED
06.10.2021,CHILDREN AND FAMILIES,REDACTED PERSONAL DATA,304.26,ADOPTION ALLOWANCES,PAYMENTS TO CARERS,REDACTED,REDACTED
06.10.2021,CHILDREN AND FAMILIES,REDACTED PERSONAL DATA,278.54,ADOPTION ALLOWANCES,PAYMENTS TO CARERS,REDACTED,REDACTED
06.10.2021,CHILDREN AND FAMILIES,REDACTED PERSONAL DATA,485.22,ADOPTION ALLOWANCES,PAYMENTS TO CARERS,REDACTED,REDACTED
06.10.2021,CHILDREN AND FAMILIES,REDACTED PERSONAL DATA,392.42,ADOPTION ALLOWANCES,PAYMENTS TO CARERS,REDACTED,REDACTED
06.10.2021,CHILDREN AND FAMILIES,REDACTED PERSONAL DATA,252.9,ADOPTION ALLOWANCES,PAYMENTS TO CARERS,REDACTED,REDACTED
06.10.2021,CHILDREN AND FAMILIES,REDACTED PERSONAL DATA,253.56,ADOPTION ALLOWANCES,PAYMENTS TO CARERS,REDACTED,REDACTED
06.10.2021,CHILDREN AND FAMILIES,REDACTED PERSONAL DATA,382.3,ADOPTION ALLOWANCES,PAYMENTS TO CARERS,REDACTED,REDACTED
06.10.2021,CHILDREN AND FAMILIES,REDACTED PERSONAL DATA,382.3,ADOPTION ALLOWANCES,PAYMENTS TO CARERS,REDACTED,REDACTED
06.10.2021,CHILDREN AND FAMILIES,REDACTED PERSONAL DATA,351.42,ADOPTION ALLOWANCES,PAYMENTS TO CARERS,REDACTED,REDACTED
06.10.2021,CHILDREN AND FAMILIES,REDACTED PERSONAL DATA,484.92,ADOPTION ALLOWANCES,PAYMENTS TO CARERS,REDACTED,REDACTED
06.10.2021,CHILDREN AND FAMILIES,REDACTED PERSONAL DATA,530,ADOPTION ALLOWANCES,PAYMENTS TO CARERS,REDACTED,REDACTED
06.10.2021,CHILDREN AND FAMILIES,REDACTED PERSONAL DATA,908,ADOPTION ALLOWANCES,PAYMENTS TO CARERS,REDACTED,REDACTED
06.10.2021,CHILDREN AND FAMILIES,REDACTED PERSONAL DATA,738.32,ADOPTION ALLOWANCES,PAYMENTS TO CARERS,REDACTED,REDACTED
06.10.2021,CHILDREN AND FAMILIES,REDACTED PERSONAL DATA,695.12,ADOPTION ALLOWANCES,PAYMENTS TO CARERS,REDACTED,REDACTED
06.10.2021,CHILDREN AND FAMILIES,REDACTED PERSONAL DATA,293.98,ADOPTION ALLOWANCES,PAYMENTS TO CARERS,REDACTED,REDACTED
06.10.2021,CHILDREN AND FAMILIES,REDACTED PERSONAL DATA,251.94,ADOPTION ALLOWANCES,PAYMENTS TO CARERS,REDACTED,REDACTED
06.10.2021,CHILDREN AND FAMILIES,REDACTED PERSONAL DATA,652.9,ADOPTION ALLOWANCES,PAYMENTS TO CARERS,REDACTED,REDACTED
06.10.2021,CHILDREN AND FAMILIES,REDACTED PERSONAL DATA,652.9,ADOPTION ALLOWANCES,PAYMENTS TO CARERS,REDACTED,REDACTED
06.10.2021,CHILDREN AND FAMILIES,REDACTED PERSONAL DATA,712.3,ADOPTION ALLOWANCES,PAYMENTS TO CARERS,REDACTED,REDACTED
06.10.2021,CHILDREN AND FAMILIES,REDACTED PERSONAL DATA,767.68,ADOPTION ALLOWANCES,PAYMENTS TO CARERS,REDACTED,REDACTED
06.10.2021,CHILDREN AND FAMILIES,REDACTED PERSONAL DATA,400.18,ADOPTION ALLOWANCES,PAYMENTS TO CARERS,REDACTED,REDACTED
06.10.2021,CHILDREN AND FAMILIES,REDACTED PERSONAL DATA,682.3,ADOPTION ALLOWANCES,PAYMENTS TO CARERS,REDACTED,REDACTED
06.10.2021,CHILDREN AND FAMILIES,REDACTED PERSONAL DATA,682.3,ADOPTION ALLOWANCES,PAYMENTS TO CARERS,REDACTED,REDACTED
06.10.2021,CHILDREN AND FAMILIES,REDACTED PERSONAL DATA,588.42,ADOPTION ALLOWANCES,PAYMENTS TO CARERS,REDACTED,REDACTED
06.10.2021,CHILDREN AND FAMILIES,REDACTED PERSONAL DATA,"1,053.20",ADOPTION ALLOWANCES,PAYMENTS TO CARERS,REDACTED,REDACTED
06.10.2021,CHILDREN AND FAMILIES,REDACTED PERSONAL DATA,386,ADOPTION ALLOWANCES,PAYMENTS TO CARERS,REDACTED,REDACTED
06.10.2021,CHILDREN AND FAMILIES,REDACTED PERSONAL DATA,618.6,ADOPTION ALLOWANCES,PAYMENTS TO CARERS,REDACTED,REDACTED
06.10.2021,CHILDREN AND FAMILIES,REDACTED PERSONAL DATA,660,ADOPTION ALLOWANCES,PAYMENTS TO CARERS,REDACTED,REDACTED
06.10.2021,CHILDREN AND FAMILIES,REDACTED PERSONAL DATA,276.1,ADOPTION ALLOWANCES,PAYMENTS TO CARERS,REDACTED,REDACTED
06.10.2021,CHILDREN AND FAMILIES,REDACTED PERSONAL DATA,268.62,ADOPTION ALLOWANCES,PAYMENTS TO CARERS,REDACTED,REDACTED
06.10.2021,CHILDREN AND FAMILIES,REDACTED PERSONAL DATA,676,ADOPTION ALLOWANCES,PAYMENTS TO CARERS,REDACTED,REDACTED
06.10.2021,CHILDREN AND FAMILIES,REDACTED PERSONAL DATA,700,ADOPTION ALLOWANCES,PAYMENTS TO CARERS,REDACTED,REDACTED
06.10.2021,CHILDREN AND FAMILIES,REDACTED PERSONAL DATA,288.92,ADOPTION ALLOWANCES,PAYMENTS TO CARERS,REDACTED,REDACTED
06.10.2021,CHILDREN AND FAMILIES,REDACTED PERSONAL DATA,676,ADOPTION ALLOWANCES,PAYMENTS TO CARERS,REDACTED,REDACTED
06.10.2021,CHILDREN AND FAMILIES,REDACTED PERSONAL DATA,676,ADOPTION ALLOWANCES,PAYMENTS TO CARERS,REDACTED,REDACTED
06.10.2021,CHILDREN AND FAMILIES,SOUTH LONDON & MAUDSLEY HOSPITAL,795,ADOPTION SUPP FUND,PROFESSIONAL FEES,5902490089,1000013096
06.10.2021,CHILDREN AND FAMILIES,REDACTED PERSONAL DATA,335,ADOPTION SUPP FUND,PROFESSIONAL FEES,REDACTED,REDACTED
06.10.2021,CHILDREN AND FAMILIES,REDACTED PERSONAL DATA,"1,080.00",ADOPTION SUPP FUND,PROFESSIONAL FEES,REDACTED,REDACTED
06.10.2021,CHILDREN AND FAMILIES,REDACTED PERSONAL DATA,585,ADOPTION SUPP FUND,PROFESSIONAL FEES,REDACTED,REDACTED
06.10.2021,CHILDREN AND FAMILIES,REDACTED PERSONAL DATA,300,ADOPTION SUPP FUND,PROFESSIONAL FEES,REDACTED,REDACTED
06.10.2021,CHILDREN AND FAMILIES,CONTACT PROFESSIONALS,380,CONTACT SERVICE,OTHER PAYMENTS FOR CLIENTS,2103328754,1000057263
06.10.2021,CHILDREN AND FAMILIES,CONTACT PROFESSIONALS,395,CONTACT SERVICE,OTHER PAYMENTS FOR CLIENTS,2103328752,1000057263
06.10.2021,CHILDREN AND FAMILIES,CONTACT PROFESSIONALS,645,CONTACT SERVICE,OTHER PAYMENTS FOR CLIENTS,2103328751,1000057263
06.10.2021,CHILDREN AND FAMILIES,CONTACT PROFESSIONALS,645,CONTACT SERVICE,OTHER PAYMENTS FOR CLIENTS,2103328760,1000057263
06.10.2021,CHILDREN AND FAMILIES,CONTACT PROFESSIONALS,695,CONTACT SERVICE,OTHER PAYMENTS FOR CLIENTS,2103328753,1000057263
06.10.2021,CHILDREN AND FAMILIES,CONTACT PROFESSIONALS,"1,140.00",CONTACT SERVICE,OTHER PAYMENTS FOR CLIENTS,2103328755,1000057263
06.10.2021,CHILDREN AND FAMILIES,OPTIMUM FOCUS COMPANY LTD,758.33,FAMILY GROUP CONF�S,PROFESSIONAL FEES,5902490093,1000081322
06.10.2021,CHILDREN AND FAMILIES,REDACTED PERSONAL DATA,300.93,FAMILY GROUP CONF�S,PROFESSIONAL FEES,REDACTED,REDACTED
06.10.2021,CHILDREN AND FAMILIES,REDACTED PERSONAL DATA,373.42,FAMILY GROUP CONF�S,PROFESSIONAL FEES,REDACTED,REDACTED
06.10.2021,CHILDREN AND FAMILIES,REDACTED PERSONAL DATA,647.83,FAMILY GROUP CONF�S,PROFESSIONAL FEES,REDACTED,REDACTED
06.10.2021,CHILDREN AND FAMILIES,REDACTED PERSONAL DATA,762,FOSTERING ALLOWANCES,PAYMENTS TO CARERS,REDACTED,REDACTED
06.10.2021,CHILDREN AND FAMILIES,REDACTED PERSONAL DATA,862,FOSTERING ALLOWANCES,PAYMENTS TO CARERS,REDACTED,REDACTED
06.10.2021,CHILDREN AND FAMILIES,REDACTED PERSONAL DATA,862,FOSTERING ALLOWANCES,PAYMENTS TO CARERS,REDACTED,REDACTED
06.10.2021,CHILDREN AND FAMILIES,REDACTED PERSONAL DATA,864,FOSTERING ALLOWANCES,PAYMENTS TO CARERS,REDACTED,REDACTED
06.10.2021,CHILDREN AND FAMILIES,REDACTED PERSONAL DATA,921.15,FOSTERING ALLOWANCES,PAYMENTS TO CARERS,REDACTED,REDACTED
06.10.2021,CHILDREN AND FAMILIES,REDACTED PERSONAL DATA,864,FOSTERING ALLOWANCES,PAYMENTS TO CARERS,REDACTED,REDACTED
06.10.2021,CHILDREN AND FAMILIES,REDACTED PERSONAL DATA,954,FOSTERING ALLOWANCES,PAYMENTS TO CARERS,REDACTED,REDACTED
06.10.2021,CHILDREN AND FAMILIES,REDACTED PERSONAL DATA,862,FOSTERING ALLOWANCES,PAYMENTS TO CARERS,REDACTED,REDACTED
06.10.2021,CHILDREN AND FAMILIES,REDACTED PERSONAL DATA,864,FOSTERING ALLOWANCES,PAYMENTS TO CARERS,REDACTED,REDACTED
06.10.2021,CHILDREN AND FAMILIES,REDACTED PERSONAL DATA,862,FOSTERING ALLOWANCES,PAYMENTS TO CARERS,REDACTED,REDACTED
06.10.2021,CHILDREN AND FAMILIES,REDACTED PERSONAL DATA,862,FOSTERING ALLOWANCES,PAYMENTS TO CARERS,REDACTED,REDACTED
06.10.2021,CHILDREN AND FAMILIES,REDACTED PERSONAL DATA,896,FOSTERING ALLOWANCES,PAYMENTS TO CARERS,REDACTED,REDACTED
06.10.2021,CHILDREN AND FAMILIES,REDACTED PERSONAL DATA,946,FOSTERING ALLOWANCES,PAYMENTS TO CARERS,REDACTED,REDACTED
06.10.2021,CHILDREN AND FAMILIES,REDACTED PERSONAL DATA,712.3,FOSTERING ALLOWANCES,PAYMENTS TO CARERS,REDACTED,REDACTED
06.10.2021,CHILDREN AND FAMILIES,REDACTED PERSONAL DATA,920,FOSTERING ALLOWANCES,PAYMENTS TO CARERS,REDACTED,REDACTED
06.10.2021,CHILDREN AND FAMILIES,REDACTED PERSONAL DATA,762,FOSTERING ALLOWANCES,PAYMENTS TO CARERS,REDACTED,REDACTED
06.10.2021,CHILDREN AND FAMILIES,REDACTED PERSONAL DATA,862,FOSTERING ALLOWANCES,PAYMENTS TO CARERS,REDACTED,REDACTED
06.10.2021,CHILDREN AND FAMILIES,REDACTED PERSONAL DATA,"1,632.00",FOSTERING ALLOWANCES,PAYMENTS TO CARERS,REDACTED,REDACTED
06.10.2021,CHILDREN AND FAMILIES,REDACTED PERSONAL DATA,"1,664.00",FOSTERING ALLOWANCES,PAYMENTS TO CARERS,REDACTED,REDACTED
06.10.2021,CHILDREN AND FAMILIES,REDACTED PERSONAL DATA,954,FOSTERING ALLOWANCES,PAYMENTS TO CARERS,REDACTED,REDACTED
06.10.2021,CHILDREN AND FAMILIES,REDACTED PERSONAL DATA,864,FOSTERING ALLOWANCES,PAYMENTS TO CARERS,REDACTED,REDACTED
06.10.2021,CHILDREN AND FAMILIES,REDACTED PERSONAL DATA,954,FOSTERING ALLOWANCES,PAYMENTS TO CARERS,REDACTED,REDACTED
06.10.2021,CHILDREN AND FAMILIES,REDACTED PERSONAL DATA,862,FOSTERING ALLOWANCES,PAYMENTS TO CARERS,REDACTED,REDACTED
06.10.2021,CHILDREN AND FAMILIES,REDACTED PERSONAL DATA,862,FOSTERING ALLOWANCES,PAYMENTS TO CARERS,REDACTED,REDACTED
06.10.2021,CHILDREN AND FAMILIES,REDACTED PERSONAL DATA,862,FOSTERING ALLOWANCES,PAYMENTS TO CARERS,REDACTED,REDACTED
06.10.2021,CHILDREN AND FAMILIES,REDACTED PERSONAL DATA,"2,231.57",FOSTERING ALLOWANCES,PAYMENTS TO CARERS,REDACTED,REDACTED
06.10.2021,CHILDREN AND FAMILIES,REDACTED PERSONAL DATA,-427,FOSTERING ALLOWANCES,PAYMENTS TO CARERS,REDACTED,REDACTED
06.10.2021,CHILDREN AND FAMILIES,REDACTED PERSONAL DATA,"1,847.14",FOSTERING ALLOWANCES,PAYMENTS TO CARERS,REDACTED,REDACTED
06.10.2021,CHILDREN AND FAMILIES,REDACTED PERSONAL DATA,864,FOSTERING ALLOWANCES,PAYMENTS TO CARERS,REDACTED,REDACTED
06.10.2021,CHILDREN AND FAMILIES,REDACTED PERSONAL DATA,"1,984.00",FOSTERING ALLOWANCES,PAYMENTS TO CARERS,REDACTED,REDACTED
06.10.2021,CHILDREN AND FAMILIES,REDACTED PERSONAL DATA,"1,984.00",FOSTERING ALLOWANCES,PAYMENTS TO CARERS,REDACTED,REDACTED
06.10.2021,CHILDREN AND FAMILIES,REDACTED PERSONAL DATA,-265,FOSTERING ALLOWANCES,PAYMENTS TO CARERS,REDACTED,REDACTED
06.10.2021,CHILDREN AND FAMILIES,REDACTED PERSONAL DATA,954,FOSTERING ALLOWANCES,PAYMENTS TO CARERS,REDACTED,REDACTED
06.10.2021,CHILDREN AND FAMILIES,REDACTED PERSONAL DATA,954,FOSTERING ALLOWANCES,PAYMENTS TO CARERS,REDACTED,REDACTED
06.10.2021,CHILDREN AND FAMILIES,REDACTED PERSONAL DATA,660,FOSTERING ALLOWANCES,PAYMENTS TO CARERS,REDACTED,REDACTED
06.10.2021,CHILDREN AND FAMILIES,REDACTED PERSONAL DATA,862,FOSTERING ALLOWANCES,PAYMENTS TO CARERS,REDACTED,REDACTED
06.10.2021,CHILDREN AND FAMILIES,REDACTED PERSONAL DATA,"1,393.00",FOSTERING ALLOWANCES,PAYMENTS TO CARERS,REDACTED,REDACTED
06.10.2021,CHILDREN AND FAMILIES,REDACTED PERSONAL DATA,"1,393.00",FOSTERING ALLOWANCES,PAYMENTS TO CARERS,REDACTED,REDACTED
06.10.2021,CHILDREN AND FAMILIES,REDACTED PERSONAL DATA,862,FOSTERING ALLOWANCES,PAYMENTS TO CARERS,REDACTED,REDACTED
06.10.2021,CHILDREN AND FAMILIES,REDACTED PERSONAL DATA,864,FOSTERING ALLOWANCES,PAYMENTS TO CARERS,REDACTED,REDACTED
06.10.2021,CHILDREN AND FAMILIES,REDACTED PERSONAL DATA,"1,632.00",FOSTERING ALLOWANCES,PAYMENTS TO CARERS,REDACTED,REDACTED
06.10.2021,CHILDREN AND FAMILIES,REDACTED PERSONAL DATA,"1,632.00",FOSTERING ALLOWANCES,PAYMENTS TO CARERS,REDACTED,REDACTED
06.10.2021,CHILDREN AND FAMILIES,REDACTED PERSONAL DATA,984,FOSTERING ALLOWANCES,PAYMENTS TO CARERS,REDACTED,REDACTED
06.10.2021,CHILDREN AND FAMILIES,REDACTED PERSONAL DATA,712,FOSTERING ALLOWANCES,PAYMENTS TO CARERS,REDACTED,REDACTED
06.10.2021,CHILDREN AND FAMILIES,REDACTED PERSONAL DATA,"1,166.00",FOSTERING ALLOWANCES,PAYMENTS TO CARERS,REDACTED,REDACTED
06.10.2021,CHILDREN AND FAMILIES,REDACTED PERSONAL DATA,832,FOSTERING ALLOWANCES,PAYMENTS TO CARERS,REDACTED,REDACTED
06.10.2021,CHILDREN AND FAMILIES,REDACTED PERSONAL DATA,862.14,FOSTERING ALLOWANCES,PAYMENTS TO CARERS,REDACTED,REDACTED
06.10.2021,CHILDREN AND FAMILIES,REDACTED PERSONAL DATA,862,FOSTERING ALLOWANCES,PAYMENTS TO CARERS,REDACTED,REDACTED
06.10.2021,CHILDREN AND FAMILIES,REDACTED PERSONAL DATA,862,FOSTERING ALLOWANCES,PAYMENTS TO CARERS,REDACTED,REDACTED
06.10.2021,CHILDREN AND FAMILIES,REDACTED PERSONAL DATA,862,FOSTERING ALLOWANCES,PAYMENTS TO CARERS,REDACTED,REDACTED
06.10.2021,CHILDREN AND FAMILIES,REDACTED PERSONAL DATA,864,FOSTERING ALLOWANCES,PAYMENTS TO CARERS,REDACTED,REDACTED
06.10.2021,CHILDREN AND FAMILIES,REDACTED PERSONAL DATA,712,FOSTERING ALLOWANCES,PAYMENTS TO CARERS,REDACTED,REDACTED
06.10.2021,CHILDREN AND FAMILIES,REDACTED PERSONAL DATA,896,FOSTERING ALLOWANCES,PAYMENTS TO CARERS,REDACTED,REDACTED
06.10.2021,CHILDREN AND FAMILIES,REDACTED PERSONAL DATA,862,FOSTERING ALLOWANCES,PAYMENTS TO CARERS,REDACTED,REDACTED
06.10.2021,CHILDREN AND FAMILIES,REDACTED PERSONAL DATA,862,FOSTERING ALLOWANCES,PAYMENTS TO CARERS,REDACTED,REDACTED
06.10.2021,CHILDREN AND FAMILIES,REDACTED PERSONAL DATA,864,FOSTERING ALLOWANCES,PAYMENTS TO CARERS,REDACTED,REDACTED
06.10.2021,CHILDREN AND FAMILIES,REDACTED PERSONAL DATA,862,FOSTERING ALLOWANCES,PAYMENTS TO CARERS,REDACTED,REDACTED
06.10.2021,CHILDREN AND FAMILIES,REDACTED PERSONAL DATA,864,FOSTERING ALLOWANCES,PAYMENTS TO CARERS,REDACTED,REDACTED
06.10.2021,CHILDREN AND FAMILIES,REDACTED PERSONAL DATA,712,FOSTERING ALLOWANCES,PAYMENTS TO CARERS,REDACTED,REDACTED
06.10.2021,CHILDREN AND FAMILIES,REDACTED PERSONAL DATA,954,FOSTERING ALLOWANCES,PAYMENTS TO CARERS,REDACTED,REDACTED
06.10.2021,CHILDREN AND FAMILIES,REDACTED PERSONAL DATA,862,FOSTERING ALLOWANCES,PAYMENTS TO CARERS,REDACTED,REDACTED
06.10.2021,CHILDREN AND FAMILIES,REDACTED PERSONAL DATA,862,FOSTERING ALLOWANCES,PAYMENTS TO CARERS,REDACTED,REDACTED
06.10.2021,CHILDREN AND FAMILIES,REDACTED PERSONAL DATA,762.86,FOSTERING ALLOWANCES,PAYMENTS TO CARERS,REDACTED,REDACTED
06.10.2021,CHILDREN AND FAMILIES,REDACTED PERSONAL DATA,"1,263.92",FOSTERING ALLOWANCES,PAYMENTS TO CARERS,REDACTED,REDACTED
06.10.2021,CHILDREN AND FAMILIES,REDACTED PERSONAL DATA,954,FOSTERING ALLOWANCES,PAYMENTS TO CARERS,REDACTED,REDACTED
06.10.2021,CHILDREN AND FAMILIES,REDACTED PERSONAL DATA,862,FOSTERING ALLOWANCES,PAYMENTS TO CARERS,REDACTED,REDACTED
06.10.2021,CHILDREN AND FAMILIES,REDACTED PERSONAL DATA,954,FOSTERING ALLOWANCES,PAYMENTS TO CARERS,REDACTED,REDACTED
06.10.2021,CHILDREN AND FAMILIES,REDACTED PERSONAL DATA,864,FOSTERING ALLOWANCES,PAYMENTS TO CARERS,REDACTED,REDACTED
06.10.2021,CHILDREN AND FAMILIES,REDACTED PERSONAL DATA,712,FOSTERING ALLOWANCES,PAYMENTS TO CARERS,REDACTED,REDACTED
06.10.2021,CHILDREN AND FAMILIES,REDACTED PERSONAL DATA,832,FOSTERING ALLOWANCES,PAYMENTS TO CARERS,REDACTED,REDACTED
06.10.2021,CHILDREN AND FAMILIES,REDACTED PERSONAL DATA,862,FOSTERING ALLOWANCES,PAYMENTS TO CARERS,REDACTED,REDACTED
06.10.2021,CHILDREN AND FAMILIES,REDACTED PERSONAL DATA,954,FOSTERING ALLOWANCES,PAYMENTS TO CARERS,REDACTED,REDACTED
06.10.2021,CHILDREN AND FAMILIES,REDACTED PERSONAL DATA,762,FOSTERING ALLOWANCES,PAYMENTS TO CARERS,REDACTED,REDACTED
06.10.2021,CHILDREN AND FAMILIES,REDACTED PERSONAL DATA,862,FOSTERING ALLOWANCES,PAYMENTS TO CARERS,REDACTED,REDACTED
06.10.2021,CHILDREN AND FAMILIES,REDACTED PERSONAL DATA,954,FOSTERING ALLOWANCES,PAYMENTS TO CARERS,REDACTED,REDACTED
06.10.2021,CHILDREN AND FAMILIES,REDACTED PERSONAL DATA,682,FOSTERING ALLOWANCES,PAYMENTS TO CARERS,REDACTED,REDACTED
06.10.2021,CHILDREN AND FAMILIES,REDACTED PERSONAL DATA,732,FOSTERING ALLOWANCES,PAYMENTS TO CARERS,REDACTED,REDACTED
06.10.2021,CHILDREN AND FAMILIES,REDACTED PERSONAL DATA,712,FOSTERING ALLOWANCES,PAYMENTS TO CARERS,REDACTED,REDACTED
06.10.2021,CHILDREN AND FAMILIES,REDACTED PERSONAL DATA,862,FOSTERING ALLOWANCES,PAYMENTS TO CARERS,REDACTED,REDACTED
06.10.2021,CHILDREN AND FAMILIES,REDACTED PERSONAL DATA,862,FOSTERING ALLOWANCES,PAYMENTS TO CARERS,REDACTED,REDACTED
06.10.2021,CHILDREN AND FAMILIES,REDACTED PERSONAL DATA,750,FOSTERING ALLOWANCES,PAYMENTS TO CARERS,REDACTED,REDACTED
06.10.2021,CHILDREN AND FAMILIES,REDACTED PERSONAL DATA,862,FOSTERING ALLOWANCES,PAYMENTS TO CARERS,REDACTED,REDACTED
06.10.2021,CHILDREN AND FAMILIES,REDACTED PERSONAL DATA,712,FOSTERING ALLOWANCES,PAYMENTS TO CARERS,REDACTED,REDACTED
06.10.2021,CHILDREN AND FAMILIES,REDACTED PERSONAL DATA,762,FOSTERING ALLOWANCES,PAYMENTS TO CARERS,REDACTED,REDACTED
06.10.2021,CHILDREN AND FAMILIES,REDACTED PERSONAL DATA,862,FOSTERING ALLOWANCES,PAYMENTS TO CARERS,REDACTED,REDACTED
06.10.2021,CHILDREN AND FAMILIES,REDACTED PERSONAL DATA,712,FOSTERING ALLOWANCES,PAYMENTS TO CARERS,REDACTED,REDACTED
06.10.2021,CHILDREN AND FAMILIES,REDACTED PERSONAL DATA,862,FOSTERING ALLOWANCES,PAYMENTS TO CARERS,REDACTED,REDACTED
06.10.2021,CHILDREN AND FAMILIES,REDACTED PERSONAL DATA,862,FOSTERING ALLOWANCES,PAYMENTS TO CARERS,REDACTED,REDACTED
06.10.2021,CHILDREN AND FAMILIES,REDACTED PERSONAL DATA,862,FOSTERING ALLOWANCES,PAYMENTS TO CARERS,REDACTED,REDACTED
06.10.2021,CHILDREN AND FAMILIES,REDACTED PERSONAL DATA,862,FOSTERING ALLOWANCES,PAYMENTS TO CARERS,REDACTED,REDACTED
06.10.2021,CHILDREN AND FAMILIES,REDACTED PERSONAL DATA,862,FOSTERING ALLOWANCES,PAYMENTS TO CARERS,REDACTED,REDACTED
06.10.2021,CHILDREN AND FAMILIES,REDACTED PERSONAL DATA,762,FOSTERING ALLOWANCES,PAYMENTS TO CARERS,REDACTED,REDACTED
06.10.2021,CHILDREN AND FAMILIES,REDACTED PERSONAL DATA,832,FOSTERING ALLOWANCES,PAYMENTS TO CARERS,REDACTED,REDACTED
06.10.2021,CHILDREN AND FAMILIES,REDACTED PERSONAL DATA,832,FOSTERING ALLOWANCES,PAYMENTS TO CARERS,REDACTED,REDACTED
06.10.2021,CHILDREN AND FAMILIES,REDACTED PERSONAL DATA,762,FOSTERING ALLOWANCES,PAYMENTS TO CARERS,REDACTED,REDACTED
06.10.2021,CHILDREN AND FAMILIES,REDACTED PERSONAL DATA,762,FOSTERING ALLOWANCES,PAYMENTS TO CARERS,REDACTED,REDACTED
06.10.2021,CHILDREN AND FAMILIES,REDACTED PERSONAL DATA,832,FOSTERING ALLOWANCES,PAYMENTS TO CARERS,REDACTED,REDACTED
06.10.2021,CHILDREN AND FAMILIES,REDACTED PERSONAL DATA,864,FOSTERING ALLOWANCES,PAYMENTS TO CARERS,REDACTED,REDACTED
06.10.2021,CHILDREN AND FAMILIES,REDACTED PERSONAL DATA,732,FOSTERING ALLOWANCES,PAYMENTS TO CARERS,REDACTED,REDACTED
06.10.2021,CHILDREN AND FAMILIES,REDACTED PERSONAL DATA,400,FOSTERING ALLOWANCES,ADDITIONAL PAYMENTS TO AGENCIES/CARERS,REDACTED,REDACTED
06.10.2021,CHILDREN AND FAMILIES,REDACTED PERSONAL DATA,864,FOSTERING ALLOWANCES,PAYMENTS TO CARERS,REDACTED,REDACTED
06.10.2021,CHILDREN AND FAMILIES,REDACTED PERSONAL DATA,762,FOSTERING ALLOWANCES,PAYMENTS TO CARERS,REDACTED,REDACTED
06.10.2021,CHILDREN AND FAMILIES,REDACTED PERSONAL DATA,762,FOSTERING ALLOWANCES,PAYMENTS TO CARERS,REDACTED,REDACTED
06.10.2021,CHILDREN AND FAMILIES,REDACTED PERSONAL DATA,862,FOSTERING ALLOWANCES,PAYMENTS TO CARERS,REDACTED,REDACTED
06.10.2021,CHILDREN AND FAMILIES,REDACTED PERSONAL DATA,776.08,FOSTERING ALLOWANCES,PAYMENTS TO CARERS,REDACTED,REDACTED
06.10.2021,CHILDREN AND FAMILIES,REDACTED PERSONAL DATA,682,FOSTERING ALLOWANCES,PAYMENTS TO CARERS,REDACTED,REDACTED
06.10.2021,CHILDREN AND FAMILIES,REDACTED PERSONAL DATA,862,FOSTERING ALLOWANCES,PAYMENTS TO CARERS,REDACTED,REDACTED
06.10.2021,CHILDREN AND FAMILIES,REDACTED PERSONAL DATA,"3,140.14",FOSTERING ALLOWANCES,PAYMENTS TO CARERS,REDACTED,REDACTED
06.10.2021,CHILDREN AND FAMILIES,REDACTED PERSONAL DATA,762,FOSTERING ALLOWANCES,PAYMENTS TO CARERS,REDACTED,REDACTED
06.10.2021,CHILDREN AND FAMILIES,REDACTED PERSONAL DATA,762,FOSTERING ALLOWANCES,PAYMENTS TO CARERS,REDACTED,REDACTED
06.10.2021,CHILDREN AND FAMILIES,REDACTED PERSONAL DATA,712,FOSTERING ALLOWANCES,PAYMENTS TO CARERS,REDACTED,REDACTED
06.10.2021,CHILDREN AND FAMILIES,REDACTED PERSONAL DATA,862,FOSTERING ALLOWANCES,PAYMENTS TO CARERS,REDACTED,REDACTED
06.10.2021,CHILDREN AND FAMILIES,REDACTED PERSONAL DATA,832,FOSTERING ALLOWANCES,PAYMENTS TO CARERS,REDACTED,REDACTED
06.10.2021,CHILDREN AND FAMILIES,REDACTED PERSONAL DATA,-405.43,FOSTERING ALLOWANCES,PAYMENTS TO CARERS,REDACTED,REDACTED
06.10.2021,CHILDREN AND FAMILIES,REDACTED PERSONAL DATA,832,FOSTERING ALLOWANCES,PAYMENTS TO CARERS,REDACTED,REDACTED
06.10.2021,CHILDREN AND FAMILIES,REDACTED PERSONAL DATA,862,FOSTERING ALLOWANCES,PAYMENTS TO CARERS,REDACTED,REDACTED
06.10.2021,CHILDREN AND FAMILIES,REDACTED PERSONAL DATA,830,FOSTERING ALLOWANCES,PAYMENTS TO CARERS,REDACTED,REDACTED
06.10.2021,CHILDREN AND FAMILIES,REDACTED PERSONAL DATA,"1,713.10",FOSTERING ALLOWANCES,PAYMENTS TO CARERS,REDACTED,REDACTED
06.10.2021,CHILDREN AND FAMILIES,REDACTED PERSONAL DATA,300,FOSTERING ALLOWANCES,ADDITIONAL PAYMENTS TO AGENCIES/CARERS,REDACTED,REDACTED
06.10.2021,CHILDREN AND FAMILIES,REDACTED PERSONAL DATA,920,FOSTERING ALLOWANCES,PAYMENTS TO CARERS,REDACTED,REDACTED
06.10.2021,CHILDREN AND FAMILIES,REDACTED PERSONAL DATA,732,FOSTERING ALLOWANCES,PAYMENTS TO CARERS,REDACTED,REDACTED
06.10.2021,CHILDREN AND FAMILIES,REDACTED PERSONAL DATA,830,FOSTERING ALLOWANCES,PAYMENTS TO CARERS,REDACTED,REDACTED
06.10.2021,CHILDREN AND FAMILIES,REDACTED PERSONAL DATA,920,FOSTERING ALLOWANCES,PAYMENTS TO CARERS,REDACTED,REDACTED
06.10.2021,CHILDREN AND FAMILIES,REDACTED PERSONAL DATA,732,FOSTERING ALLOWANCES,PAYMENTS TO CARERS,REDACTED,REDACTED
06.10.2021,CHILDREN AND FAMILIES,REDACTED PERSONAL DATA,682,FOSTERING ALLOWANCES,PAYMENTS TO CARERS,REDACTED,REDACTED
06.10.2021,CHILDREN AND FAMILIES,REDACTED PERSONAL DATA,832,FOSTERING ALLOWANCES,PAYMENTS TO CARERS,REDACTED,REDACTED
06.10.2021,CHILDREN AND FAMILIES,REDACTED PERSONAL DATA,830,FOSTERING ALLOWANCES,PAYMENTS TO CARERS,REDACTED,REDACTED
06.10.2021,CHILDREN AND FAMILIES,REDACTED PERSONAL DATA,"1,632.00",FOSTERING ALLOWANCES,PAYMENTS TO CARERS,REDACTED,REDACTED
06.10.2021,CHILDREN AND FAMILIES,REDACTED PERSONAL DATA,-297.14,FOSTERING ALLOWANCES,PAYMENTS TO CARERS,REDACTED,REDACTED
06.10.2021,CHILDREN AND FAMILIES,REDACTED PERSONAL DATA,832,FOSTERING ALLOWANCES,PAYMENTS TO CARERS,REDACTED,REDACTED
06.10.2021,CHILDREN AND FAMILIES,REDACTED PERSONAL DATA,920,FOSTERING ALLOWANCES,PAYMENTS TO CARERS,REDACTED,REDACTED
06.10.2021,CHILDREN AND FAMILIES,REDACTED PERSONAL DATA,"1,070.16",FOSTERING ALLOWANCES,PAYMENTS TO CARERS,REDACTED,REDACTED
06.10.2021,CHILDREN AND FAMILIES,REDACTED PERSONAL DATA,944.57,FOSTERING ALLOWANCES,PAYMENTS TO CARERS,REDACTED,REDACTED
06.10.2021,CHILDREN AND FAMILIES,KIRA INDEPENDENT LTD,"2,200.00",FOSTERING TEAM,PROFESSIONAL FEES,5902490109,1000073565
06.10.2021,CHILDREN AND FAMILIES,REDACTED PERSONAL DATA,912,FRIENDS &FAMILY FOST,PAYMENTS TO CARERS,REDACTED,REDACTED
06.10.2021,CHILDREN AND FAMILIES,REDACTED PERSONAL DATA,348,FRIENDS &FAMILY FOST,PAYMENTS TO CARERS,REDACTED,REDACTED
06.10.2021,CHILDREN AND FAMILIES,REDACTED PERSONAL DATA,832,FRIENDS &FAMILY FOST,PAYMENTS TO CARERS,REDACTED,REDACTED
06.10.2021,CHILDREN AND FAMILIES,REDACTED PERSONAL DATA,832,FRIENDS &FAMILY FOST,PAYMENTS TO CARERS,REDACTED,REDACTED
06.10.2021,CHILDREN AND FAMILIES,REDACTED PERSONAL DATA,716,FRIENDS &FAMILY FOST,PAYMENTS TO CARERS,REDACTED,REDACTED
06.10.2021,CHILDREN AND FAMILIES,REDACTED PERSONAL DATA,824,FRIENDS &FAMILY FOST,PAYMENTS TO CARERS,REDACTED,REDACTED
06.10.2021,CHILDREN AND FAMILIES,REDACTED PERSONAL DATA,824,FRIENDS &FAMILY FOST,PAYMENTS TO CARERS,REDACTED,REDACTED
06.10.2021,CHILDREN AND FAMILIES,REDACTED PERSONAL DATA,716,FRIENDS &FAMILY FOST,PAYMENTS TO CARERS,REDACTED,REDACTED
06.10.2021,CHILDREN AND FAMILIES,REDACTED PERSONAL DATA,824,FRIENDS &FAMILY FOST,PAYMENTS TO CARERS,REDACTED,REDACTED
06.10.2021,CHILDREN AND FAMILIES,REDACTED PERSONAL DATA,862,FRIENDS &FAMILY FOST,PAYMENTS TO CARERS,REDACTED,REDACTED
06.10.2021,CHILDREN AND FAMILIES,REDACTED PERSONAL DATA,954,FRIENDS &FAMILY FOST,PAYMENTS TO CARERS,REDACTED,REDACTED
06.10.2021,CHILDREN AND FAMILIES,REDACTED PERSONAL DATA,732,FRIENDS &FAMILY FOST,PAYMENTS TO CARERS,REDACTED,REDACTED
06.10.2021,CHILDREN AND FAMILIES,REDACTED PERSONAL DATA,832,FRIENDS &FAMILY FOST,PAYMENTS TO CARERS,REDACTED,REDACTED
06.10.2021,CHILDREN AND FAMILIES,REDACTED PERSONAL DATA,394,FRIENDS &FAMILY FOST,PAYMENTS TO CARERS,REDACTED,REDACTED
06.10.2021,CHILDREN AND FAMILIES,REDACTED PERSONAL DATA,920,FRIENDS &FAMILY FOST,PAYMENTS TO CARERS,REDACTED,REDACTED
06.10.2021,CHILDREN AND FAMILIES,REDACTED PERSONAL DATA,732,FRIENDS &FAMILY FOST,PAYMENTS TO CARERS,REDACTED,REDACTED
06.10.2021,CHILDREN AND FAMILIES,REDACTED PERSONAL DATA,832,FRIENDS &FAMILY FOST,PAYMENTS TO CARERS,REDACTED,REDACTED
06.10.2021,CHILDREN AND FAMILIES,REDACTED PERSONAL DATA,732,FRIENDS &FAMILY FOST,PAYMENTS TO CARERS,REDACTED,REDACTED
06.10.2021,CHILDREN AND FAMILIES,REDACTED PERSONAL DATA,832,FRIENDS &FAMILY FOST,PAYMENTS TO CARERS,REDACTED,REDACTED
06.10.2021,CHILDREN AND FAMILIES,REDACTED PERSONAL DATA,832,FRIENDS &FAMILY FOST,PAYMENTS TO CARERS,REDACTED,REDACTED
06.10.2021,CHILDREN AND FAMILIES,REDACTED PERSONAL DATA,666,FRIENDS &FAMILY FOST,PAYMENTS TO CARERS,REDACTED,REDACTED
06.10.2021,CHILDREN AND FAMILIES,REDACTED PERSONAL DATA,830,FRIENDS &FAMILY FOST,PAYMENTS TO CARERS,REDACTED,REDACTED
06.10.2021,CHILDREN AND FAMILIES,REDACTED PERSONAL DATA,832,FRIENDS &FAMILY FOST,PAYMENTS TO CARERS,REDACTED,REDACTED
06.10.2021,CHILDREN AND FAMILIES,REDACTED PERSONAL DATA,824,FRIENDS &FAMILY FOST,PAYMENTS TO CARERS,REDACTED,REDACTED
06.10.2021,CHILDREN AND FAMILIES,REDACTED PERSONAL DATA,462,FRIENDS &FAMILY FOST,PAYMENTS TO CARERS,REDACTED,REDACTED
06.10.2021,CHILDREN AND FAMILIES,REDACTED PERSONAL DATA,832,FRIENDS &FAMILY FOST,PAYMENTS TO CARERS,REDACTED,REDACTED
06.10.2021,CHILDREN AND FAMILIES,REDACTED PERSONAL DATA,832,FRIENDS &FAMILY FOST,PAYMENTS TO CARERS,REDACTED,REDACTED
06.10.2021,CHILDREN AND FAMILIES,REDACTED PERSONAL DATA,400,FRIENDS &FAMILY FOST,PAYMENTS TO CARERS,REDACTED,REDACTED
06.10.2021,CHILDREN AND FAMILIES,REDACTED PERSONAL DATA,832,FRIENDS &FAMILY FOST,PAYMENTS TO CARERS,REDACTED,REDACTED
06.10.2021,CHILDREN AND FAMILIES,REDACTED PERSONAL DATA,682,FRIENDS &FAMILY FOST,PAYMENTS TO CARERS,REDACTED,REDACTED
06.10.2021,CHILDREN AND FAMILIES,REDACTED PERSONAL DATA,666,FRIENDS &FAMILY FOST,PAYMENTS TO CARERS,REDACTED,REDACTED
06.10.2021,CHILDREN AND FAMILIES,REDACTED PERSONAL DATA,832,FRIENDS &FAMILY FOST,PAYMENTS TO CARERS,REDACTED,REDACTED
06.10.2021,CHILDREN AND FAMILIES,REDACTED PERSONAL DATA,824,FRIENDS &FAMILY FOST,PAYMENTS TO CARERS,REDACTED,REDACTED
06.10.2021,CHILDREN AND FAMILIES,REDACTED PERSONAL DATA,832,FRIENDS &FAMILY FOST,PAYMENTS TO CARERS,REDACTED,REDACTED
06.10.2021,CHILDREN AND FAMILIES,REDACTED PERSONAL DATA,394,FRIENDS &FAMILY FOST,PAYMENTS TO CARERS,REDACTED,REDACTED
06.10.2021,CHILDREN AND FAMILIES,REDACTED PERSONAL DATA,418,FRIENDS &FAMILY FOST,PAYMENTS TO CARERS,REDACTED,REDACTED
06.10.2021,CHILDREN AND FAMILIES,REDACTED PERSONAL DATA,682,FRIENDS &FAMILY FOST,PAYMENTS TO CARERS,REDACTED,REDACTED
06.10.2021,CHILDREN AND FAMILIES,REDACTED PERSONAL DATA,699.85,FRIENDS &FAMILY FOST,PAYMENTS TO CARERS,REDACTED,REDACTED
06.10.2021,CHILDREN AND FAMILIES,REDACTED PERSONAL DATA,732,FRIENDS &FAMILY FOST,PAYMENTS TO CARERS,REDACTED,REDACTED
06.10.2021,CHILDREN AND FAMILIES,REDACTED PERSONAL DATA,732,FRIENDS &FAMILY FOST,PAYMENTS TO CARERS,REDACTED,REDACTED
06.10.2021,CHILDREN AND FAMILIES,REDACTED PERSONAL DATA,348,FRIENDS &FAMILY FOST,PAYMENTS TO CARERS,REDACTED,REDACTED
06.10.2021,CHILDREN AND FAMILIES,REDACTED PERSONAL DATA,394,FRIENDS &FAMILY FOST,PAYMENTS TO CARERS,REDACTED,REDACTED
06.10.2021,CHILDREN AND FAMILIES,REDACTED PERSONAL DATA,348,FRIENDS &FAMILY FOST,PAYMENTS TO CARERS,REDACTED,REDACTED
06.10.2021,CHILDREN AND FAMILIES,REDACTED PERSONAL DATA,832,FRIENDS &FAMILY FOST,PAYMENTS TO CARERS,REDACTED,REDACTED
06.10.2021,CHILDREN AND FAMILIES,REDACTED PERSONAL DATA,676,FRIENDS &FAMILY FOST,PAYMENTS TO CARERS,REDACTED,REDACTED
06.10.2021,CHILDREN AND FAMILIES,REDACTED PERSONAL DATA,682,FRIENDS &FAMILY FOST,PAYMENTS TO CARERS,REDACTED,REDACTED
06.10.2021,CHILDREN AND FAMILIES,REDACTED PERSONAL DATA,394,FRIENDS &FAMILY FOST,PAYMENTS TO CARERS,REDACTED,REDACTED
06.10.2021,CHILDREN AND FAMILIES,REDACTED PERSONAL DATA,750,FRIENDS &FAMILY FOST,PAYMENTS TO CARERS,REDACTED,REDACTED
06.10.2021,CHILDREN AND FAMILIES,REDACTED PERSONAL DATA,394,FRIENDS &FAMILY FOST,PAYMENTS TO CARERS,REDACTED,REDACTED
06.10.2021,CHILDREN AND FAMILIES,REDACTED PERSONAL DATA,394,FRIENDS &FAMILY FOST,PAYMENTS TO CARERS,REDACTED,REDACTED
06.10.2021,CHILDREN AND FAMILIES,REDACTED PERSONAL DATA,348,FRIENDS &FAMILY FOST,PAYMENTS TO CARERS,REDACTED,REDACTED
06.10.2021,CHILDREN AND FAMILIES,REDACTED PERSONAL DATA,394,FRIENDS &FAMILY FOST,PAYMENTS TO CARERS,REDACTED,REDACTED
06.10.2021,CHILDREN AND FAMILIES,REDACTED PERSONAL DATA,310,FRIENDS &FAMILY FOST,PAYMENTS TO CARERS,REDACTED,REDACTED
06.10.2021,CHILDREN AND FAMILIES,REDACTED PERSONAL DATA,310,FRIENDS &FAMILY FOST,PAYMENTS TO CARERS,REDACTED,REDACTED
06.10.2021,CHILDREN AND FAMILIES,REDACTED PERSONAL DATA,310,FRIENDS &FAMILY FOST,PAYMENTS TO CARERS,REDACTED,REDACTED
06.10.2021,CHILDREN AND FAMILIES,REDACTED PERSONAL DATA,310,FRIENDS &FAMILY FOST,PAYMENTS TO CARERS,REDACTED,REDACTED
06.10.2021,CHILDREN AND FAMILIES,REDACTED PERSONAL DATA,462,FRIENDS &FAMILY FOST,PAYMENTS TO CARERS,REDACTED,REDACTED
06.10.2021,CHILDREN AND FAMILIES,REDACTED PERSONAL DATA,"-1,266.00",FRIENDS &FAMILY FOST,OTHER PAYMENTS FOR CLIENTS,REDACTED,REDACTED
06.10.2021,CHILDREN AND FAMILIES,REDACTED PERSONAL DATA,"2,112.85",FRIENDS &FAMILY FOST,PAYMENTS TO CARERS,REDACTED,REDACTED
06.10.2021,CHILDREN AND FAMILIES,CASTLE WATER LTD,"1,162.57",MGMT & PARENTING,WATER,5902490122,1000078867
06.10.2021,CHILDREN AND FAMILIES,CASTLE WATER LTD,"1,416.55",MGMT & PARENTING,WATER,5902490122,1000078867
06.10.2021,CHILDREN AND FAMILIES,CONTACT PROFESSIONALS,255.61,SEMI-IND CARELEAVERS,EXTERNAL AGENCIES AND BODIES,2103328317,1000057263
06.10.2021,CHILDREN AND FAMILIES,SYDNEY CARE LTD,"5,142.85",SEMI-IND CARELEAVERS,EXTERNAL AGENCIES AND BODIES,2103328315,1000081598
06.10.2021,CHILDREN AND FAMILIES,TRANSFORMING LIVES COMPANY LTD,"3,619.20",SEMI-IND CARELEAVERS,EXTERNAL AGENCIES AND BODIES,2103328319,1000083352
06.10.2021,CHILDREN AND FAMILIES,SYDNEY CARE LTD,"7,367.14",SEMI-IND LAC 16-17,EXTERNAL AGENCIES AND BODIES,2103328320,1000081598
06.10.2021,CHILDREN AND FAMILIES,SYDNEY CARE LTD,300,SEMI-IND LAC 16-17,OTHER PAYMENTS FOR CLIENTS,2103328330,1000081598
06.10.2021,CHILDREN AND FAMILIES,TRANSFORMING LIVES COMPANY LTD,"4,015.50",SEMI-IND LAC 16-17,EXTERNAL AGENCIES AND BODIES,2103328329,1000083352
06.10.2021,CHILDREN AND FAMILIES,TRANSFORMING LIVES COMPANY LTD,300,SEMI-IND LAC 16-17,OTHER PAYMENTS FOR CLIENTS,2103328326,1000083352
06.10.2021,CHILDREN AND FAMILIES,HIGHER LEVEL CARE LTD,"3,615.15",SEMI-IND LAC 16-17,EXTERNAL AGENCIES AND BODIES,2103328325,1000087055
06.10.2021,CHILDREN AND FAMILIES,REDACTED PERSONAL DATA,388.04,SPECIAL GUARDIANSHIP,PAYMENTS TO CARERS,REDACTED,REDACTED
06.10.2021,CHILDREN AND FAMILIES,REDACTED PERSONAL DATA,342.45,SPECIAL GUARDIANSHIP,PAYMENTS TO CARERS,REDACTED,REDACTED
06.10.2021,CHILDREN AND FAMILIES,REDACTED PERSONAL DATA,389.34,SPECIAL GUARDIANSHIP,PAYMENTS TO CARERS,REDACTED,REDACTED
06.10.2021,CHILDREN AND FAMILIES,REDACTED PERSONAL DATA,356.15,SPECIAL GUARDIANSHIP,PAYMENTS TO CARERS,REDACTED,REDACTED
06.10.2021,CHILDREN AND FAMILIES,REDACTED PERSONAL DATA,403.04,SPECIAL GUARDIANSHIP,PAYMENTS TO CARERS,REDACTED,REDACTED
06.10.2021,CHILDREN AND FAMILIES,REDACTED PERSONAL DATA,525,SPECIAL GUARDIANSHIP,PAYMENTS TO CARERS,REDACTED,REDACTED
06.10.2021,CHILDREN AND FAMILIES,REDACTED PERSONAL DATA,341.15,SPECIAL GUARDIANSHIP,PAYMENTS TO CARERS,REDACTED,REDACTED
06.10.2021,CHILDREN AND FAMILIES,REDACTED PERSONAL DATA,500,STAYPUT- FOST CARERS,PAYMENTS TO CARERS,REDACTED,REDACTED
06.10.2021,CHILDREN AND FAMILIES,REDACTED PERSONAL DATA,500,STAYPUT- FOST CARERS,PAYMENTS TO CARERS,REDACTED,REDACTED
06.10.2021,CHILDREN AND FAMILIES,REDACTED PERSONAL DATA,500,STAYPUT- FOST CARERS,PAYMENTS TO CARERS,REDACTED,REDACTED
06.10.2021,CHILDREN AND FAMILIES,REDACTED PERSONAL DATA,500,STAYPUT- FOST CARERS,PAYMENTS TO CARERS,REDACTED,REDACTED
06.10.2021,CHILDREN AND FAMILIES,REDACTED PERSONAL DATA,600,STAYPUT- FOST CARERS,PAYMENTS TO CARERS,REDACTED,REDACTED
06.10.2021,CHILDREN AND FAMILIES,REDACTED PERSONAL DATA,500,STAYPUT- FOST CARERS,PAYMENTS TO CARERS,REDACTED,REDACTED
06.10.2021,CHILDREN AND FAMILIES,REDACTED PERSONAL DATA,500,STAYPUT- FOST CARERS,PAYMENTS TO CARERS,REDACTED,REDACTED
06.10.2021,CHILDREN AND FAMILIES,REDACTED PERSONAL DATA,500,STAYPUT- FOST CARERS,PAYMENTS TO CARERS,REDACTED,REDACTED
06.10.2021,CHILDREN AND FAMILIES,REDACTED PERSONAL DATA,500,STAYPUT- FOST CARERS,PAYMENTS TO CARERS,REDACTED,REDACTED
06.10.2021,CHILDREN AND FAMILIES,REDACTED PERSONAL DATA,500,STAYPUT- FOST CARERS,PAYMENTS TO CARERS,REDACTED,REDACTED
06.10.2021,CHILDREN AND FAMILIES,REDACTED PERSONAL DATA,500,STAYPUT- FOST CARERS,PAYMENTS TO CARERS,REDACTED,REDACTED
06.10.2021,CHILDREN AND FAMILIES,REDACTED PERSONAL DATA,500,STAYPUT- FOST CARERS,PAYMENTS TO CARERS,REDACTED,REDACTED
06.10.2021,CHILDREN AND FAMILIES,REDACTED PERSONAL DATA,500,STAYPUT- FOST CARERS,PAYMENTS TO CARERS,REDACTED,REDACTED
06.10.2021,CHILDREN AND FAMILIES,REDACTED PERSONAL DATA,500,STAYPUT- FOST CARERS,PAYMENTS TO CARERS,REDACTED,REDACTED
06.10.2021,CHILDREN AND FAMILIES,REDACTED PERSONAL DATA,500,STAYPUT- FOST CARERS,PAYMENTS TO CARERS,REDACTED,REDACTED
06.10.2021,CHILDREN AND FAMILIES,REDACTED PERSONAL DATA,500,STAYPUT- FOST CARERS,PAYMENTS TO CARERS,REDACTED,REDACTED
06.10.2021,CHILDREN AND FAMILIES,REDACTED PERSONAL DATA,500,STAYPUT- FOST CARERS,PAYMENTS TO CARERS,REDACTED,REDACTED
06.10.2021,CHILDREN AND FAMILIES,REDACTED PERSONAL DATA,852,STAYPUT- FOST CARERS,PAYMENTS TO CARERS,REDACTED,REDACTED
06.10.2021,CHILDREN AND FAMILIES,REDACTED PERSONAL DATA,500,STAYPUT- FOST CARERS,PAYMENTS TO CARERS,REDACTED,REDACTED
06.10.2021,CHILDREN AND FAMILIES,REDACTED PERSONAL DATA,500,STAYPUT- FOST CARERS,PAYMENTS TO CARERS,REDACTED,REDACTED
06.10.2021,CHILDREN AND FAMILIES,REDACTED PERSONAL DATA,500,STAYPUT- FOST CARERS,PAYMENTS TO CARERS,REDACTED,REDACTED
06.10.2021,CHILDREN AND FAMILIES,REDACTED PERSONAL DATA,500,STAYPUT- FOST CARERS,PAYMENTS TO CARERS,REDACTED,REDACTED
06.10.2021,CHILDREN AND FAMILIES,REDACTED PERSONAL DATA,500,STAYPUT- FOST CARERS,PAYMENTS TO CARERS,REDACTED,REDACTED
06.10.2021,CHILDREN AND FAMILIES,REDACTED PERSONAL DATA,500,STAYPUT- FOST CARERS,PAYMENTS TO CARERS,REDACTED,REDACTED
06.10.2021,CHILDREN AND FAMILIES,REDACTED PERSONAL DATA,500,STAYPUT- FOST CARERS,PAYMENTS TO CARERS,REDACTED,REDACTED
06.10.2021,CHILDREN AND FAMILIES,REDACTED PERSONAL DATA,500,STAYPUT- FOST CARERS,PAYMENTS TO CARERS,REDACTED,REDACTED
06.10.2021,CHILDREN AND FAMILIES,REDACTED PERSONAL DATA,832,STAYPUT- FOST CARERS,PAYMENTS TO CARERS,REDACTED,REDACTED
06.10.2021,CHILDREN AND FAMILIES,REDACTED PERSONAL DATA,600,STAYPUT- FOST CARERS,PAYMENTS TO CARERS,REDACTED,REDACTED
06.10.2021,CHILDREN AND FAMILIES,REDACTED PERSONAL DATA,500,STAYPUT- FOST CARERS,PAYMENTS TO CARERS,REDACTED,REDACTED
06.10.2021,CHILDREN AND FAMILIES,REDACTED PERSONAL DATA,500,STAYPUT- FOST CARERS,PAYMENTS TO CARERS,REDACTED,REDACTED
06.10.2021,CHILDREN AND FAMILIES,REDACTED PERSONAL DATA,500,STAYPUT- FOST CARERS,PAYMENTS TO CARERS,REDACTED,REDACTED
06.10.2021,CHILDREN AND FAMILIES,REDACTED PERSONAL DATA,700,STAYPUT- FOST CARERS,PAYMENTS TO CARERS,REDACTED,REDACTED
06.10.2021,CHILDREN AND FAMILIES,REDACTED PERSONAL DATA,656,STAYPUT- FOST CARERS,PAYMENTS TO CARERS,REDACTED,REDACTED
06.10.2021,CHILDREN AND FAMILIES,REDACTED PERSONAL DATA,600,STAYPUT- FOST CARERS,PAYMENTS TO CARERS,REDACTED,REDACTED
06.10.2021,CHILDREN AND FAMILIES,REDACTED PERSONAL DATA,900,STAYPUT- FOST CARERS,PAYMENTS TO CARERS,REDACTED,REDACTED
06.10.2021,CHILDREN AND FAMILIES,CONTACT PROFESSIONALS,570,TEAM B,OTHER PAYMENTS FOR CLIENTS,2103328746,1000057263
06.10.2021,CHILDREN AND FAMILIES,CONTACT PROFESSIONALS,875,TEAM B,OTHER PAYMENTS FOR CLIENTS,2103328744,1000057263
06.10.2021,CHILDREN AND FAMILIES,CONTACT PROFESSIONALS,"1,064.00",TEAM B,OTHER PAYMENTS FOR CLIENTS,2103328741,1000057263
06.10.2021,CHILDREN AND FAMILIES,CONTACT PROFESSIONALS,"1,375.00",TEAM B,OTHER PAYMENTS FOR CLIENTS,2103328740,1000057263
06.10.2021,CHILDREN AND FAMILIES,CONTACT PROFESSIONALS,542,TEAM B,SECTION 17 PAYMENTS TO AGENCIES/CARERS,2103328748,1000057263
06.10.2021,CHILDREN AND FAMILIES,DREAMFO HOUSING LTD,"2,564.22",UASC LAC 16-17,EXTERNAL AGENCIES AND BODIES,2103328321,1000087273
06.10.2021,CHILDREN AND FAMILIES,DREAMFO HOUSING LTD,"3,214.20",UASC LAC 16-17,EXTERNAL AGENCIES AND BODIES,2103328323,1000087273
06.10.2021,CHILDREN AND FAMILIES,DREAMFO HOUSING LTD,"3,321.34",UASC LAC 16-17,EXTERNAL AGENCIES AND BODIES,2103328327,1000087273
06.10.2021,CHILDREN AND FAMILIES,DREAMFO HOUSING LTD,300,UASC LAC 16-17,OTHER PAYMENTS FOR CLIENTS,2103328324,1000087273
06.10.2021,CHILDREN AND FAMILIES,DREAMFO HOUSING LTD,310,UASC LAC 16-17,OTHER PAYMENTS FOR CLIENTS,2103328328,1000087273
06.10.2021,CHILDREN'S,BURO HAPPOLD LIMITED,"6,500.00",CAPITAL PS (EDUCATION),CONSTRUCTION FEES - INTERNAL,5902490077,1000086000
06.10.2021,COMMUNITIES,COMMUNITY SOUTHWARK,"95,932.50",CVS & VOLUNTEERING,GRANTS,5902490055,1000018147
06.10.2021,COMMUNITIES,MEDACS HOMECARE,296.64,NO RECOURSE TO PUBLIC FUNDS,HOMECARE - C&V,2103329073,11287415
06.10.2021,COMMUNITIES,MEDACS HOMECARE,835.79,NO RECOURSE TO PUBLIC FUNDS,HOMECARE - C&V,2103329081,11287415
06.10.2021,COMMUNITIES,MEDACS HOMECARE,967.83,NO RECOURSE TO PUBLIC FUNDS,HOMECARE - C&V,2103329070,11287415
06.10.2021,COMMUNITIES,LATIN AMERICAN DISABLED PEOPLE PROJECT,"2,500.00",WEST CENTRAL,GRANTS,5902490009,1000058588
06.10.2021,COMMUNITIES HRA,RENNIE ESTATE T&RA,"1,474.00",RESIDENTS PARTICIPATION FUND,GRANTS,5902490073,1000077115
06.10.2021,CORPORATE & DEMOCRATIC CORE,POTTERS FIELDS PARK MANAGEMENT TRUST,"15,956.28",POTTERS FIELD PROJECT COSTS,SERVICE CHARGES,2103328115,1000053530
06.10.2021,CUSTOMER EXPERIENCE HGF,NRC PATHOLOGY SERVICES LIMITED,360,CORONER'S,PROFESSIONAL FEES,5902489394,1000085798
06.10.2021,CUSTOMER EXPERIENCE HGF,DAISY CORPORATE SERVICES TRADING LIMITED,"13,816.08",IT MANAGEMENT,DATA COMMUNICATIONS,5902490029,1000075666
06.10.2021,CUSTOMER EXPERIENCE HGF,INTEROUTE NETWORKS LTD,"4,999.98",SHARED SERVICES,DATA COMMUNICATIONS,5902490004,1000066651
06.10.2021,CUSTOMER EXPERIENCE HGF,GTT EMEA LIMITED,"9,252.99",SHARED SERVICES,DATA COMMUNICATIONS,5902490015,1000087094
06.10.2021,EDUCATION,SATCH BRASS CONSULTANTS LTD,"1,128.75",LEA MUSIC SERVICE(310) - 5018566,EQUIPMENT PURCHASE & REPAIR,5902490098,1000080729
06.10.2021,EMPLOYEE EXPERIENCE,PSI TALENT MEASUREMENT (UK) LTD,308,OCCUPATIONAL ASSESSMENT,CONSULTANTS SERVICES,5902490054,1000008858
06.10.2021,ENV&LEIS,NHS SOUTH EAST LONDON CCG,"1,910.00",STOP SMOKING,EXTERNAL AGENCIES AND BODIES,5902490117,1000085592
06.10.2021,ENVIRONMENT AND LEISURE,DOG KENNEL HILL ADVENTURE PLAYGROUND LTD,267.06,CAPITAL PS (LEISURE),CAPITAL GRANTS,5902490049,11134529
06.10.2021,ENVIRONMENT AND LEISURE,DOG KENNEL HILL ADVENTURE PLAYGROUND LTD,"1,163.68",CAPITAL PS (LEISURE),CAPITAL GRANTS,5902490059,11134529
06.10.2021,ENVIRONMENT AND LEISURE,2CQR LTD,"9,765.00",CAPITAL PS (REGEN),ICT ACQUISITION,5902490012,1000083086
06.10.2021,ENVIRONMENT DIRECTORATE,LEX AUTOLEASE,-550.06,CAR LEASING CTRL A/C,PARKING CHARGES,5902489861,1000069462
06.10.2021,ENVIRONMENT DIRECTORATE,LEX AUTOLEASE,-357.53,CAR LEASING CTRL A/C,PARKING CHARGES,5902489861,1000069462
06.10.2021,ENVIRONMENT DIRECTORATE,LEX AUTOLEASE,-491.28,CAR LEASING CTRL A/C,VEHICLE LEASING CHARGES,5902490056,1000069462
06.10.2021,ENVIRONMENT DIRECTORATE,AUTOMOTIVE LEASING,"10,521.35",COMMERCIAL VEH CTRL A/C,HIRED VEHICLES,5902490134,11014756
06.10.2021,ENVIRONMENT DIRECTORATE,AUTOMOTIVE LEASING,"39,933.13",COMMERCIAL VEH CTRL A/C,HIRED VEHICLES,5902490135,11014756
06.10.2021,ENVIRONMENT DIRECTORATE,LEX AUTOLEASE,387.37,COMMERCIAL VEH CTRL A/C,HIRED VEHICLES,5902490116,1000069462
06.10.2021,ENVIRONMENT DIRECTORATE,LEX AUTOLEASE,"19,188.35",COMMERCIAL VEH CTRL A/C,HIRED VEHICLES,5902490114,1000069462
06.10.2021,ENVIRONMENT DIRECTORATE,LEX AUTOLEASE,"19,188.35",COMMERCIAL VEH CTRL A/C,HIRED VEHICLES,5902490118,1000069462
06.10.2021,ENVIRONMENT DIRECTORATE,CLOSE BROTHERS VEHICLE HIRE LTD,"1,455.65",COMMERCIAL VEH CTRL A/C,HIRED VEHICLES,5902490130,1000074394
06.10.2021,ENVIRONMENT DIRECTORATE,UK TELEMATICS LTD,"5,460.21",COMMERCIAL VEH CTRL A/C,VEHICLE REPAIRS & MAINTENANCE,5902490062,1000081665
06.10.2021,ENVIRONMENT DIRECTORATE,DAWSONGROUP VANS LTD,262.6,COMMERCIAL VEH CTRL A/C,HIRED VEHICLES,5902490026,1000082230
06.10.2021,ENVIRONMENT DIRECTORATE,LEEDS COMMERCIAL LIMITED T/A LC VEHICLE HIRE,"2,860.00",COMMERCIAL VEH CTRL A/C,VEHICLE REPAIRS & MAINTENANCE,5902490003,1000082730
06.10.2021,ENVIRONMENT DIRECTORATE,SPALDINGS (UK) LTD,678,GROUNDS MAINTENANCE - GENERAL,MATERIALS,5902490129,1907384
06.10.2021,ENVIRONMENT DIRECTORATE,TYCO INTEGRATED FIRE & SECURITY,"10,752.25",TOWN CENTRE CCTV,EQUIPMENT PURCHASE & REPAIR,5902489680,1000077948
06.10.2021,F & C S EXCLUDING CORPORATE BUDGETS,REDACTED PERSONAL DATA,500,SESS,OTHER PAYMENTS FOR CLIENTS,REDACTED,REDACTED
06.10.2021,F & C S EXCLUDING CORPORATE BUDGETS,REDACTED PERSONAL DATA,500,SESS,OTHER PAYMENTS FOR CLIENTS,REDACTED,REDACTED
06.10.2021,F & C S EXCLUDING CORPORATE BUDGETS,REDACTED PERSONAL DATA,500,SESS,OTHER PAYMENTS FOR CLIENTS,REDACTED,REDACTED
06.10.2021,F & C S EXCLUDING CORPORATE BUDGETS,REDACTED PERSONAL DATA,500,SESS,OTHER PAYMENTS FOR CLIENTS,REDACTED,REDACTED
06.10.2021,F & C S EXCLUDING CORPORATE BUDGETS,REDACTED PERSONAL DATA,500,SESS,OTHER PAYMENTS FOR CLIENTS,REDACTED,REDACTED
06.10.2021,F & C S EXCLUDING CORPORATE BUDGETS,REDACTED PERSONAL DATA,500,SESS,OTHER PAYMENTS FOR CLIENTS,REDACTED,REDACTED
06.10.2021,F & C S EXCLUDING CORPORATE BUDGETS,REDACTED PERSONAL DATA,500,SESS,OTHER PAYMENTS FOR CLIENTS,REDACTED,REDACTED
06.10.2021,F & C S EXCLUDING CORPORATE BUDGETS,REDACTED PERSONAL DATA,500,SESS,OTHER PAYMENTS FOR CLIENTS,REDACTED,REDACTED
06.10.2021,FINANCE & GOVERNANCE,STAFFINO,"1,425.00",ADMINISTRATION SUPPORT,SOFTWARE,6101999587,INTERNATIONAL PAYMENT
06.10.2021,HOUSING GENERAL FUND,COLT TECHNOLOGY SERVICES,"2,091.00",CAPITAL PS (STRAT SERV),ICT ACQUISITION,5902490039,1000009377
06.10.2021,HOUSING HRA,BAILY  GARNER LLP,"8,325.00",CAPITAL PS (HRA),CONSTRUCTION FEES - EMPLOYERS AGENT,5902490115,1000663
06.10.2021,HOUSING HRA,SALTASH ENTERPRISES LTD,"1,367.61",CAPITAL PS (HRA),CONSTRUCTION MAIN CONTRACT -CERTIFICATED,2103329096,4013605
06.10.2021,HOUSING HRA,SALTASH ENTERPRISES LTD,"2,572.63",CAPITAL PS (HRA),CONSTRUCTION MAIN CONTRACT -CERTIFICATED,2103329096,4013605
06.10.2021,HOUSING HRA,SALTASH ENTERPRISES LTD,"7,713.00",CAPITAL PS (HRA),CONSTRUCTION MAIN CONTRACT -CERTIFICATED,2103329095,4013605
06.10.2021,HOUSING HRA,SALTASH ENTERPRISES LTD,"13,350.00",CAPITAL PS (HRA),CONSTRUCTION MAIN CONTRACT -CERTIFICATED,2103329097,4013605
06.10.2021,HOUSING HRA,SALTASH ENTERPRISES LTD,"21,476.28",CAPITAL PS (HRA),CONSTRUCTION MAIN CONTRACT -CERTIFICATED,2103329095,4013605
06.10.2021,HOUSING HRA,SALTASH ENTERPRISES LTD,"29,016.45",CAPITAL PS (HRA),CONSTRUCTION MAIN CONTRACT -CERTIFICATED,2103329097,4013605
06.10.2021,HOUSING HRA,CRS DRAWING AND DESIGN LTD,"19,120.00",CAPITAL PS (HRA),CONSTRUCTION,5902490060,1000085835
06.10.2021,HOUSING HRA,PENNINGTON CHOICES LTD,"2,470.00",CAPITAL PS (REGEN),CONSTRUCTION SITE COSTS,5902490131,1000067888
06.10.2021,HOUSING HRA,STAFFINO,"1,092.50",HOME OWNERSHIP,SOFTWARE,6101999587,INTERNATIONAL PAYMENT
06.10.2021,LEISURE DIRECTORATE,OCO LIMITED,290,ACCOMMODATION,PLANNED MAINTENANCE,5902490051,1006066
06.10.2021,LEISURE DIRECTORATE,PORTABLE SPACE LTD,"1,984.00",CEMETERIES,BUILDING R&M,5902490007,1000083256
06.10.2021,LEISURE DIRECTORATE,PORTABLE SPACE LTD,"2,009.00",CEMETERIES,BUILDING R&M,5902490006,1000083256
06.10.2021,LEISURE DIRECTORATE,THE OXFORD & BERMONDSEY CLUB,"7,740.75",GRANTS COMMISSIONING,GRANTS,5902490057,1698761
06.10.2021,LEISURE DIRECTORATE,SKYWAY,"6,742.25",GRANTS COMMISSIONING,GRANTS,5902490040,1000069595
06.10.2021,LEISURE DIRECTORATE,HARWELL DOCUMENT RESTORATION SERVICES,300,LOCAL HISTORY LIBRARY,REMOVAL EXPENSES,5902490112,1000058461
06.10.2021,PLANNING AND TRANSPORT,MACCREANOR LAVINGTON B V,"24,469.00",OKR MASTER PLANNING,PROFESSIONAL FEES,5902490016,1000080276
06.10.2021,PUBLIC HEALTH,FAST58,"1,536.00",PLACE & HEALTH IMPROVEMENT,EXTERNAL AGENCIES AND BODIES,5902490100,1000084542
06.10.2021,PUBLICHEALTH,REDACTED PERSONAL DATA,500,COVID-19 CONTROL OUTBREAK MGMNT.FUND,OTHER PAYMENTS FOR CLIENTS,REDACTED,REDACTED
06.10.2021,RESIDENT SERVICES,BRITISH GAS TRADING LTD,"2,228.68",TA HOSTELS,ELECTRICITY,5902490072,1000055977
06.10.2021,RESIDENT SERVICES,BRITISH GAS TRADING LTD,"2,234.46",TA HOSTELS,ELECTRICITY,5902490074,1000055977
06.10.2021,RESIDENT SERVICES,BRITISH GAS TRADING LTD,"2,323.34",TA HOSTELS,ELECTRICITY,5902490076,1000055977
06.10.2021,RESIDENT SERVICES HGF,LUCY SONIA JAKUBOWSKA,"2,117.28",HOMELESS PROJECTS,GRANTS,5902490079,1000087334
06.10.2021,RESIDENT SERVICES HGF,NOWMEDICAL LTD,"2,809.00",HOUSING OPTIONS,PROFESSIONAL FEES,5902490053,1000068185
06.10.2021,RESIDENT SERVICES HGF,REDACTED PERSONAL DATA,"4,145.00",NIGHTLY TA (NSC),EXTERNAL AGENCIES AND BODIES,REDACTED,REDACTED
06.10.2021,RESIDENT SERVICES HGF,REDACTED PERSONAL DATA,"4,565.00",NIGHTLY TA (NSC),EXTERNAL AGENCIES AND BODIES,REDACTED,REDACTED
06.10.2021,RESIDENT SERVICES HGF,OAK HOUSING LTD,"3,383.40",PSL PLACEMENTS,EXTERNAL AGENCIES AND BODIES,5902490011,1000079310
06.10.2021,RESIDENT SERVICES HGF,ST MUNGO'S ASSOCIATION,"2,503.80",RAPID REHOUSING,EXTERNAL AGENCIES AND BODIES,5902490081,1000058785
06.10.2021,RESIDENT SERVICES HGF,ST MUNGO'S ASSOCIATION,"4,189.05",RAPID REHOUSING,EXTERNAL AGENCIES AND BODIES,5902490083,1000058785
06.10.2021,RESIDENT SERVICES HGF,TIAGO BRANDAO,595,RAPID REHOUSING,GRANTS,5902490025,1000084163
07.10.2021,ADULT SOCIAL CARE,SYED & QUINN LTD,400,ADULTS MULTI-AGENCY SAFEGUARDING TRNG,TRAINING,5902490190,1000029554
07.10.2021,ADULT SOCIAL CARE,REDACTED PERSONAL DATA,500,APPOINTEESHIPS,OTHER PAYMENTS FOR CLIENTS,REDACTED,REDACTED
07.10.2021,ADULT SOCIAL CARE,BLISSETT CARE LTD,505.43,LD LTS 18-64,HOMECARE - C&V,2103329191,1000042627
07.10.2021,ADULT SOCIAL CARE,LONDON CARE LTD,368.8,MEM LTS 65+,HOMECARE - C&V,2103329281,1000003398
07.10.2021,ADULT SOCIAL CARE,LONDON CARE LTD,663.84,MEM LTS 65+,HOMECARE - C&V,2103329277,1000003398
07.10.2021,ADULT SOCIAL CARE,BLISSETT CARE LTD,519.22,MEM LTS 65+,HOMECARE - C&V,2103329207,1000042627
07.10.2021,ADULT SOCIAL CARE,BLISSETT CARE LTD,"2,329.28",MEM LTS 65+,HOMECARE - C&V,2103329193,1000042627
07.10.2021,ADULT SOCIAL CARE,BLISSETT CARE LTD,269.01,MH LTS 65+,HOMECARE - C&V,2103329199,1000042627
07.10.2021,ADULT SOCIAL CARE,BLISSETT CARE LTD,358.36,MH LTS 65+,HOMECARE - C&V,2103329167,1000042627
07.10.2021,ADULT SOCIAL CARE,BLISSETT CARE LTD,486.99,MH LTS 65+,HOMECARE - C&V,2103329145,1000042627
07.10.2021,ADULT SOCIAL CARE,BLISSETT CARE LTD,"3,344.05",MH LTS 65+,HOMECARE - C&V,2103329163,1000042627
07.10.2021,ADULT SOCIAL CARE,LONDON CARE LTD,331.92,PHY LTS 18-64,HOMECARE - C&V,2103329283,1000003398
07.10.2021,ADULT SOCIAL CARE,LONDON CARE LTD,387.24,PHY LTS 18-64,HOMECARE - C&V,2103329269,1000003398
07.10.2021,ADULT SOCIAL CARE,LONDON CARE LTD,442.56,PHY LTS 18-64,HOMECARE - C&V,2103329303,1000003398
07.10.2021,ADULT SOCIAL CARE,LONDON CARE LTD,516.32,PHY LTS 18-64,HOMECARE - C&V,2103329295,1000003398
07.10.2021,ADULT SOCIAL CARE,LONDON CARE LTD,571.64,PHY LTS 18-64,HOMECARE - C&V,2103329306,1000003398
07.10.2021,ADULT SOCIAL CARE,LONDON CARE LTD,"2,065.28",PHY LTS 18-64,HOMECARE - C&V,2103329297,1000003398
07.10.2021,ADULT SOCIAL CARE,BLISSETT CARE LTD,353.77,PHY LTS 18-64,HOMECARE - C&V,2103329147,1000042627
07.10.2021,ADULT SOCIAL CARE,BLISSETT CARE LTD,546.71,PHY LTS 18-64,HOMECARE - C&V,2103329120,1000042627
07.10.2021,ADULT SOCIAL CARE,BLISSETT CARE LTD,629.37,PHY LTS 18-64,HOMECARE - C&V,2103329135,1000042627
07.10.2021,ADULT SOCIAL CARE,BLISSETT CARE LTD,631.96,PHY LTS 18-64,HOMECARE - C&V,2103329213,1000042627
07.10.2021,ADULT SOCIAL CARE,BLISSETT CARE LTD,983.13,PHY LTS 18-64,HOMECARE - C&V,2103329185,1000042627
07.10.2021,ADULT SOCIAL CARE,BLISSETT CARE LTD,"1,084.04",PHY LTS 18-64,HOMECARE - C&V,2103329189,1000042627
07.10.2021,ADULT SOCIAL CARE,LONDON CARE LTD,331.92,PHY LTS 65+,HOMECARE - C&V,2103329299,1000003398
07.10.2021,ADULT SOCIAL CARE,LONDON CARE LTD,405.68,PHY LTS 65+,HOMECARE - C&V,2103329271,1000003398
07.10.2021,ADULT SOCIAL CARE,LONDON CARE LTD,442.56,PHY LTS 65+,HOMECARE - C&V,2103329273,1000003398
07.10.2021,ADULT SOCIAL CARE,LONDON CARE LTD,522,PHY LTS 65+,HOMECARE - C&V,2103329309,1000003398
07.10.2021,ADULT SOCIAL CARE,LONDON CARE LTD,626.96,PHY LTS 65+,HOMECARE - C&V,2103329287,1000003398
07.10.2021,ADULT SOCIAL CARE,LONDON CARE LTD,626.96,PHY LTS 65+,HOMECARE - C&V,2103329300,1000003398
07.10.2021,ADULT SOCIAL CARE,LONDON CARE LTD,626.96,PHY LTS 65+,HOMECARE - C&V,2103329302,1000003398
07.10.2021,ADULT SOCIAL CARE,LONDON CARE LTD,719.16,PHY LTS 65+,HOMECARE - C&V,2103329291,1000003398
07.10.2021,ADULT SOCIAL CARE,LONDON CARE LTD,852.85,PHY LTS 65+,HOMECARE - C&V,2103329313,1000003398
07.10.2021,ADULT SOCIAL CARE,LONDON CARE LTD,903.56,PHY LTS 65+,HOMECARE - C&V,2103329301,1000003398
07.10.2021,ADULT SOCIAL CARE,LONDON CARE LTD,922,PHY LTS 65+,HOMECARE - C&V,2103329305,1000003398
07.10.2021,ADULT SOCIAL CARE,LONDON CARE LTD,"1,051.08",PHY LTS 65+,HOMECARE - C&V,2103329275,1000003398
07.10.2021,ADULT SOCIAL CARE,LONDON CARE LTD,"1,106.40",PHY LTS 65+,HOMECARE - C&V,2103329279,1000003398
07.10.2021,ADULT SOCIAL CARE,LONDON CARE LTD,"1,493.64",PHY LTS 65+,HOMECARE - C&V,2103329289,1000003398
07.10.2021,ADULT SOCIAL CARE,LONDON CARE LTD,"2,065.28",PHY LTS 65+,HOMECARE - C&V,2103329293,1000003398
07.10.2021,ADULT SOCIAL CARE,LONDON CARE LTD,"2,065.28",PHY LTS 65+,HOMECARE - C&V,2103329304,1000003398
07.10.2021,ADULT SOCIAL CARE,LONDON CARE LTD,"2,839.76",PHY LTS 65+,HOMECARE - C&V,2103329285,1000003398
07.10.2021,ADULT SOCIAL CARE,BLISSETT CARE LTD,289.45,PHY LTS 65+,HOMECARE - C&V,2103329129,1000042627
07.10.2021,ADULT SOCIAL CARE,BLISSETT CARE LTD,372.07,PHY LTS 65+,HOMECARE - C&V,2103329183,1000042627
07.10.2021,ADULT SOCIAL CARE,BLISSETT CARE LTD,385.84,PHY LTS 65+,HOMECARE - C&V,2103329175,1000042627
07.10.2021,ADULT SOCIAL CARE,BLISSETT CARE LTD,457.4,PHY LTS 65+,HOMECARE - C&V,2103329171,1000042627
07.10.2021,ADULT SOCIAL CARE,BLISSETT CARE LTD,546.66,PHY LTS 65+,HOMECARE - C&V,2103329153,1000042627
07.10.2021,ADULT SOCIAL CARE,BLISSETT CARE LTD,555.1,PHY LTS 65+,HOMECARE - C&V,2103329181,1000042627
07.10.2021,ADULT SOCIAL CARE,BLISSETT CARE LTD,610.98,PHY LTS 65+,HOMECARE - C&V,2103329177,1000042627
07.10.2021,ADULT SOCIAL CARE,BLISSETT CARE LTD,636.23,PHY LTS 65+,HOMECARE - C&V,2103329203,1000042627
07.10.2021,ADULT SOCIAL CARE,BLISSETT CARE LTD,649.22,PHY LTS 65+,HOMECARE - C&V,2103329173,1000042627
07.10.2021,ADULT SOCIAL CARE,BLISSETT CARE LTD,721.37,PHY LTS 65+,HOMECARE - C&V,2103329149,1000042627
07.10.2021,ADULT SOCIAL CARE,BLISSETT CARE LTD,730.41,PHY LTS 65+,HOMECARE - C&V,2103329137,1000042627
07.10.2021,ADULT SOCIAL CARE,BLISSETT CARE LTD,803.92,PHY LTS 65+,HOMECARE - C&V,2103329187,1000042627
07.10.2021,ADULT SOCIAL CARE,BLISSETT CARE LTD,858.89,PHY LTS 65+,HOMECARE - C&V,2103329127,1000042627
07.10.2021,ADULT SOCIAL CARE,BLISSETT CARE LTD,872.66,PHY LTS 65+,HOMECARE - C&V,2103329161,1000042627
07.10.2021,ADULT SOCIAL CARE,BLISSETT CARE LTD,932.59,PHY LTS 65+,HOMECARE - C&V,2103329125,1000042627
07.10.2021,ADULT SOCIAL CARE,BLISSETT CARE LTD,942.83,PHY LTS 65+,HOMECARE - C&V,2103329139,1000042627
07.10.2021,ADULT SOCIAL CARE,BLISSETT CARE LTD,955.36,PHY LTS 65+,HOMECARE - C&V,2103329197,1000042627
07.10.2021,ADULT SOCIAL CARE,BLISSETT CARE LTD,"1,157.75",PHY LTS 65+,HOMECARE - C&V,2103329205,1000042627
07.10.2021,ADULT SOCIAL CARE,BLISSETT CARE LTD,"1,158.46",PHY LTS 65+,HOMECARE - C&V,2103329151,1000042627
07.10.2021,ADULT SOCIAL CARE,BLISSETT CARE LTD,"1,607.64",PHY LTS 65+,HOMECARE - C&V,2103329159,1000042627
07.10.2021,ADULT SOCIAL CARE,BLISSETT CARE LTD,"1,737.81",PHY LTS 65+,HOMECARE - C&V,2103329131,1000042627
07.10.2021,ADULT SOCIAL CARE,BLISSETT CARE LTD,"1,869.68",PHY LTS 65+,HOMECARE - C&V,2103329195,1000042627
07.10.2021,ADULT SOCIAL CARE,BLISSETT CARE LTD,"2,329.24",PHY LTS 65+,HOMECARE - C&V,2103329209,1000042627
07.10.2021,ADULT SOCIAL CARE,BLISSETT CARE LTD,"2,471.55",PHY LTS 65+,HOMECARE - C&V,2103329141,1000042627
07.10.2021,ADULT SOCIAL CARE,BLISSETT CARE LTD,"2,669.01",PHY LTS 65+,HOMECARE - C&V,2103329201,1000042627
07.10.2021,ADULT SOCIAL CARE,BLISSETT CARE LTD,"3,055.85",PHY LTS 65+,HOMECARE - C&V,2103329143,1000042627
07.10.2021,ADULT SOCIAL CARE,BLISSETT CARE LTD,"3,183.06",PHY LTS 65+,HOMECARE - C&V,2103329155,1000042627
07.10.2021,ADULT SOCIAL CARE,THAMES HOMECARE SERVICE LTD,"26,600.00",REABLEMENT CONTRACT,HOMECARE - C&V,5902490186,1000079295
07.10.2021,ASSET MANAGEMENT,ALLIED REMEDIAL TREATMENTS LTD,"1,536.00",DISREPAIR,PAYMENTS FOR LEGAL SERVICES,5902489881,1393898
07.10.2021,ASSET MANAGEMENT,BRYHILL TECHNICAL SERVICES,456.96,DISREPAIR,PAYMENTS FOR LEGAL SERVICES,2103327134,3000001722
07.10.2021,ASSET MANAGEMENT,JUDGE AND PRIESTLEY SOLICITORS,"49,540.00",DISREPAIR,PAYMENTS FOR LEGAL SERVICES,5902490225,1472217
07.10.2021,ASSET MANAGEMENT,LONDON FIRE BRIGADE,352,ENG CONTRACTS (NORTH),LIFTS,5902490152,1000083629
07.10.2021,ASSET MANAGEMENT,LONDON FIRE BRIGADE,352,ENG CONTRACTS (NORTH),LIFTS,5902490155,1000083629
07.10.2021,ASSET MANAGEMENT,LONDON FIRE BRIGADE,352,ENG CONTRACTS (NORTH),LIFTS,5902490157,1000083629
07.10.2021,ASSET MANAGEMENT,LONDON FIRE BRIGADE,352,ENG CONTRACTS (NORTH),LIFTS,5902490158,1000083629
07.10.2021,ASSET MANAGEMENT,LONDON FIRE BRIGADE,352,ENG CONTRACTS (NORTH),LIFTS,5902490161,1000083629
07.10.2021,ASSET MANAGEMENT,SEDGWICK INTERNATIONAL UK,264.5,REPAIRS OPERATIONS,PROFESSIONAL FEES,5902490163,1000082289
07.10.2021,ASSET MANAGEMENT,SEDGWICK INTERNATIONAL UK,333.5,REPAIRS OPERATIONS,PROFESSIONAL FEES,5902490165,1000082289
07.10.2021,ASSET MANAGEMENT HGF,ROYAL MAIL GROUP LTD,"1,494.35",160 TOOLEY ST.,POSTAGES,5902490249,1000061535
07.10.2021,CENTRAL FUNCTIONS,KENT COUNTY COUNCIL - LASER,282.78,COMMERCIAL PROPERTIES,GAS,5902489126,1000012926
07.10.2021,CENTRAL FUNCTIONS,KENT COUNTY COUNCIL - LASER,357.82,COMMERCIAL PROPERTIES,GAS,5902489127,1000012926
07.10.2021,CENTRAL FUNCTIONS,KENT COUNTY COUNCIL - LASER,637.22,COMMERCIAL PROPERTIES,GAS,5902489122,1000012926
07.10.2021,CENTRAL FUNCTIONS,ASTRA CONVENIENCE STORE,"1,350.00",COMMERCIAL PROPERTIES,RENTS,2103328119,1000070403
07.10.2021,CHIEF EXECUTIVE,METIS CONSULTANTS LIMITED,373.65,CAPITAL PS (REGEN),CONSTRUCTION FEES  - EXTERNAL,5902490184,1000086330
07.10.2021,CHIEF EXECUTIVE,METIS CONSULTANTS LIMITED,"2,320.22",CAPITAL PS (REGEN),CONSTRUCTION FEES  - EXTERNAL,5902490184,1000086330
07.10.2021,CHIEF EXECUTIVE,METIS CONSULTANTS LIMITED,"2,916.63",CAPITAL PS (REGEN),CONSTRUCTION FEES  - EXTERNAL,5902490184,1000086330
07.10.2021,CHIEF EXECUTIVE'S OFFICE,UNITY WORKS SOCIAL ENTERPRISES,"35,643.75",CHIEF EXECUTIVE'S OFFICE,EXTERNAL AGENCIES AND BODIES,5902489203,1000083486
07.10.2021,CHILDREN AND FAMILIES,FAMILY FUTURES CIC,"2,500.00",ADOPTION SUPP FUND,PROFESSIONAL FEES,5902490141,1000027893
07.10.2021,CHILDREN AND FAMILIES,PARENTS AND CHILDREN TOGETHER,450,ADOPTION SUPP FUND,PROFESSIONAL FEES,5902490219,1000068128
07.10.2021,CHILDREN AND FAMILIES,REDFERN PSYCHOLOGY SERVICES LTD,675,ADOPTION SUPP FUND,PROFESSIONAL FEES,5902490216,1000087276
07.10.2021,CHILDREN AND FAMILIES,REDACTED PERSONAL DATA,990,ADOPTION SUPP FUND,PROFESSIONAL FEES,REDACTED,REDACTED
07.10.2021,CHILDREN AND FAMILIES,LONDON BOROUGH OF EALING,"9,900.00",ALS INTER AGENCY,EXTERNAL AGENCIES AND BODIES,5902490220,1000033322
07.10.2021,CHILDREN AND FAMILIES,REDACTED PERSONAL DATA,300,CARELEAVER UNIV SUPP,CLIENT TRANSPORT,REDACTED,REDACTED
07.10.2021,CHILDREN AND FAMILIES,REDACTED PERSONAL DATA,800,CARELEAVER UNIV SUPP,OTHER PAYMENTS FOR CLIENTS,REDACTED,REDACTED
07.10.2021,CHILDREN AND FAMILIES,REDACTED PERSONAL DATA,"1,025.00",CARELEAVER UNIV SUPP,OTHER PAYMENTS FOR CLIENTS,REDACTED,REDACTED
07.10.2021,CHILDREN AND FAMILIES,NEGOTIATORS FAMILY CENTRE LIMITED,405,CONTACT SERVICE,OTHER PAYMENTS FOR CLIENTS,5902488970,1000075672
07.10.2021,CHILDREN AND FAMILIES,NEGOTIATORS FAMILY CENTRE LIMITED,425,CONTACT SERVICE,OTHER PAYMENTS FOR CLIENTS,5902488969,1000075672
07.10.2021,CHILDREN AND FAMILIES,NEGOTIATORS FAMILY CENTRE LIMITED,550,CONTACT SERVICE,OTHER PAYMENTS FOR CLIENTS,5902488966,1000075672
07.10.2021,CHILDREN AND FAMILIES,NEGOTIATORS FAMILY CENTRE LIMITED,"1,190.00",CONTACT SERVICE,OTHER PAYMENTS FOR CLIENTS,5902488971,1000075672
07.10.2021,CHILDREN AND FAMILIES,NEGOTIATORS FAMILY CENTRE LIMITED,"1,200.50",CONTACT SERVICE,OTHER PAYMENTS FOR CLIENTS,5902488965,1000075672
07.10.2021,CHILDREN AND FAMILIES,ISW ASSESSMENT AND CONSULTANCY LIMITED,780.83,FAMILY ASSESSMENTS,RESIDENTIAL CARE,5902490137,1000087001
07.10.2021,CHILDREN AND FAMILIES,REDACTED PERSONAL DATA,300,FE SUPPORT,CLIENT TRANSPORT,REDACTED,REDACTED
07.10.2021,CHILDREN AND FAMILIES,REDACTED PERSONAL DATA,300,FE SUPPORT,CLIENT TRANSPORT,REDACTED,REDACTED
07.10.2021,CHILDREN AND FAMILIES,ZENITH CARS LTD,885,P & R CARE TEAM,CLIENT TRANSPORT,5902490136,1000070570
07.10.2021,CHILDREN AND FAMILIES,HM PRISON & PROBATION SERVICE,"17,794.00",REMAND - YDA STC & SCH,RESIDENTIAL CARE,5902490266,1000083827
07.10.2021,CHILDREN AND FAMILIES,HM PRISON & PROBATION SERVICE,"9,765.00",REMAND - YDA YOI,RESIDENTIAL CARE,5902490265,1000083827
07.10.2021,CHILDREN AND FAMILIES,NETPEX LTD CORPORATE SERVICES,"2,464.26",SEMI-IND CARELEAVERS,EXTERNAL AGENCIES AND BODIES,2103329259,1000076073
07.10.2021,CHILDREN AND FAMILIES,NETPEX LTD CORPORATE SERVICES,"2,550.00",SEMI-IND CARELEAVERS,EXTERNAL AGENCIES AND BODIES,2103329257,1000076073
07.10.2021,CHILDREN AND FAMILIES,NETPEX LTD CORPORATE SERVICES,"4,071.60",SEMI-IND CARELEAVERS,EXTERNAL AGENCIES AND BODIES,2103329255,1000076073
07.10.2021,CHILDREN AND FAMILIES,JORDAN XAVIER LTD,"1,928.57",SEMI-IND CARELEAVERS,EXTERNAL AGENCIES AND BODIES,2103329247,1000081470
07.10.2021,CHILDREN AND FAMILIES,ASPIRATIONZ LTD,"1,928.57",SEMI-IND LAC 16-17,EXTERNAL AGENCIES AND BODIES,2103329267,1000087333
07.10.2021,CHILDREN AND FAMILIES,ASPIRATIONZ LTD,"3,549.99",SEMI-IND LAC 16-17,EXTERNAL AGENCIES AND BODIES,2103329265,1000087333
07.10.2021,CHILDREN AND FAMILIES,REDACTED PERSONAL DATA,500,SEMI-IND LAC 16-17,OTHER PAYMENTS FOR CLIENTS,REDACTED,REDACTED
07.10.2021,CHILDREN AND FAMILIES,REDACTED PERSONAL DATA,"1,800.00",SEMI-IND LAC 16-17,OTHER PAYMENTS FOR CLIENTS,REDACTED,REDACTED
07.10.2021,CHILDREN AND FAMILIES,SYED & QUINN LTD,400,SSCP TRAINING,TRAINING,5902490188,1000029554
07.10.2021,CHILDREN AND FAMILIES,NATIONAL FOSTERING AGENCY LTD,"1,800.00",STAYPUT- FOST CARERS,EXTERNAL AGENCIES AND BODIES,2103329253,1000038868
07.10.2021,CHILDREN AND FAMILIES,ZENITH CARS LTD,965,TEAM B,CLIENT TRANSPORT,5902490306,1000070570
07.10.2021,CHILDREN AND FAMILIES,E4 LAW LTD,875,TEAM B,OTHER PAYMENTS FOR CLIENTS,5902490150,1000072222
07.10.2021,CHILDREN AND FAMILIES,ZENITH CARS LTD,949,TEAM C,CLIENT TRANSPORT,5902490306,1000070570
07.10.2021,CHILDREN AND FAMILIES,ZENITH CARS LTD,"1,240.00",TEAM D,CLIENT TRANSPORT,5902490306,1000070570
07.10.2021,CHILDREN AND FAMILIES,SOUTH OF THE RIVER INVESTMENTS LTD,"2,253.70",TEMP ACCOM FOR IH,EXTERNAL AGENCIES AND BODIES,5902490240,1000073638
07.10.2021,CHILDREN AND FAMILIES,NETPEX LTD CORPORATE SERVICES,280,UASC CARELEAVERS,EXTERNAL AGENCIES AND BODIES,2103329251,1000076073
07.10.2021,CHILDREN AND FAMILIES,NETPEX LTD CORPORATE SERVICES,"2,100.00",UASC CARELEAVERS,EXTERNAL AGENCIES AND BODIES,2103329261,1000076073
07.10.2021,CHILDREN AND FAMILIES,LAMBETH & SOUTHWARK MIND,"1,956.00",YOS MGMT & SUPPORT,EXTERNAL AGENCIES AND BODIES,5902490273,1000084259
07.10.2021,COMMUNITIES,LONDON COUNCILS,"59,306.00",LONDON COUNCILS,OTHER LOCAL AUTHORITIES,5902490259,11237079
07.10.2021,COMMUNITIES HRA,IHASCO LTD,"5,400.00",RESIDENTS PARTICIPATION FUND,TRAINING,5902490263,1000087374
07.10.2021,EDUCATION,OPEN BOX CONSULTING,"2,475.00",SCH CLOSURE & REORGS,AGENCY STAFF,5902490208,1000087383
07.10.2021,ENVIRONMENT AND LEISURE,F M CONWAY LTD,"2,893.56",CAPITAL PS (LEISURE),CONSTRUCTION,2103326475,4001384
07.10.2021,ENVIRONMENT AND LEISURE,INTO SERVICES LONDON LTD,600,CAPITAL PS (LEISURE),CONST'N MAIN CONTRACT - NON CERTIFICATED,5902489027,1000059328
07.10.2021,ENVIRONMENT AND LEISURE,TIM O'HARE ASSOCIATES,"3,600.00",CAPITAL PS (LEISURE),CONSTRUCTION FEES  - EXTERNAL,5902490125,1000077907
07.10.2021,ENVIRONMENT AND LEISURE,CHAR.GY LIMITED,"98,000.00",CAPITAL PS (LEISURE),CONSTRUCTION,5902490227,1000081785
07.10.2021,ENVIRONMENT AND LEISURE,INTO SERVICES LONDON LTD,345,CAPITAL PS (LEISURE),CONST'N MAIN CONTRACT - NON CERTIFICATED,2103327404,3000002071
07.10.2021,ENVIRONMENT DIRECTORATE,DAWSONGROUP VANS LTD,250.5,COMMERCIAL VEH CTRL A/C,HIRED VEHICLES,5902490301,1000082230
07.10.2021,ENVIRONMENT DIRECTORATE,DAWSONGROUP VANS LTD,250.5,COMMERCIAL VEH CTRL A/C,HIRED VEHICLES,5902490302,1000082230
07.10.2021,ENVIRONMENT DIRECTORATE,DAWSONGROUP VANS LTD,267,COMMERCIAL VEH CTRL A/C,HIRED VEHICLES,5902490202,1000082230
07.10.2021,ENVIRONMENT DIRECTORATE,DAWSONGROUP VANS LTD,267,COMMERCIAL VEH CTRL A/C,HIRED VEHICLES,5902490204,1000082230
07.10.2021,ENVIRONMENT DIRECTORATE,DAWSONGROUP VANS LTD,267,COMMERCIAL VEH CTRL A/C,HIRED VEHICLES,5902490232,1000082230
07.10.2021,ENVIRONMENT DIRECTORATE,DAWSONGROUP VANS LTD,267,COMMERCIAL VEH CTRL A/C,HIRED VEHICLES,5902490235,1000082230
07.10.2021,ENVIRONMENT DIRECTORATE,DAWSONGROUP VANS LTD,267,COMMERCIAL VEH CTRL A/C,HIRED VEHICLES,5902490243,1000082230
07.10.2021,ENVIRONMENT DIRECTORATE,DAWSONGROUP VANS LTD,267,COMMERCIAL VEH CTRL A/C,HIRED VEHICLES,5902490245,1000082230
07.10.2021,ENVIRONMENT DIRECTORATE,DAWSONGROUP VANS LTD,267,COMMERCIAL VEH CTRL A/C,HIRED VEHICLES,5902490247,1000082230
07.10.2021,ENVIRONMENT DIRECTORATE,DAWSONGROUP VANS LTD,267,COMMERCIAL VEH CTRL A/C,HIRED VEHICLES,5902490294,1000082230
07.10.2021,ENVIRONMENT DIRECTORATE,DAWSONGROUP VANS LTD,290.4,COMMERCIAL VEH CTRL A/C,HIRED VEHICLES,5902490194,1000082230
07.10.2021,ENVIRONMENT DIRECTORATE,DAWSONGROUP VANS LTD,290.4,COMMERCIAL VEH CTRL A/C,HIRED VEHICLES,5902490196,1000082230
07.10.2021,ENVIRONMENT DIRECTORATE,DAWSONGROUP VANS LTD,290.4,COMMERCIAL VEH CTRL A/C,HIRED VEHICLES,5902490198,1000082230
07.10.2021,ENVIRONMENT DIRECTORATE,DAWSONGROUP VANS LTD,290.4,COMMERCIAL VEH CTRL A/C,HIRED VEHICLES,5902490200,1000082230
07.10.2021,ENVIRONMENT DIRECTORATE,DAWSONGROUP VANS LTD,290.4,COMMERCIAL VEH CTRL A/C,HIRED VEHICLES,5902490206,1000082230
07.10.2021,ENVIRONMENT DIRECTORATE,DAWSONGROUP VANS LTD,290.4,COMMERCIAL VEH CTRL A/C,HIRED VEHICLES,5902490295,1000082230
07.10.2021,ENVIRONMENT DIRECTORATE,DAWSONGROUP VANS LTD,290.4,COMMERCIAL VEH CTRL A/C,HIRED VEHICLES,5902490299,1000082230
07.10.2021,ENVIRONMENT DIRECTORATE,DAWSONGROUP VANS LTD,315,COMMERCIAL VEH CTRL A/C,HIRED VEHICLES,5902490267,1000082230
07.10.2021,ENVIRONMENT DIRECTORATE,DAWSONGROUP VANS LTD,411.6,COMMERCIAL VEH CTRL A/C,HIRED VEHICLES,5902490292,1000082230
07.10.2021,ENVIRONMENT DIRECTORATE,DAWSONGROUP VANS LTD,427.5,COMMERCIAL VEH CTRL A/C,HIRED VEHICLES,5902490252,1000082230
07.10.2021,ENVIRONMENT DIRECTORATE,DAWSONGROUP VANS LTD,438,COMMERCIAL VEH CTRL A/C,HIRED VEHICLES,5902490199,1000082230
07.10.2021,ENVIRONMENT DIRECTORATE,DAWSONGROUP VANS LTD,438,COMMERCIAL VEH CTRL A/C,HIRED VEHICLES,5902490241,1000082230
07.10.2021,ENVIRONMENT DIRECTORATE,DAWSONGROUP VANS LTD,456,COMMERCIAL VEH CTRL A/C,HIRED VEHICLES,5902490207,1000082230
07.10.2021,ENVIRONMENT DIRECTORATE,UK CONTAINER MAINTENANCE LTD,"3,068.00",COMMERCIAL WASTE,EQUIPMENT PURCHASE & REPAIR,5902490226,1000081591
07.10.2021,ENVIRONMENT DIRECTORATE,METIS CONSULTANTS LIMITED,"3,500.00",FLOOD RISK MANAGEMENT,HIGHWAYS TERM CONTRACT,5902490239,1000086330
07.10.2021,ENVIRONMENT DIRECTORATE,METIS CONSULTANTS LIMITED,"18,750.00",FLOOD RISK MANAGEMENT,HIGHWAYS TERM CONTRACT,5902490234,1000086330
07.10.2021,ENVIRONMENT DIRECTORATE,FAROL LTD,381.92,ICC SPECIAL TEAMS,EQUIPMENT PURCHASE & REPAIR,5902489643,1000078940
07.10.2021,ENVIRONMENT DIRECTORATE,GREEN PLANT UK LTD,375,NON HOUSING GROUNDS,EQUIPMENT PURCHASE & REPAIR,5902490182,1000073151
07.10.2021,ENVIRONMENT DIRECTORATE,VERSALIFT UNITED KINGDOM LIMITED,"1,680.00",PUBLIC LIGHTING,TRAINING,5902490251,1000042745
07.10.2021,ENVIRONMENT DIRECTORATE,MARK BAILEY ASSOCIATES LTD,900,PUBLIC LIGHTING,MATERIALS,5902490228,1000061353
07.10.2021,ENVIRONMENT DIRECTORATE,MARK BAILEY ASSOCIATES LTD,"36,553.20",PUBLIC LIGHTING,MATERIALS,5902490229,1000061353
07.10.2021,ENVIRONMENT DIRECTORATE,CABLE TEST LTD,962.32,PUBLIC LIGHTING,OTHER CONTRACTORS,5902490231,1000079183
07.10.2021,ENVIRONMENT DIRECTORATE,ASD LIGHTING PLC,473.1,PUBLIC LIGHTING,MATERIALS,5902490307,1000079671
07.10.2021,ENVIRONMENT DIRECTORATE,VEOLIA ES SOUTHWARK LTD,"31,567.54",WASTE PFI,VEHICLE FUEL,5902490179,1000056979
07.10.2021,F & C S EXCLUDING CORPORATE BUDGETS,NEC SOFTWARE SOLUTIONS UK LTD,"9,579.16",ADMINISTRATIVE SUPPORT,PRINTING,5902490257,1000087043
07.10.2021,F & C S EXCLUDING CORPORATE BUDGETS,REDACTED PERSONAL DATA,500,SESS,OTHER PAYMENTS FOR CLIENTS,REDACTED,REDACTED
07.10.2021,F & C S EXCLUDING CORPORATE BUDGETS,REDACTED PERSONAL DATA,500,SESS,OTHER PAYMENTS FOR CLIENTS,REDACTED,REDACTED
07.10.2021,F & C S EXCLUDING CORPORATE BUDGETS,REDACTED PERSONAL DATA,500,SESS,OTHER PAYMENTS FOR CLIENTS,REDACTED,REDACTED
07.10.2021,F & C S EXCLUDING CORPORATE BUDGETS,REDACTED PERSONAL DATA,500,SESS,OTHER PAYMENTS FOR CLIENTS,REDACTED,REDACTED
07.10.2021,F & C S EXCLUDING CORPORATE BUDGETS,REDACTED PERSONAL DATA,500,SESS,OTHER PAYMENTS FOR CLIENTS,REDACTED,REDACTED
07.10.2021,F & C S EXCLUDING CORPORATE BUDGETS,REDACTED PERSONAL DATA,500,SESS,OTHER PAYMENTS FOR CLIENTS,REDACTED,REDACTED
07.10.2021,F & C S EXCLUDING CORPORATE BUDGETS,REDACTED PERSONAL DATA,500,SESS,OTHER PAYMENTS FOR CLIENTS,REDACTED,REDACTED
07.10.2021,F & C S EXCLUDING CORPORATE BUDGETS,REDACTED PERSONAL DATA,500,SESS,OTHER PAYMENTS FOR CLIENTS,REDACTED,REDACTED
07.10.2021,F & C S EXCLUDING CORPORATE BUDGETS,REDACTED PERSONAL DATA,500,SESS,OTHER PAYMENTS FOR CLIENTS,REDACTED,REDACTED
07.10.2021,F & C S EXCLUDING CORPORATE BUDGETS,REDACTED PERSONAL DATA,500,SESS,OTHER PAYMENTS FOR CLIENTS,REDACTED,REDACTED
07.10.2021,F & C S EXCLUDING CORPORATE BUDGETS,REDACTED PERSONAL DATA,500,SESS,OTHER PAYMENTS FOR CLIENTS,REDACTED,REDACTED
07.10.2021,F & C S EXCLUDING CORPORATE BUDGETS,REDACTED PERSONAL DATA,500,SESS,OTHER PAYMENTS FOR CLIENTS,REDACTED,REDACTED
07.10.2021,F & C S EXCLUDING CORPORATE BUDGETS,REDACTED PERSONAL DATA,500,SESS,OTHER PAYMENTS FOR CLIENTS,REDACTED,REDACTED
07.10.2021,F & C S EXCLUDING CORPORATE BUDGETS,REDACTED PERSONAL DATA,500,SESS,OTHER PAYMENTS FOR CLIENTS,REDACTED,REDACTED
07.10.2021,F & C S EXCLUDING CORPORATE BUDGETS,REDACTED PERSONAL DATA,500,SESS,OTHER PAYMENTS FOR CLIENTS,REDACTED,REDACTED
07.10.2021,F & C S EXCLUDING CORPORATE BUDGETS,REDACTED PERSONAL DATA,500,SESS,OTHER PAYMENTS FOR CLIENTS,REDACTED,REDACTED
07.10.2021,F & C S EXCLUDING CORPORATE BUDGETS,REDACTED PERSONAL DATA,500,SESS,OTHER PAYMENTS FOR CLIENTS,REDACTED,REDACTED
07.10.2021,F & C S EXCLUDING CORPORATE BUDGETS,REDACTED PERSONAL DATA,500,SESS,OTHER PAYMENTS FOR CLIENTS,REDACTED,REDACTED
07.10.2021,HOUSING,A & E ELKINS LTD,"71,966.23",A&E ELKINS,I-WORLD CONTRACTORS HOLDING ACCOUNT,2103329111,4012501
07.10.2021,HOUSING,BRIDGEWATER ROOFING CONTRACTORS LTD,"81,163.89",BRC,I-WORLD CONTRACTORS HOLDING ACCOUNT,2103329113,3000001482
07.10.2021,HOUSING,PRB ESTATES LTD,"29,531.12",PRBE,I-WORLD CONTRACTORS HOLDING ACCOUNT,2103329315,3000001691
07.10.2021,HOUSING,PRB ESTATES LTD,"35,851.01",PRBE,I-WORLD CONTRACTORS HOLDING ACCOUNT,2103329112,3000001691
07.10.2021,HOUSING GENERAL FUND,FRANKHAM CONSULTANCY GROUP LTD,458,CAPITAL PS (HOUSING GF),CAPITAL GRANTS,5902489008,1000043952
07.10.2021,HOUSING HRA,BAILY  GARNER LLP,"4,500.00",CAPITAL PS (HRA),CONSTRUCTION FEES  - EXTERNAL,5902490305,1000663
07.10.2021,HOUSING HRA,BAILY  GARNER LLP,"9,600.00",CAPITAL PS (HRA),CONSTRUCTION FEES - EMPLOYERS AGENT,5902490143,1000663
07.10.2021,HOUSING HRA,CALFORD SEADEN LLP,"2,455.13",CAPITAL PS (HRA),CONSTRUCTION FEES  - EXTERNAL,5902490285,1061592
07.10.2021,HOUSING HRA,CALFORD SEADEN LLP,"2,352.00",CAPITAL PS (HRA),CONSTRUCTION FEES - EMPLOYERS AGENT,5902490167,1061592
07.10.2021,HOUSING HRA,CALFORD SEADEN LLP,"2,352.00",CAPITAL PS (HRA),CONSTRUCTION FEES - EMPLOYERS AGENT,5902490291,1061592
07.10.2021,HOUSING HRA,ENGIE REGENERATION (APOLLO) LTD,"126,271.44",CAPITAL PS (HRA),CONSTRUCTION MAIN CONTRACT -CERTIFICATED,2103327135,4000449
07.10.2021,HOUSING HRA,COTTRELL AND VERMEULEN ARCH LTD,"6,548.33",CAPITAL PS (HRA),CONSTRUCTION FEES  - EXTERNAL,5902490159,1000012119
07.10.2021,HOUSING HRA,SILK & MACKMAN SERVICES LTD,"5,425.00",CAPITAL PS (HRA),UTILITIES INSTALLATION,5902489135,1000035282
07.10.2021,HOUSING HRA,EMS EVENTS LTD,411.57,CAPITAL PS (HRA),CONSTRUCTION FEES  - EXTERNAL,5902490164,1000057494
07.10.2021,HOUSING HRA,EMS EVENTS LTD,411.57,CAPITAL PS (HRA),CONSTRUCTION FEES  - EXTERNAL,5902490172,1000057494
07.10.2021,HOUSING HRA,GIBSON THORNLEY ARCHITECTS LTD,"3,111.61",CAPITAL PS (HRA),CONSTRUCTION FEES - ARCHITECT,5902490174,1000079298
07.10.2021,HOUSING HRA,GIBSON THORNLEY ARCHITECTS LTD,"4,284.11",CAPITAL PS (HRA),CONSTRUCTION FEES - ARCHITECT,5902490171,1000079298
07.10.2021,HOUSING HRA,GREEN SHOOTS ECOLOGY LTD,"1,000.00",CAPITAL PS (HRA),CONSTRUCTION FEES  - EXTERNAL,5902490151,1000085118
07.10.2021,HOUSING HRA,DJJH CONSULTING LTD,483.18,CAPITAL PS (HRA),CONSTRUCTION FEES - EMPLOYERS AGENT,5902489084,1000085261
07.10.2021,HOUSING HRA,AIREY MILLER LIMITED,"1,045.00",CAPITAL PS (HRA),CONSTRUCTION FEES - EMPLOYERS AGENT,5902490298,1000085476
07.10.2021,HOUSING HRA,HAPTIC ARCHITECTS LTD,"7,791.99",CAPITAL PS (HRA),CONSTRUCTION FEES - ARCHITECT,5902490238,1000087287
07.10.2021,HOUSING HRA,HAPTIC ARCHITECTS LTD,"19,246.00",CAPITAL PS (HRA),CONSTRUCTION FEES - ARCHITECT,5902490238,1000087287
07.10.2021,HOUSING HRA,HAPTIC ARCHITECTS LTD,"20,011.00",CAPITAL PS (HRA),CONSTRUCTION FEES - ARCHITECT,5902490238,1000087287
07.10.2021,LEISURE DIRECTORATE,BE ACTIVE SOCIAL ENTERPRISE CIC,"7,500.00",BURGESS AREA TEAM,PROFESSIONAL FEES,5902490177,1000066673
07.10.2021,LEISURE DIRECTORATE,QUADRON SERVICES LIMITED,472.78,DULWICH AREA TEAM,GROUNDS MAINTENANCE,5902490283,1000066528
07.10.2021,LEISURE DIRECTORATE,QUADRON SERVICES LIMITED,"2,470.00",DULWICH AREA TEAM,GROUNDS MAINTENANCE,5902490278,1000066528
07.10.2021,LEISURE DIRECTORATE,QUADRON SERVICES LIMITED,"7,410.00",DULWICH AREA TEAM,GROUNDS MAINTENANCE,5902490277,1000066528
07.10.2021,LEISURE DIRECTORATE,PEN & PIXEL LTD,300,PARKS SERVICES DEVELOPMENT,HIRE OF ROOMS/HALLS,5902488892,1000061143
07.10.2021,LEISURE DIRECTORATE,TECHNICAL SURFACES,375,SOUTHWARK AREA TEAM,OTHER R&M,5902490268,1000011451
07.10.2021,LEISURE DIRECTORATE,TECHNICAL SURFACES,460,SOUTHWARK AREA TEAM,OTHER R&M,5902490271,1000011451
07.10.2021,PLANNING AND TRANSPORT,HATCH ASSOCIATES LTD,"8,450.00",OKR MASTER PLANNING,PROFESSIONAL FEES,5902490156,1000084186
07.10.2021,PUBLICHEALTH,REDACTED PERSONAL DATA,500,COVID-19 CONTROL OUTBREAK MGMNT.FUND,OTHER PAYMENTS FOR CLIENTS,REDACTED,REDACTED
07.10.2021,PUBLICHEALTH,REDACTED PERSONAL DATA,500,COVID-19 CONTROL OUTBREAK MGMNT.FUND,OTHER PAYMENTS FOR CLIENTS,REDACTED,REDACTED
07.10.2021,PUBLICHEALTH,REDACTED PERSONAL DATA,500,COVID-19 CONTROL OUTBREAK MGMNT.FUND,OTHER PAYMENTS FOR CLIENTS,REDACTED,REDACTED
07.10.2021,PUBLICHEALTH,REDACTED PERSONAL DATA,500,COVID-19 CONTROL OUTBREAK MGMNT.FUND,OTHER PAYMENTS FOR CLIENTS,REDACTED,REDACTED
07.10.2021,PUBLICHEALTH,REDACTED PERSONAL DATA,500,COVID-19 CONTROL OUTBREAK MGMNT.FUND,OTHER PAYMENTS FOR CLIENTS,REDACTED,REDACTED
07.10.2021,RESIDENT SERVICES,HARROW GREEN LTD,"5,788.35",OPERATIONS/OFFICES ACCOMMODATION,REMOVAL EXPENSES,5902490192,1000076673
07.10.2021,RESIDENT SERVICES,SOUTH OF THE RIVER INVESTMENTS LTD,"7,536.40",TA PLACEMENTS,EXTERNAL AGENCIES AND BODIES,5902490224,1000073638
07.10.2021,RESIDENT SERVICES HGF,SANDTON MANAGEMENT LIMITED,"2,469.00",HOMELESS PROJECTS,GRANTS,5902490138,1000085796
07.10.2021,RESIDENT SERVICES HGF,S & G PROPERTIES,"8,500.82",NIGHTLY TA (NSC),EXTERNAL AGENCIES AND BODIES,5902490181,1000005082
07.10.2021,RESIDENT SERVICES HGF,HOMES 2 LET UK LTD,"12,367.75",NIGHTLY TA (NSC),EXTERNAL AGENCIES AND BODIES,5902490242,1000079868
07.10.2021,RESIDENT SERVICES HGF,DMS PROPERTIES SERVICES LTD,"29,643.50",NIGHTLY TA (NSC),EXTERNAL AGENCIES AND BODIES,5902490264,1000081522
07.10.2021,RESIDENT SERVICES HGF,EASYMOVE EA LIMITED,"25,547.88",PSL PLACEMENTS,EXTERNAL AGENCIES AND BODIES,5902490187,1000066859
07.10.2021,RESIDENT SERVICES HGF,SOUTH OF THE RIVER INVESTMENTS LTD,"41,877.20",PSL PLACEMENTS,EXTERNAL AGENCIES AND BODIES,5902490173,1000073638
07.10.2021,RESIDENT SERVICES HGF,SMARTSPACE PROPERTY SOLUTIONS LTD,"10,374.02",PSL PLACEMENTS,EXTERNAL AGENCIES AND BODIES,5902490230,1000082769
07.10.2021,RESIDENT SERVICES HGF,WENTWORTH HOUSING LTD,"40,253.64",PSL PLACEMENTS,EXTERNAL AGENCIES AND BODIES,5902490191,1000083640
07.10.2021,RESIDENT SERVICES HGF,WENTWORTH HOUSING LTD,"12,000.00",PSL PLACEMENTS,GRANTS,5902490170,1000083640
07.10.2021,STRATEGIC FINANCING BUDGETS,COMENSURA LTD,"681,218.34",AGENCY RECOVERY,AGENCY STAFF,5902490290,1000051261
07.10.2021,STRATEGIC FINANCING BUDGETS,JOHNSON AUSTIN LTD,900,PROPERTY RELATED INSURANCE,PROFESSIONAL FEES,5902488936,1000040202
08.10.2021,ADULT SOCIAL CARE,SWK DISABLEMENT ASSN,"26,672.00",ALL AGE DISABILITIES HUBS,EXTERNAL AGENCIES AND BODIES,5902490450,1000011698
08.10.2021,ADULT SOCIAL CARE,LINDA COBB,"1,150.00",ASW - PROFESSIONAL DEVELOPMENT,TRAINING,5902490442,1000029191
08.10.2021,ADULT SOCIAL CARE,QUEENS OAK CARE CENTRE,432,DISCHARGE TO ACCESS,NURSING PLACEMENTS FEES,2103329356,1000049621
08.10.2021,ADULT SOCIAL CARE,QUEENS OAK CARE CENTRE,"4,320.00",DISCHARGE TO ACCESS,NURSING PLACEMENTS FEES,2103329357,1000049621
08.10.2021,ADULT SOCIAL CARE,QUEENS OAK CARE CENTRE,"7,776.00",DISCHARGE TO ACCESS,NURSING PLACEMENTS FEES,2103329358,1000049621
08.10.2021,ADULT SOCIAL CARE,PINEAPPLE CONTRACTS UNLIMITED,350,ORIENT ST � RESPITE,FURNITURE PURCHASE & REPAIR,5902490465,11003086
08.10.2021,ADULT SOCIAL CARE,HEXAGON HOUSING ASSOCIATION LTD,"2,998.06",PD STEPDOWN HAVIL ST,RENTS,5902490319,1000014698
08.10.2021,ADULT SOCIAL CARE,HEXAGON HOUSING ASSOCIATION LTD,"9,310.60",PD STEPDOWN HAVIL ST,RENTS,5902490324,1000014698
08.10.2021,ADULT SOCIAL CARE,ANCHOR TRUST,"83,303.93",PHY LTS 65+,RESIDENTIAL CARE,5902490451,11257534
08.10.2021,ADULT SOCIAL CARE,ANCHOR TRUST,"331,090.76",PHY LTS 65+,RESIDENTIAL CARE,5902490452,11257534
08.10.2021,ADULT SOCIAL CARE,THAMES HOMECARE SERVICE LTD,"26,600.00",REABLEMENT CONTRACT,HOMECARE - C&V,5902490185,1000079295
08.10.2021,ADULT SOCIAL CARE,LOOK AHEAD CARE AND SUPPORT LTD,"8,888.50",S75 SUPHSG SCH LBS LEAD,EXTERNAL AGENCIES AND BODIES,5902490455,1000047299
08.10.2021,ADULT SOCIAL CARE,LOOK AHEAD CARE AND SUPPORT LTD,"17,559.50",S75 SUPHSG SCH LBS LEAD,EXTERNAL AGENCIES AND BODIES,5902490453,1000047299
08.10.2021,ADULT SOCIAL CARE,LOOK AHEAD CARE AND SUPPORT LTD,"17,559.50",S75 SUPHSG SCH LBS LEAD,EXTERNAL AGENCIES AND BODIES,5902490456,1000047299
08.10.2021,ADULT SOCIAL CARE,LOOK AHEAD CARE AND SUPPORT LTD,"62,171.00",S75 SUPHSG SCH LBS LEAD,EXTERNAL AGENCIES AND BODIES,5902490446,1000047299
08.10.2021,ADULT SOCIAL CARE,LOOK AHEAD CARE AND SUPPORT LTD,"79,126.50",S75 SUPHSG SCH LBS LEAD,EXTERNAL AGENCIES AND BODIES,5902490454,1000047299
08.10.2021,ASSET MANAGEMENT HGF,MITIE FM LIMITED,"27,630.18",FM SERVICES BY INTERSERVE,BUILDING R&M,5902489517,1000070792
08.10.2021,ASSET MANAGEMENT HGF,DISPOSABLES AND CATERING SUPPLIES LTD,289.52,QUEENS RD 1 (BLOCK F),BUILDING R&M,5902489314,1000082869
08.10.2021,ASSET MANAGEMENT HGF,MITIE FM LIMITED,"64,686.47",TSFM CONTINGENCY,INTEGRATED FACILITIES MANAGEMENT CONTRACT,5902490470,1000070792
08.10.2021,CHIEF EXECUTIVE,F M CONWAY LTD,"7,937.81",CAPITAL PS (REGEN),CONSTR'N SUB CONTRACT - NON CERTIFICATED,2103328093,4001384
08.10.2021,CHIEF EXECUTIVE,BETA DISTRIBUTION (SOUTH) LTD,433.55,CAPITAL PS (REGEN),CONSTRUCTION,5902490378,1000044844
08.10.2021,CHILDREN AND FAMILIES,LINK MAKER SYSTEMS LTD,"41,484.48",ADOPT LONDON SOUTH,SUBSCRIPTIONS,5902490414,1000074722
08.10.2021,CHILDREN AND FAMILIES,NETWORK RECRUITMENT SOLUTIONS,300,CONTACT SERVICE,OTHER PAYMENTS FOR CLIENTS,5902489837,1000071241
08.10.2021,CHILDREN AND FAMILIES,NETWORK RECRUITMENT SOLUTIONS,300,CONTACT SERVICE,OTHER PAYMENTS FOR CLIENTS,5902489844,1000071241
08.10.2021,CHILDREN AND FAMILIES,NETWORK RECRUITMENT SOLUTIONS,300,CONTACT SERVICE,OTHER PAYMENTS FOR CLIENTS,5902489850,1000071241
08.10.2021,CHILDREN AND FAMILIES,NETWORK RECRUITMENT SOLUTIONS,300,CONTACT SERVICE,OTHER PAYMENTS FOR CLIENTS,5902489855,1000071241
08.10.2021,CHILDREN AND FAMILIES,NETWORK RECRUITMENT SOLUTIONS,525,CONTACT SERVICE,OTHER PAYMENTS FOR CLIENTS,5902489833,1000071241
08.10.2021,CHILDREN AND FAMILIES,NETWORK RECRUITMENT SOLUTIONS,525,CONTACT SERVICE,OTHER PAYMENTS FOR CLIENTS,5902489841,1000071241
08.10.2021,CHILDREN AND FAMILIES,NETWORK RECRUITMENT SOLUTIONS,525,CONTACT SERVICE,OTHER PAYMENTS FOR CLIENTS,5902489851,1000071241
08.10.2021,CHILDREN AND FAMILIES,NETWORK RECRUITMENT SOLUTIONS,550,CONTACT SERVICE,OTHER PAYMENTS FOR CLIENTS,5902489842,1000071241
08.10.2021,CHILDREN AND FAMILIES,NETWORK RECRUITMENT SOLUTIONS,700,CONTACT SERVICE,OTHER PAYMENTS FOR CLIENTS,5902489834,1000071241
08.10.2021,CHILDREN AND FAMILIES,NETWORK RECRUITMENT SOLUTIONS,700,CONTACT SERVICE,OTHER PAYMENTS FOR CLIENTS,5902489852,1000071241
08.10.2021,CHILDREN AND FAMILIES,NETWORK RECRUITMENT SOLUTIONS,750,CONTACT SERVICE,OTHER PAYMENTS FOR CLIENTS,5902489846,1000071241
08.10.2021,CHILDREN AND FAMILIES,NETWORK RECRUITMENT SOLUTIONS,750,CONTACT SERVICE,OTHER PAYMENTS FOR CLIENTS,5902489854,1000071241
08.10.2021,CHILDREN AND FAMILIES,NETWORK RECRUITMENT SOLUTIONS,"1,050.00",CONTACT SERVICE,OTHER PAYMENTS FOR CLIENTS,5902489836,1000071241
08.10.2021,CHILDREN AND FAMILIES,NETWORK RECRUITMENT SOLUTIONS,"1,243.20",CONTACT SERVICE,OTHER PAYMENTS FOR CLIENTS,5902489835,1000071241
08.10.2021,CHILDREN AND FAMILIES,NETWORK RECRUITMENT SOLUTIONS,"1,243.20",CONTACT SERVICE,OTHER PAYMENTS FOR CLIENTS,5902489843,1000071241
08.10.2021,CHILDREN AND FAMILIES,NETWORK RECRUITMENT SOLUTIONS,"1,243.20",CONTACT SERVICE,OTHER PAYMENTS FOR CLIENTS,5902489853,1000071241
08.10.2021,CHILDREN AND FAMILIES,ACTIVE COMMUNITIES NETWORK LTD,"10,000.00",GRANT FUNDED PROJ�S,EXTERNAL AGENCIES AND BODIES,5902490175,1000057408
08.10.2021,CHILDREN AND FAMILIES,TRIANGLE CONSULTING,"1,225.00",SUPPORTING FAMILIES,EXTERNAL AGENCIES AND BODIES,5902490371,1000075667
08.10.2021,CHILDREN AND FAMILIES,TRIANGLE CONSULTING,"2,450.00",SUPPORTING FAMILIES,EXTERNAL AGENCIES AND BODIES,5902490372,1000075667
08.10.2021,COMMUNITIES,COMMUNITY SOUTHWARK,"35,000.00",HEALTHWATCH,GRANTS,5902490412,1000018147
08.10.2021,COMMUNITIES,SOUTHWARK CITIZENS ADVICE,"150,000.00",LEGAL GRANTS,EXTERNAL AGENCIES AND BODIES,5902490460,1874379
08.10.2021,COMMUNITIES,SOUTHWARK LAW CENTRE,"84,000.00",LEGAL GRANTS,EXTERNAL AGENCIES AND BODIES,5902490312,1981325
08.10.2021,COMMUNITIES HRA,STYLES HOUSE TMO,"1,671.00",STYLES HOUSE TMO,M&M ALLOWANCE CO-OPS,5902490416,1000072012
08.10.2021,COMMUNITIES HRA,TOM HOPKINS ASSOCIATES LTD,"1,330.00",TENANT MGT INITITIVES,TRAINING,5902490448,1000078726
08.10.2021,CUSTOMER EXPERIENCE,CHRIS PAYNE,300,COMPLAINTS,PROFESSIONAL FEES,5902490360,1000082903
08.10.2021,CUSTOMER EXPERIENCE,CHRIS PAYNE,300,COMPLAINTS,PROFESSIONAL FEES,5902490361,1000082903
08.10.2021,CUSTOMER EXPERIENCE,ROL SOLUTIONS LTD,"2,194.86",PECKHAM MSSP,HARDWARE,5902490423,1000069512
08.10.2021,CUSTOMER EXPERIENCE,ROL SOLUTIONS LTD,"4,389.72",PECKHAM MSSP,HARDWARE,5902490426,1000069512
08.10.2021,CUSTOMER EXPERIENCE HGF,ALLIED PUBLICITY SERVICES (MANCHESTER) LTD,903.45,BLUE BADGES,MATERIALS,5902489202,1000082115
08.10.2021,CUSTOMER EXPERIENCE HGF,VALTECH LTD,314.65,BLUE BADGES,MATERIALS,5902489266,1000082245
08.10.2021,CUSTOMER EXPERIENCE HGF,FORENSIC PATHOLOGY SERVICES,276.9,CORONER'S,PROFESSIONAL FEES,5902489469,1000086871
08.10.2021,DSG,CONQUEST CENTRE LTD,"2,660.00",LAC EDUCATION,EXTERNAL AGENCIES AND BODIES,5902489277,1000086612
08.10.2021,EMPLOYEE EXPERIENCE,EMMA MARINOS COACHING LIMITED,"1,500.00",CONTRACT COSTS � NON R/C,CONSULTANTS SERVICES,5902489134,1000086554
08.10.2021,ENVIRONMENT AND LEISURE,F M CONWAY LTD,"1,974.36",CAPITAL PS (LEISURE),CONSTR'N SUB CONTRACT - NON CERTIFICATED,2103328094,4001384
08.10.2021,ENVIRONMENT AND LEISURE,F M CONWAY LTD,"2,678.75",CAPITAL PS (LEISURE),CONSTRUCTION,2103327401,4001384
08.10.2021,ENVIRONMENT AND LEISURE,F M CONWAY LTD,"6,792.97",CAPITAL PS (LEISURE),CONSTRUCTION,2103327921,4001384
08.10.2021,ENVIRONMENT AND LEISURE,MARKETING INNOVATION LTD,414,CAPITAL PS (LEISURE),CONSTRUCTION FEES  - EXTERNAL,5902490413,1000077980
08.10.2021,ENVIRONMENT AND LEISURE,BREEZE LANDSCAPE ARCHITECTS LTD,"3,100.00",CAPITAL PS (LEISURE),CONSTRUCTION FEES - ARCHITECT,5902489033,1000078053
08.10.2021,ENVIRONMENT AND LEISURE,RH WROUGHT IRON,"3,000.00",CAPITAL PS (LEISURE),CONSTRUCTION MAIN CONTRACT -CERTIFICATED,2103327154,3000000680
08.10.2021,ENVIRONMENT AND LEISURE,HOBART PAVING COMPANY LTD,"3,000.00",CAPITAL PS (LEISURE),CONSTRUCTION MAIN CONTRACT -CERTIFICATED,2103329344,3000001690
08.10.2021,ENVIRONMENT AND LEISURE,HOBART PAVING COMPANY LTD,"34,071.98",CAPITAL PS (LEISURE),CONSTRUCTION MAIN CONTRACT -CERTIFICATED,2103329344,3000001690
08.10.2021,ENVIRONMENT AND LEISURE,DULWICH VILLAGE CE INFANTS SCHOOL,"3,600.00",CAPITAL PS (LEISURE),CAPITAL GRANTS,5902489709,5001000027
08.10.2021,ENVIRONMENT DIRECTORATE,ARVAL UK LTD,"-1,781.80",CAR LEASING CTRL A/C,VEHICLE LEASING CHARGES,5902463553,1000079802
